{"text_format":"1","workbook":"xlsx","n_sheets":12,"sheets":["Enable Macros","Front","NewTrans","NewR2R","What's New","Help","Links","StartButton","Report Notes","Summary","Subtotal","Appointments"],"not_rendered":{"charts":0,"images":1,"macros":1,"external_links":2,"defined_names":162,"comments":1,"pivot_tables":0},"unopened":[],"bounds":{"document_bytes":16777216,"sheet_cells":100000,"rows_first":2000,"rows_last":500,"rows_between":2000,"halvings":0,"cell_chars":16384,"cell_head_chars":4096},"cells_cut":0,"cells_raw":0,"read":"whole","date_system":"1900"}

{"sheet":"Enable Macros","index":0,"n_rows":17,"n_cols":3,"rows_kept":17,"cut":false,"hidden":false,"merged":[[6,1,6,15],[12,1,12,15],[8,2,8,15],[14,2,14,15]]}
[]
[]
[null,"This sheet shows when Macros are not enabled"]
[]
[]
[]
[null,"To find out how to enable Excel for Mac macros please check this link (you may need to download this file and enable editing for the link to work)"]
[]
[null,null,"https://support.office.com/en-us/article/enable-or-disable-macros-in-office-for-mac-c2494c99-a637-4ce6-9b82-e02cbb85cb96"]
[]
[]
[]
[null,"To find out how to enable Excel for Windows macros please check this link (you may need to download this file and enable editing for the link to work)"]
[]
[null,null,"https://support.office.com/en-us/article/enable-or-disable-macros-in-office-files-12b036fd-d140-4e74-b45e-16fed1a7e5c6"]
[]
[null,null,"and then select Change Macros in the Trust Center"]

{"sheet":"Front","index":1,"n_rows":29,"n_cols":27,"rows_kept":29,"cut":false,"hidden":true,"merged":[[1,1,1,2]]}
[null,null,null,null,null,null,null,null,null,null,null,null,null,null,null,null,null,null,null,null,null,null,null,null,null,null,{"$f":"DATE(2003,2,1)<>IFERROR(DATEVALUE(TEXT(DATE(2003,2,1),\"dd/mm/yyyy\")),DATEVALUE(TEXT(DATE(2003,2,1),\"yyyy-mm-dd\")))","v":false}]
[null,{"$f":"\"Compliance Assistant - version \"&TEXT(OurVersion,\"0.000\")","v":"Compliance Assistant - version 6071.153"}]
[null,null,{"$f":"IF(dfe,\"The default date format on this system is not consistent with the UK standard (DD/MM/YYYY).\",\"THIS VERSION OF THE COMPLIANCE ASSISTANT USES THE TRAINING REQUIREMENTS FROM THE January 2022 VERSION OF POR\")","v":"THIS VERSION OF THE COMPLIANCE ASSISTANT USES THE TRAINING REQUIREMENTS FROM THE January 2022 VERSION OF POR"}]
[null,null,{"$f":"IF(dfe,\"Please correct this before running the Compliance Assistant as the current setting will cause the program to error or produce incorrect results.\",\"\")","v":""}]
[null,null,{"$f":"IF(dfe,\"\",\"THERE HAVE BEEN SIGNIFICANT CHANGES TO THE LOGIC IN ORDER FOR IT TO HANDLE THE TRANSITION FROM JANUARY 2020 TO CURRENT POR\")","v":"THERE HAVE BEEN SIGNIFICANT CHANGES TO THE LOGIC IN ORDER FOR IT TO HANDLE THE TRANSITION FROM JANUARY 2020 TO CURRENT POR"}]
[null,null,{"$f":"IF(dfe,\"For help on how to make the change please click Help below.\",\"IT DOES NOT WORK WITH VERSIONS OF THE APPOINTMENTS REPORT FROM BEFORE SEPTEMBER 2020\")","v":"IT DOES NOT WORK WITH VERSIONS OF THE APPOINTMENTS REPORT FROM BEFORE SEPTEMBER 2020"}]
[]
[null,null,"This program has been developed as a temporary aid until the facilities are available through Compass"]
[null,null,"It has not been possible to test it in all circumstances so if you experience any issues please contact the developer for help"]
[null,null,"Also, working with just the Appointments Report means that not all necessary checks will be highlighted"]
[null,null,"As at April 2022 the Compass Appointments Report has not been updated to always correctly reflect First Aid completion"]
[]
[null,null,"In order to work Macros must be enabled for this workbook"]
[]
[null,null,"Please treat the report(s) generated in the same was as you would treat any other confidential and personal information"]
[]
[]
[]
[]
[null,null,"Please note the program produces a report based on the data in the Compass Appointments Report, which has known deficiencies.  If there are issues with the report produced please check the original Appointments Report to see whether they existed there before contacting the developer with a query."]
[null,null,"The latest versions and information for the Assistants can be found at …"]
[null,null,"Compliance Assistant  -  https://www.scouts.org.uk/compliance-assistant"]
[null,null,"Training Assistant  -  https://www.scouts.org.uk/training-assistant"]
[null,null,"Awards Assistant  -  https://www.scouts.org.uk/awards-assistant"]
[]
[null,null,"If you experience any issues please contact the developer "]
[null,null,"Peter Moretti"]
[null,null,"Volunteer Data Analyst"]
[null,null,"peter.moretti@scouts.org.uk"]

{"sheet":"NewTrans","index":2,"n_rows":2138,"n_cols":2,"rows_kept":2138,"cut":false,"hidden":true,"merged":[]}
["Compass Role","Table 2 Role"]
["Active Support Manager - Alfrey Activity Centre","Scout Active Support Manager"]
["Activity Centre Staff"]
["Administrator - Compass Statistical Analysis (England)","HQ Administrator"]
["Administrator - Compass Statistical Analysis (NI)","HQ Administrator"]
["Administrator - Compass Statistical Analysis (Overseas)","HQ Administrator"]
["Administrator - Compass Statistical Analysis (Scotland)","HQ Administrator"]
["Administrator - Compass Statistical Analysis (Wales)","HQ Administrator"]
["API Marketing"]
["Appointments Secretary","District Appointments Secretary"]
["Appointments Secretary.","District Appointments Secretary"]
["Area Administrator","Area Administrator"]
["Area Administrator - Assistant Secretary","Area Administrator"]
["Area Administrator (BSO)","Area Administrator"]
["Area Adviser","Area Adviser"]
["Area Adviser - Archery","Area Adviser"]
["Area Adviser - Canoeing","Area Adviser"]
["Area Adviser - Caving","Area Adviser"]
["Area Adviser - Climbing","Area Adviser"]
["Area Adviser - Creative Activities","Area Adviser"]
["Area Adviser - Development","Area Adviser"]
["Area Adviser - Duke of Edinburgh's Award","Area Adviser"]
["Area Adviser - Inclusion","Area Adviser"]
["Area Adviser - International","Area Adviser"]
["Area Adviser - International, Activities","Area Adviser"]
["Area Adviser - Mountain Activities","Area Adviser"]
["Area Adviser - Shooting","Area Adviser"]
["Area Adviser - Snowsports","Area Adviser"]
["Area Adviser - Special Needs","Area Adviser"]
["Area Adviser - Technology","Area Adviser"]
["Area Adviser - Water Activities","Area Adviser"]
["Area Adviser (BSO) - Young Leaders","Area Adviser"]
["Area Appointments Advisory Committee Member","Area Appointment Advisory Committee Member"]
["Area Appointments Chair","Area Appointments Chair"]
["Area Appointments Secretary","Area Appointments Secretary"]
["Area Assessor","Area Assessor"]
["Area Assessor - Archery - Without Compound Bows","Area Assessor"]
["Area Assessor - Archery - Without Compound Bows, 527235","Area Assessor"]
["Area Assessor - Bell Boating - B2+ Waters","Area Assessor"]
["Area Assessor - Canoeing - Open Inland A Waters","Area Assessor"]
["Area Assessor - Canoeing - Open Inland A Waters, Canoeing - Sea B1 Waters","Area Assessor"]
["Area Assessor - Canoeing - Open Inland B1 Waters","Area Assessor"]
["Area Assessor - Canoeing - Open Inland B1 Waters, Canoeing - River B1 Waters","Area Assessor"]
["Area Assessor - Canoeing - Open Inland B2 Waters","Area Assessor"]
["Area Assessor - Canoeing - Open Inland B3 Waters","Area Assessor"]
["Area Assessor - Canoeing - River A Waters","Area Assessor"]
["Area Assessor - Canoeing - River B1 Waters","Area Assessor"]
["Area Assessor - Canoeing - River B1 Waters, Canoeing - Open Inland B1 Waters","Area Assessor"]
["Area Assessor - Canoeing - River B1 Waters, Kayaking - River B1 Waters, Rafting (Traditional) - B1 W","Area Assessor"]
["Area Assessor - Canoeing - River B2 Waters","Area Assessor"]
["Area Assessor - Canoeing - River B3 Waters","Area Assessor"]
["Area Assessor - Canoeing - Sea B1 Waters","Area Assessor"]
["Area Assessor - Canoeing - Sea B2 Waters, Canoeing - Sea B3 Waters","Area Assessor"]
["Area Assessor - Caving - No Vertical Pitches","Area Assessor"]
["Area Assessor - Caving - With SRT for the Group","Area Assessor"]
["Area Assessor - Caving (CIC)","Area Assessor"]
["Area Assessor - Climbing","Area Assessor"]
["Area Assessor - Climbing and Abseiling - Artifical Top Rope","Area Assessor"]
["Area Assessor - Climbing and Abseiling - Multipitch Climbing","Area Assessor"]
["Area Assessor - Climbing and Abseiling - Natural Lead Climbing","Area Assessor"]
["Area Assessor - Climbing and Abseiling - Natural Top Rope","Area Assessor"]
["Area Assessor - Dinghy Sailing - A Waters","Area Assessor"]
["Area Assessor - Dinghy Sailing - A Waters, Keelboating - B1 Waters, Snowsports - On Piste","Area Assessor"]
["Area Assessor - Dinghy Sailing - B3 Waters","Area Assessor"]
["Area Assessor - Hill Walking - Terrain 1 Summer","Area Assessor"]
["Area Assessor - Hill Walking - Terrain 2 Summer","Area Assessor"]
["Area Assessor - Hill Walking - Terrain 2 Summer, Hill Walking - Terrain 1 Summer","Area Assessor"]
["Area Assessor - Hill Walking - Terrain 2 Summer, Hill Walking - Terrain 2 Winter","Area Assessor"]
["Area Assessor - Hill Walking - Terrain 2 Winter","Area Assessor"]
["Area Assessor - Hill Walking (Summer and Winter)","Area Assessor"]
["Area Assessor - Hillwalking - Terrain 2 Summer","Area Assessor"]
["Area Assessor - Kayaking - Open Inland A Waters","Area Assessor"]
["Area Assessor - Kayaking - Open Inland B1 Waters","Area Assessor"]
["Area Assessor - Kayaking - Open Inland B1 Waters, Kayaking - Open Inland B2 Waters","Area Assessor"]
["Area Assessor - Kayaking - Open Inland B2 Waters","Area Assessor"]
["Area Assessor - Kayaking - Open Inland B3 Waters, Kayaking - Open Inland A Waters","Area Assessor"]
["Area Assessor - Kayaking - River B1 Waters","Area Assessor"]
["Area Assessor - Kayaking - River B1 Waters, Kayaking - Open Inland B1 Waters","Area Assessor"]
["Area Assessor - Kayaking - River B1 Waters, Kayaking - River B2 Waters","Area Assessor"]
["Area Assessor - Kayaking - River B2 Waters","Area Assessor"]
["Area Assessor - Kayaking - River B3 Waters","Area Assessor"]
["Area Assessor - Kayaking - River B3 Waters, Kayaking - River A Waters","Area Assessor"]
["Area Assessor - Kayaking - Sea B1 Waters","Area Assessor"]
["Area Assessor - Kayaking - Sea B1 Waters, Kayaking - Sea B2 Waters","Area Assessor"]
["Area Assessor - Kayaking - Sea B2 Waters","Area Assessor"]
["Area Assessor - Kayaking - Sea B3 Waters, Kayaking - Sea A Waters","Area Assessor"]
["Area Assessor - Kayaking - Surf B2 Waters","Area Assessor"]
["Area Assessor - Keelboating - B1 Waters","Area Assessor"]
["Area Assessor - Mine Exploration - With Ladders","Area Assessor"]
["Area Assessor - Mine Exploration - With SRT for the Group","Area Assessor"]
["Area Assessor - Power Boating - A Waters","Area Assessor"]
["Area Assessor - Power Boating - B1 Waters","Area Assessor"]
["Area Assessor - Power Boating - B2 Waters","Area Assessor"]
["Area Assessor - Power Boating - B2 Waters, Dinghy Sailing - B1 Waters, Keelboating - B1 Waters","Area Assessor"]
["Area Assessor - Power Boating - B3 Waters","Area Assessor"]
["Area Assessor - Power Boating - C Waters","Area Assessor"]
["Area Assessor - Rafting (Traditional) - B1 Waters","Area Assessor"]
["Area Assessor - Rafting (Traditional) - B2+ Waters","Area Assessor"]
["Area Assessor - Scout Shows - Scout Shows","Area Assessor"]
["Area Assessor - Snorkelling - Snorkelling","Area Assessor"]
["Area Assistant Camp Warden","Assistant Area Camp Warden"]
["Area Assistant Commissioner","Assistant Area Commissioner - Cub Support"]
["Area Assistant Commissioner - Activities","Assistant Area Commissioner - Cub Support"]
["Area Assistant Commissioner - Adult Support","Assistant Area Commissioner - Cub Support"]
["Area Assistant Commissioner - Communications","Assistant Area Commissioner - Cub Support"]
["Area Assistant Commissioner - Events","Assistant Area Commissioner - Cub Support"]
["Area Assistant Commissioner - Inclusion","Assistant Area Commissioner - Cub Support"]
["Area Assistant Commissioner - Scout Active Support","Assistant Area Commissioner - Cub Support"]
["Area Assistant Commissioner (Section Support) - Beaver Scouts","Assistant Area Commissioner - Beaver Support"]
["Area Assistant Commissioner (Section Support) - Cub Scouts","Assistant Area Commissioner - Cub Support"]
["Area Assistant Commissioner (Section Support) - Explorer Scouts","Assistant Area Commissioner - Explorer Support"]
["Area Assistant Commissioner (Section Support) - Scouts","Assistant Area Commissioner - Scout Support"]
["Area Assistant Commissioner (Section)","Assistant Area Commissioner - Cub Support"]
["Area Assistant Commissioner (Section) - Beaver Scouts","Assistant Area Commissioner - Beaver Support"]
["Area Assistant Commissioner (Section) - Cub Scouts","Assistant Area Commissioner - Cub Support"]
["Area Assistant Commissioner (Section) - Explorer Scouts","Assistant Area Commissioner - Explorer Support"]
["Area Assistant Commissioner (Section) - Explorer Scouts, Scout Network","Assistant Area Commissioner - Explorer Support"]
["Area Assistant Commissioner (Section) - Scouts","Assistant Area Commissioner - Scout Support"]
["Area Assistant Commissioner International","Assistant Area Commissioner - International"]
["Area Asst Commissioner (Section) - Beaver Scouts","Assistant Area Commissioner - Beaver Support"]
["Area Award Certificate Recipient","Area Award Certificate Recipient"]
["Area Badge Secretary","County Badge Secretary"]
["Area Camp Warden","Area Camp Warden"]
["Area Campsite Treasurer","Area Treasurer"]
["Area Chair","Area Chair"]
["Area Chaplain","Area Chaplain"]
["Area Commissioner","Area Commissioner"]
["Area Commissioner (Acting)","Acting Area Commissioner"]
["Area Communications Manager - Communications, Media","Area Communications Manager"]
["Area Communications Manager - Member Communications Manager","Area Communications Manager"]
["Area Deputy Chair","Area Deputy Chair"]
["Area Deputy Commissioner","Deputy Area Commissioner"]
["Area Deputy Commissioner - Adult Support","Deputy Area Commissioner"]
["Area Deputy Commissioner - International","Deputy Area Commissioner"]
["Area Deputy Commissioner - International, Programme","Deputy Area Commissioner"]
["Area Deputy Commissioner - Programme","Deputy Area Commissioner"]
["Area Deputy Commissioner - Support","Deputy Area Commissioner"]
["Area Deputy Commissioner - Support, Adult Support","Deputy Area Commissioner"]
["Area Executive Committee Member","Area Executive Member"]
["Area Executive Committee Member - Elected Member","Area Executive Member"]
["Area Executive Committee Member - Ex-Officio Member","Area Executive Member"]
["Area Executive Committee Member - Nominated Member","Area Executive Member"]
["Area Leader","Area Leader - Cub Support"]
["Area Local Training Manager","Local Training Manager"]
["Area Manager of the Activity Permit Scheme","Area Manager of the Activity Permit Scheme"]
["Area Nights Away Adviser","District Nights Away Adviser"]
["Area Nights Away Adviser - Nights Away","District Nights Away Adviser"]
["Area Nights Away Adviser - Nights Away - Campsite","District Nights Away Adviser"]
["Area Nights Away Adviser - Nights Away - Campsite, Nights Away - Indoor","District Nights Away Adviser"]
["Area Nights Away Adviser - Nights Away - Greenfield","District Nights Away Adviser"]
["Area Nights Away Adviser - Nights Away - Greenfield, Nights Away - Campsite, Nights Away - Indoor","District Nights Away Adviser"]
["Area Nights Away Adviser - Nights Away - Greenfield, Nights Away - Indoor, Nights Away - Campsite","District Nights Away Adviser"]
["Area Nights Away Adviser - Nights Away - Indoor, Nights Away - Campsite, Nights Away - Greenfield","District Nights Away Adviser"]
["Area Nights Away Adviser - Nights Away - Indoor, Nights Away - Greenfield, Nights Away - Campsite","District Nights Away Adviser"]
["Area Nights Away Adviser - Nights Away - Lightweight Expedition","District Nights Away Adviser"]
["Area Nights Away Adviser - Nights Away - Lightweight Expedition, Nights Away - Greenfield","District Nights Away Adviser"]
["Area President","Area President"]
["Area Queens Scout Award Co-ordinator","Area Queens Scout Award Coordinator"]
["Area Safeguarding Adviser","Area Safeguarding Adviser"]
["Area Safeguarding Awareness Co-ordinator","Safeguarding Awareness Co-ordinator"]
["Area Safety Adviser","Area Safety Adviser"]
["Area Scout Active Support Co-ordinator","Scout Active Support Co‑ordinator"]
["Area Scout Active Support Manager","Scout Active Support Manager"]
["Area Scout Active Support Member","Scout Active Support member"]
["Area Scout Council Member"]
["Area Scout Network Commissioner","Assistant Area Commissioner - Scout Network Support"]
["Area Scout Network Member"]
["Area Scouter","Area Leader - Cub Support"]
["Area Secretary","Area Secretary"]
["Area Secretary - Camping","Area Secretary"]
["Area Skills Instructor","Area Skills Instructor"]
["Area Staff"]
["Area Sub-Committee Member","Area Sub-Committee Member"]
["Area Sub-Committee Member - Finance Committee","Area Sub-Committee Member"]
["Area Sub-Committee Member - Risk Committee","Area Sub-Committee Member"]
["Area Sub-Committee Member - Scout Grants Committee","Area Sub-Committee Member"]
["Area Supporter","Area Supporter"]
["Area Supporter of the Nights Away Permit Scheme","Area Supporter of the Nights Away Permit Scheme"]
["Area Trainer","Trainer"]
["Area Trainer - Executive Committees","Trainer"]
["Area Trainer - First Aid","Trainer"]
["Area Trainer - First Aid, Executive Committees, Leadership and Management","Trainer"]
["Area Trainer - First Aid, Leadership and Management","Trainer"]
["Area Trainer - Safeguarding Awareness","Trainer"]
["Area Training Administrator","Area Training Administrator"]
["Area Training Adviser","Training Adviser"]
["Area Training Adviser - Managers and Supporters","Training Adviser"]
["Area Training Adviser (BSO)","Training Adviser"]
["Area Training Adviser (BSO) - Managers and Supporters","Training Adviser"]
["Area Training Manager","Area Training Manager"]
["Area Treasurer","Area Treasurer"]
["Area Vice President","Area Vice President"]
["Area Youth Commissioner","Area Youth Commissioner"]
["Assistant Appointments Secretary","District Appointments Secretary"]
["Assistant Area Appointments Secretary","Area Appointments Secretary"]
["Assistant Beaver Scout Leader","Assistant Section Leader - Beavers"]
["Assistant Beaver Section Leader","Assistant Section Leader - Beavers"]
["Assistant Centre Manager","District Centre Manager"]
["Assistant Commissioner (Adult Training)","Assistant District Commissioner"]
["Assistant Commissioner (Section) - Scout Network","Assistant County Commissioner - Explorer Support"]
["Assistant County Appointments Secretary","County Appointments Secretary"]
["Assistant County Commissioner","Assistant County Commissioner - Beaver Support"]
["Assistant County Commissioner - Beaver Scouts","Assistant County Commissioner - Beaver Support"]
["Assistant County Commissioner (Activities)","Assistant County Commissioner - Activities"]
["Assistant County Commissioner (Section) - Beaver Scouts","Assistant County Commissioner - Beaver Support"]
["Assistant County Commissioner International","Assistant County Commissioner - International"]
["Assistant Cub Scout Leader","Assistant Section Leader - Cubs"]
["Assistant District Appointments Secretary","District Appointments Secretary"]
["Assistant District Appointments Secretary.","District Appointments Secretary"]
["Assistant District Commissioner - Activities","Assistant County Commissioner - Activities"]
["Assistant District Commissioner (Adult Support)","Assistant District Commissioner (Adult Training)"]
["Assistant District Commissioner (Scouts)","Assistant District Commissioner - Scout Section Support"]
["Assistant District Commissioner (Section Support)","Assistant District Commissioner - Scout Section Support"]
["Assistant District Commissioner (Section Support) - Beaver Scouts","Assistant District Commissioner - Beaver Section Support"]
["Assistant District Commissioner (Section Support) - Cub Scouts","Assistant District Commissioner - Cub Section Support"]
["Assistant District Commissioner (Section Support) - Explorer Scouts","Assistant District Commissioner - Scout Section Support"]
["Assistant District Commissioner (Section Support) - Explorer Scouts (Yng Leader)","Assistant District Commissioner - Scout Section Support"]
["Assistant District Commissioner (Section Support) - Scout Network","Assistant District Commissioner - Scout Section Support"]
["Assistant District Commissioner (Section Support) - Scouts","Assistant District Commissioner - Scout Section Support"]
["Assistant District Commissioner (Section Support) - Scouts, Explorer Scouts","Assistant District Commissioner - Scout Section Support"]
["Assistant District Commissioner (Section Support) - Scouts, Explorer Scouts, Scout Network","Assistant District Commissioner - Scout Section Support"]
["Assistant District Commissioner (Section Support) - Squirrel Scouts","Assistant District Commissioner - Beaver Section Support"]
["Assistant District Commissioner (Section Support) - Squirrel Scouts, Beaver Scouts","Assistant District Commissioner - Beaver Section Support"]
["Assistant District Commissioner (Section Support) - Squirrel Scouts, Beaver Scouts, Cub Scouts","Assistant District Commissioner - Beaver Section Support"]
["Assistant District Commissioner (Section)","Assistant District Commissioner - Scout Section Support"]
["Assistant District Commissioner (Section) - Beaver Scouts","Assistant District Commissioner - Beaver Section Support"]
["Assistant District Commissioner (Section) - Cub Scouts","Assistant District Commissioner - Cub Section Support"]
["Assistant District Commissioner (Section) - Cub Scouts, Beaver Scouts","Assistant District Commissioner - Cub Section Support"]
["Assistant District Commissioner (Section) - Explorer Scouts","Assistant District Commissioner - Cub Section Support"]
["Assistant District Commissioner (Section) - Explorer Scouts (Yng Leader)","Assistant District Commissioner - Cub Section Support"]
["Assistant District Commissioner (Section) - Explorer Scouts, Scouts","Assistant District Commissioner - Cub Section Support"]
["Assistant District Commissioner (Section) - Scout Network","Assistant District Commissioner - Scout Section Support"]
["Assistant District Commissioner (Section) - Scouts","Assistant District Commissioner - Scout Section Support"]
["Assistant District Treasurer","District Treasurer"]
["Assistant Explorer Scout Leader","Assistant Section Leader - Explorers"]
["Assistant Group Scout Leader","Deputy Group Scout Leader"]
["Assistant Group Scout Leader - Adult Support","Deputy Group Scout Leader"]
["Assistant Group Scout Leader - Adult Support, Programme","Deputy Group Scout Leader"]
["Assistant Group Scout Leader - Scouts","Deputy Group Scout Leader"]
["Assistant Group Scout Leader - Support","Deputy Group Scout Leader"]
["Assistant Group Scout Leader (Cubs & Special Duties)","Deputy Group Scout Leader"]
["Assistant Group Scout Leader (Scouts)","Deputy Group Scout Leader"]
["Assistant Group Scout Leader,","Deputy Group Scout Leader"]
["Assistant Group Scout Leader.","Deputy Group Scout Leader"]
["Assistant Leader","Assistant Section Leader - Cubs"]
["Assistant Leader - Beaver Scouts","Assistant Section Leader - Beavers"]
["Assistant Leader Cub Scouts","Assistant Section Leader - Cubs"]
["Assistant Manager, Auchengillan","Regional (Scotland) Centre Manager"]
["Assistant Regional Commissioner (Growth)","Assistant Regional Commissioner Growth (Scotland)"]
["Assistant Regional Commissioner (Training)","Assistant Regional Commissioner (Adult Training)"]
["Assistant Scout Leader","Assistant Section Leader - Scouts"]
["Assistant Section Leader","Assistant Section Leader - Cubs"]
["Assistant Section Leader - Beaver Scouts","Assistant Section Leader - Beavers"]
["Assistant Section Leader - Beaver Scouts, Cub Scouts","Assistant Section Leader - Beavers"]
["Assistant Section Leader - Beaver Scouts, Cub Scouts, Scouts","Assistant Section Leader - Beavers"]
["Assistant Section Leader - Beaver Scouts, Cub Scouts, Scouts, Explorer Scouts","Assistant Section Leader - Scouts"]
["Assistant Section Leader - Beaver Scouts, Scout Network","Assistant Section Leader - Beavers"]
["Assistant Section Leader - Beaver Scouts, Scouts","Assistant Section Leader - Beavers"]
["Assistant Section Leader - Beaver Scouts, Scouts, Cub Scouts","Assistant Section Leader - Beavers"]
["Assistant Section Leader - Beaver Scouts, Squirrel Scouts","Assistant Section Leader - Beavers"]
["Assistant Section Leader - Beaver Scouts.","Assistant Section Leader - Beavers"]
["Assistant Section Leader - Cub Scouts","Assistant Section Leader - Cubs"]
["Assistant Section Leader - Cub Scouts , Beaver Scouts","Assistant Section Leader - Cubs"]
["Assistant Section Leader - Cub Scouts Oakwood (Tuesdays)","Assistant Section Leader - Cubs"]
["Assistant Section Leader - Cub Scouts, 541271","Assistant Section Leader - Cubs"]
["Assistant Section Leader - Cub Scouts, Beaver Scouts","Assistant Section Leader - Cubs"]
["Assistant Section Leader - Cub Scouts, Beaver Scouts, Scouts","Assistant Section Leader - Cubs"]
["Assistant Section Leader - Cub Scouts, Explorer Scouts","Assistant Section Leader - Cubs"]
["Assistant Section Leader - Cub Scouts, Scout Network","Assistant Section Leader - Cubs"]
["Assistant Section Leader - Cub Scouts, Scouts","Assistant Section Leader - Cubs"]
["Assistant Section Leader - Cub Scouts, Scouts, Beaver Scouts","Assistant Section Leader - Scouts"]
["Assistant Section Leader - Cub Scouts, Squirrel Scouts","Assistant Section Leader - Cubs"]
["Assistant Section Leader - Cub Scouts.","Assistant Section Leader - Cubs"]
["Assistant Section Leader - Cubs","Assistant Section Leader - Cubs"]
["Assistant Section Leader - Cubs Scouts","Assistant Section Leader - Cubs"]
["Assistant Section Leader - Explorer Scouts","Assistant Section Leader - Explorers"]
["Assistant Section Leader - Explorer Scouts (Yng Leader)","Assistant Section Leader - Explorers"]
["Assistant Section Leader - Explorer Scouts (Yng Leader), Explorer Scouts","Assistant Section Leader - Explorers"]
["Assistant Section Leader - Explorer Scouts (Yng Leader), Scout Network","Assistant Section Leader - Explorers"]
["Assistant Section Leader - Explorer Scouts Titan","Assistant Section Leader - Explorers"]
["Assistant Section Leader - Explorer Scouts, Cub Scouts","Assistant Section Leader - Explorers"]
["Assistant Section Leader - Explorer Scouts, Explorer Scouts (Yng Leader)","Assistant Section Leader - Explorers"]
["Assistant Section Leader - Explorer Scouts, Scout Network","Assistant Section Leader - Explorers"]
["Assistant Section Leader - Explorer Scouts, Scouts","Assistant Section Leader - Explorers"]
["Assistant Section Leader - Explorer Scouts, Scouts, Beaver Scouts","Assistant Section Leader - Scouts"]
["Assistant Section Leader - Explorer Scouts.","Assistant Section Leader - Explorers"]
["Assistant Section Leader - Explorers","Assistant Section Leader - Explorers"]
["Assistant Section Leader - Scout","Assistant Section Leader - Scouts"]
["Assistant Section Leader - Scout Network","Assistant Section Leader - Scouts"]
["Assistant Section Leader - Scouts","Assistant Section Leader - Scouts"]
["Assistant Section Leader - Scouts, Beaver Scouts","Assistant Section Leader - Scouts"]
["Assistant Section Leader - Scouts, Beaver Scouts, Explorer Scouts","Assistant Section Leader - Scouts"]
["Assistant Section Leader - Scouts, Cub Scouts","Assistant Section Leader - Scouts"]
["Assistant Section Leader - Scouts, Cub Scouts, Beaver Scouts","Assistant Section Leader - Scouts"]
["Assistant Section Leader - Scouts, Explorer Scouts","Assistant Section Leader - Scouts"]
["Assistant Section Leader - Scouts, Explorer Scouts (Yng Leader)","Assistant Section Leader - Scouts"]
["Assistant Section Leader - Scouts, Explorer Scouts, Cub Scouts","Assistant Section Leader - Scouts"]
["Assistant Section Leader - Scouts, Scout Network","Assistant Section Leader - Scouts"]
["Assistant Section Leader - Scouts, Squirrel Scouts","Assistant Section Leader - Scouts"]
["Assistant Section Leader - Scouts.","Assistant Section Leader - Scouts"]
["Assistant Section Leader - Sea Scouts","Assistant Section Leader - Scouts"]
["Assistant Section Leader - Squirrel Scouts","Assistant Section Leader - Beavers"]
["Assistant Section Leader - Squirrel Scouts, Beaver Scouts","Assistant Section Leader - Beavers"]
["Assistant Section Leader - Squirrel Scouts, Cub Scouts","Assistant Section Leader - Beavers"]
["Assistant Section Leader - Squirrel Scouts, Explorer Scouts","Assistant Section Leader - Explorers"]
["Assistant Section Leader - V4 Explorer Scouts","Assistant Section Leader - Scouts"]
["Assistant Section Leader.","Assistant Section Leader - Scouts"]
["Assistant Squirrel Leader","Assistant Section Leader - Cubs"]
["Assistant UK Commissioner for People (Learning)","Assistant Country Commissioner - Beaver Support"]
["Assistant UK Commissioner for People (Volunteer Journey)","Assistant Country Commissioner - Beaver Support"]
["Assistant UK Commissioner for Programme (Community Impact)","Assistant Country Commissioner - Beaver Support"]
["Assistant Unit Leader","Assistant Unit Leader"]
["Assistant Unit Leader - European Jamboree 2020","Assistant Unit Leader"]
["Assistant Unit Leader - Girlguiding","Assistant Unit Leader"]
["Assistant Unit Leader - World Scout Jamboree 2019","Assistant Unit Leader"]
["Assistant Unit Leader - World Scout Jamboree 2023","Assistant Unit Leader"]
["Assistant Unit Leader - World Scout Jamboree 2023, Girlguiding","Assistant Unit Leader"]
["Assistant Unit Leader-European Jamboree 2020","Assistant Unit Leader"]
["Award Certificate Recipient"]
["Awards Advisory Group Member","County Awards Advisory Group Member"]
["Badge Secretary","District Badge Secretary"]
["Bailiwick Commissioner","Bailiwick Commissioner"]
["Band Instructor","District Skills Instructor"]
["Band Instructor and Adviser","District Skills Instructor"]
["Beaver Scout Leader","Section Leader - Beavers"]
["Branch Chief Scout","Chief Scout"]
["Branch Commissioner","Chief Commissioner (Branch)"]
["Branch Supporter","District Supporter"]
["BSO Appointments Advisory Committee Member","Area Appointment Advisory Committee Member"]
["BSO Appointments Chair","Area Appointments Chair"]
["BSO Appointments Secretary","Area Appointments Secretary"]
["BSO Assessor","Area Assessor"]
["BSO Assessor - Dinghy Sailing - A Waters, Power Boating - A Waters","Area Assessor"]
["BSO Assessor - Dinghy Sailing - B3 Waters, Power Boating - B3 Waters","Area Assessor"]
["BSO Assessor - Power Boating - B3 Waters, Dinghy Sailing - B3 Waters, Keelboating - B1 Waters","Area Assessor"]
["BSO Assistant Commissioner","Assistant Area Commissioner - Activities"]
["BSO Assistant Commissioner - Activities","Assistant Area Commissioner - Activities"]
["BSO Assistant Commissioner - Development, Growth","Assistant Area Commissioner - Activities"]
["BSO Assistant Commissioner - Events","Assistant Area Commissioner - Activities"]
["BSO Assistant Commissioner - Inclusion","Assistant Area Commissioner - Activities"]
["BSO Assistant Commissioner (Section Support) - Scout Network","Assistant Area Commissioner - Activities"]
["BSO Award Certificate Recipient","Assistant Area Commissioner - Cub Support"]
["BSO Camp Warden","Area Camp Warden"]
["BSO Chair","Area Chair"]
["BSO Communications Manager","Area Communications Manager"]
["BSO Communications Manager - Communications","Area Communications Manager"]
["BSO Deputy Commissioner","Deputy Area Commissioner"]
["BSO Deputy Commissioner - Programme","Deputy Area Commissioner"]
["BSO Executive Committee Member","Area Executive Member"]
["BSO Leader","Area Leader - Cub Support"]
["BSO Leader - Squirrel Scouts","Area Leader - Beaver Support"]
["BSO Local Training Manager","Local Training Manager"]
["BSO Manager of the Activity Permit Scheme","Area Manager of the Activity Permit Scheme"]
["BSO Nights Away Adviser - Nights Away - Campsite, Nights Away - Greenfield","District Nights Away Adviser"]
["BSO Nights Away Adviser - Nights Away - Greenfield","District Nights Away Adviser"]
["BSO Occasional Helper"]
["BSO President","Area President"]
["BSO Queens Scout Award Co-ordinator","Area Queens Scout Award Coordinator"]
["BSO Safeguarding Adviser","Area Safeguarding Adviser"]
["BSO Scout Council Member"]
["BSO Scout Network Member"]
["BSO Scouter - Explorer Scouts","Area Leader - Explorer Support"]
["BSO Skills Instructor","District Skills Instructor"]
["BSO Supporter","Area Supporter"]
["BSO Supporter of the Nights Away Permit Scheme","Area Supporter of the Nights Away Permit Scheme"]
["BSO Trainer","Trainer"]
["BSO Trainer - Executive Committees","Trainer"]
["BSO Trainer - First Aid","Trainer"]
["BSO Trainer - Leadership and Management","Trainer"]
["BSO Training Administrator","Area Training Administrator"]
["BSO Training Manager","Area Training Manager"]
["BSO Vice President","Area Vice President"]
["Carmarthen Scout Hall Bookings Secretary","Group Administrator"]
["Chair - Fundraising Development Board","District Sub-Committee Member"]
["Chair District Youth Advisory Group"]
["Chair Regional Youth Advisory Group"]
["Chair Scottish Youth Advisory Group"]
["Chair, Development Grants Committee"]
["Chairman","Group Chair"]
["Chief Commissioner","Chief Commissioner"]
["Chief Commissioner Antigua and Barbuda","Chief Commissioner"]
["Chief Commissioner of England","Chief Commissioner"]
["Chief Commissioner of Scotland","Chief Commissioner"]
["Chief Scout","Chief Scout"]
["Colony Assistant","Section Assistant - Beavers"]
["Commissioner Wales Adult Training","Commissioner Wales Adult Training"]
["Committee Member","Committee member"]
["Committee Member - Sub Committee Treasurer","Committee member"]
["Contingent Coordination Team European Jamboree 2020","Contingent Management Team Member"]
["Contingent Leader","Unit Leader"]
["Contingent Leader - World Scout Jamboree 2023","Unit Leader"]
["Contingent Leader - World Scout Moot 2021","Unit Leader"]
["Contingent Management Team Member - World Scout Moot 2021","Contingent Management Team Member"]
["Contingent Management Team Member (Data Management & IT) - World Scout Jamboree 2023","Contingent Management Team Member"]
["Contingent Management Team Member (Engaging the Movement, Legacy) - World Scout Jamboree 2023","Contingent Management Team Member"]
["Contingent Management Team Member (External Communications) - World Scout Jamboree 2023","Contingent Management Team Member"]
["Contingent Management Team Member (Internal Communications) - World Scout Jamboree 2023","Contingent Management Team Member"]
["Contingent Management Team Member (IST Support) - World Scout Jamboree 2023","Contingent Management Team Member"]
["Contingent Management Team Member (Personal Development) - World Scout Jamboree 2023","Contingent Management Team Member"]
["Contingent Management Team Member (Physical & Mental Health, Inclusion) - World Scout Jamboree 2","Contingent Management Team Member"]
["Contingent Management Team Member (Pre-Post Event) - World Scout Jamboree 2023","Contingent Management Team Member"]
["Contingent Management Team Member (Project Management) - World Scout Jamboree 2023","Contingent Management Team Member"]
["Contingent Management Team Member (Travel & Logistics) - World Scout Jamboree 2023","Contingent Management Team Member"]
["Contingent Management Team Member (Unit Support) - World Scout Jamboree 2023","Contingent Management Team Member"]
["Contingent Management Team Member (Youth Shaped) - World Scout Jamboree 2023","Contingent Management Team Member"]
["Contingent Management Team Member Equipment & OnSite Logistics) - World Scout Jamboree 2023","Contingent Management Team Member"]
["Contingent Support Team Member - World Scout Jamboree 2023","Contingent Support Team Member"]
["Contingent Support Team Member - World Scout Jamboree 2023 , Girlguiding","Contingent Support Team Member"]
["Contingent Support Team Member - World Scout Jamboree 2023, Girlguiding","Contingent Support Team Member"]
["Country Administrator","HQ Administrator"]
["Country Adviser - Activities","Country Adviser"]
["Country Adviser - Air Activities","Country Adviser"]
["Country Adviser - Archery","Country Adviser"]
["Country Adviser - Canoeing","Country Adviser"]
["Country Adviser - Caving","Country Adviser"]
["Country Adviser - Climbing","Country Adviser"]
["Country Adviser - Development","Country Adviser"]
["Country Adviser - Duke of Edinburgh's Award","Country Adviser"]
["Country Adviser - Health and Safety","Country Adviser"]
["Country Adviser - Inclusion","Country Adviser"]
["Country Adviser - Mountain Activities","Country Adviser"]
["Country Adviser - Orienteering","Country Adviser"]
["Country Adviser - Shooting","Country Adviser"]
["Country Adviser - Staged Performances","Country Adviser"]
["Country Adviser - Technology","Country Adviser"]
["Country Adviser - Water Activities","Country Adviser"]
["Country Appointments Advisory Committee Member","Country Appointment Advisory Committee Member"]
["Country Appointments Chair","Country Appointments Chair"]
["Country Appointments Secretary","Country Appointments Secretary"]
["Country Assessor","Country Assessor"]
["Country Assessor - Archery - With Compound Bows","Country Assessor"]
["Country Assessor - Archery - Without Compound Bows","Country Assessor"]
["Country Assessor - Bell Boating - B1 Waters","Country Assessor"]
["Country Assessor - Bell Boating - B2+ Waters","Country Assessor"]
["Country Assessor - Canoeing - Open Inland B1 Waters","Country Assessor"]
["Country Assessor - Canoeing - Open Inland B2 Waters","Country Assessor"]
["Country Assessor - Canoeing - River B1 Waters","Country Assessor"]
["Country Assessor - Canoeing - River B2 Waters","Country Assessor"]
["Country Assessor - Canoeing - Sea B1 Waters","Country Assessor"]
["Country Assessor - Climbing and Abseiling - Artifical Lead Climbing","Country Assessor"]
["Country Assessor - Climbing and Abseiling - Artifical Top Rope","Country Assessor"]
["Country Assessor - Climbing and Abseiling - Natural Lead Climbing","Country Assessor"]
["Country Assessor - Climbing and Abseiling - Natural Top Rope","Country Assessor"]
["Country Assessor - Dinghy Sailing - A Waters","Country Assessor"]
["Country Assessor - Dinghy Sailing - B2 Waters","Country Assessor"]
["Country Assessor - Hill Walking - Terrain 1 Summer","Country Assessor"]
["Country Assessor - Hill Walking - Terrain 1 Summer, Hill Walking - Terrain 2 Summer","Country Assessor"]
["Country Assessor - Hill Walking - Terrain 1 Summer, Hill Walking - Terrain 2 Summer, Canoeing - Open","Country Assessor"]
["Country Assessor - Hill Walking - Terrain 2 Summer","Country Assessor"]
["Country Assessor - Kayaking - Open Inland A Waters","Country Assessor"]
["Country Assessor - Kayaking - Open Inland B1 Waters","Country Assessor"]
["Country Assessor - Kayaking - Open Inland B1 Waters, Rafting (Traditional) - B1 Waters","Country Assessor"]
["Country Assessor - Kayaking - Open Inland B2 Waters","Country Assessor"]
["Country Assessor - Kayaking - Open Inland B3 Waters","Country Assessor"]
["Country Assessor - Kayaking - River A Waters","Country Assessor"]
["Country Assessor - Kayaking - River B1 Waters","Country Assessor"]
["Country Assessor - Kayaking - River B2 Waters","Country Assessor"]
["Country Assessor - Kayaking - River B3 Waters","Country Assessor"]
["Country Assessor - Kayaking - Sea B1 Waters","Country Assessor"]
["Country Assessor - Kayaking - Sea B2 Waters","Country Assessor"]
["Country Assessor - Power Boating - B1 Waters","Country Assessor"]
["Country Assessor - Power Boating - B2 Waters","Country Assessor"]
["Country Assessor - Power Boating - C Waters","Country Assessor"]
["Country Assessor - Rafting (Traditional) - B1 Waters","Country Assessor"]
["Country Assessor - Rafting (Traditional) - B2+ Waters","Country Assessor"]
["Country Assessor - Stand Up Paddleboarding - Open Inland B1 waters","Country Assessor"]
["Country Assessor - Stand Up Paddleboarding - Open Inland B2 waters","Country Assessor"]
["Country Assessor - Stand Up Paddleboarding - River B1 waters","Country Assessor"]
["Country Assessor - Stand Up Paddleboarding - Sea A waters","Country Assessor"]
["Country Assessor - Stand Up Paddleboarding - Sea B1 waters","Country Assessor"]
["Country Assessor - Stand Up Paddleboarding - Sea B2 waters","Country Assessor"]
["Country Assessor - Stand Up Paddleboarding - Surf A waters","Country Assessor"]
["Country Assessor - Stand Up Paddleboarding - Surf B2 waters","Country Assessor"]
["Country Assistant Commissioner","Assistant Country Commissioner - Cub Support"]
["Country Assistant Commissioner - Activities","Assistant Country Commissioner - Cub Support"]
["Country Assistant Commissioner - Adult Support","Assistant Country Commissioner - Cub Support"]
["Country Assistant Commissioner - Governance Support","Assistant Country Commissioner - Cub Support"]
["Country Assistant Commissioner - Growth","Assistant Country Commissioner - Cub Support"]
["Country Assistant Commissioner - Inclusion","Assistant Country Commissioner - Cub Support"]
["Country Assistant Commissioner - Programme","Assistant Country Commissioner - Cub Support"]
["Country Assistant Commissioner - Scout Active Support","Assistant Country Commissioner - Cub Support"]
["Country Assistant Commissioner - Support","Assistant Country Commissioner - Cub Support"]
["Country Assistant Commissioner - Youth Involvement","Assistant Country Commissioner - Cub Support"]
["Country Assistant Commissioner (International)","Assistant Country Commissioner - International"]
["Country Assistant Commissioner (Section) - Beaver Scouts","Assistant Country Commissioner - Cub Support"]
["Country Assistant Commissioner (Section) - Cub Scouts","Assistant Country Commissioner - Cub Support"]
["Country Assistant Commissioner (Section) - Explorer Scouts","Assistant Country Commissioner - Cub Support"]
["Country Assistant Commissioner (Section) - Scout Network","Assistant Country Commissioner - Cub Support"]
["Country Assistant Commissioner (Section) - Scouts","Assistant Country Commissioner - Cub Support"]
["Country Assistant Commissioner (Section) - Squirrel Scouts","Assistant Country Commissioner - Beaver Support"]
["Country Camp Warden","Country Camp Warden"]
["Country Centre Manager","Country Centre Manager"]
["Country Chair","Country Chair"]
["Country Chaplain","Country Chaplain"]
["Country Commissioner","Assistant Country Commissioner - Cub Support"]
["Country Commissioner - Programme","Assistant Country Commissioner - Cub Support"]
["Country Commissioner (Acting)","Assistant Country Commissioner - Cub Support"]
["Country Commissioner (Adult Training)","Assistant Country Commissioner - Cub Support"]
["Country Deputy Chair","Deputy Country Chair"]
["Country Deputy Commissioner - Adult Support","Assistant Country Commissioner - Cub Support"]
["Country Deputy Commissioner - International","Assistant Country Commissioner - Cub Support"]
["Country Deputy Commissioner - Programme","Assistant Country Commissioner - Cub Support"]
["Country Deputy Commissioner - Scout Network","Assistant Country Commissioner - Cub Support"]
["Country Executive Committee Member","Country Executive Committee Member"]
["Country Executive Committee Member - Nominated Member","Country Executive Committee Member"]
["Country HQ Administrator","HQ Administrator"]
["Country HQ Administrator - Assistant Secretary","HQ Administrator"]
["Country Local Development Officer"]
["Country Local Training Manager","Local Training Manager"]
["Country Manager of the Activity Permit Scheme","County Manager of the Activity Permit Scheme"]
["Country Occasional Helper"]
["Country President","Country President"]
["Country Safeguarding Adviser","Area Safeguarding Adviser"]
["Country Safeguarding Awareness Co-ordinator","Safeguarding Awareness Co-ordinator"]
["Country Safety Adviser","County Safety Adviser"]
["Country Scout Active Support Co-ordinator","Scout Active Support Co‑ordinator"]
["Country Scout Active Support Co-ordinator.","Scout Active Support Co‑ordinator"]
["Country Scout Active Support Manager","Scout Active Support Manager"]
["Country Scout Active Support Manager.","Scout Active Support Manager"]
["Country Scout Active Support Member","Scout Active Support member"]
["Country Scout Active Support Member - Camping Space","Scout Active Support member"]
["Country Scout Active Support Member - Fordell Firs","Scout Active Support member"]
["Country Scout Council Member"]
["Country Scout Council Member - Ex-Officio Member"]
["Country Scout Council Member - Nominated Member"]
["Country Scout Council Member - Nominated Member (18-24)"]
["Country Scout Council Member - Nominated Member, Ex-Officio Member"]
["Country Scout Council Member - Nominated Member, Nominated Member (18-24)"]
["Country Scout Council Member - Nominated Representative"]
["Country Scout Network Administrator","HQ Administrator"]
["Country Scouter","County Leader"]
["Country Secretary","County Secretary"]
["Country Staff"]
["Country Staff - Activity Centre"]
["Country Sub-Committee Member","Country Sub-Committee Member"]
["Country Supporter","County Supporter"]
["Country Trainer","Trainer"]
["Country Trainer - Executive Committees","Trainer"]
["Country Trainer - Executive Committees, First Aid","Trainer"]
["Country Trainer - Executive Committees, Leadership and Management, Safeguarding Awareness","Trainer"]
["Country Trainer - First Aid","Trainer"]
["Country Trainer - Leadership and Management","Trainer"]
["Country Trainer - Leadership and Management,","Trainer"]
["Country Trainer - Leadership and Management, Safeguarding Awareness","Trainer"]
["Country Trainer - Safeguarding Awareness","Trainer"]
["Country Training Administrator","County Training Administrator"]
["Country Training Adviser","Training Adviser"]
["Country Training Adviser - Managers and Supporters","Training Adviser"]
["Country Training Manager","County Training Manager"]
["Country Treasurer","Country Treasurer"]
["Country Vice President","Country Vice President"]
["Country Volunteer","Country Volunteer"]
["Country Volunteer - Additional Needs Support Team – Scotland","Country Volunteer"]
["Country Volunteer - Adult Training Support Team – Scotland","Country Volunteer"]
["Country Volunteer - Beaver Scout Support Team - Scotland","Country Volunteer"]
["Country Volunteer - Community Impact Group","Country Volunteer"]
["Country Volunteer - Community Impact Support Team – Scotland","Country Volunteer"]
["Country Volunteer - Cub Scout Support Team – Scotland","Country Volunteer"]
["Country Volunteer - Explorer Scout Support Team – Scotland","Country Volunteer"]
["Country Volunteer - Gender Support Team – Scotland","Country Volunteer"]
["Country Volunteer - Growth Support Team –Scotland","Country Volunteer"]
["Country Volunteer - International Support Team – Scotland","Country Volunteer"]
["Country Volunteer - LGBTI Support Team – Scotland","Country Volunteer"]
["Country Volunteer - Outdoors and Adventure Support Team – Scotland","Country Volunteer"]
["Country Volunteer - Scotland","Country Volunteer"]
["Country Volunteer - Scout Network Support Team – Scotland","Country Volunteer"]
["Country Volunteer - Scout Support Team – Scotland","Country Volunteer"]
["Country Youth Commissioner","Country Youth Commissioner"]
["County Administrator","County Administrator"]
["County Administrator - Assistant Secretary","County Administrator"]
["County Adviser","County Adviser"]
["County Adviser - Activities","County Adviser"]
["County Adviser - Activities, Land Activities","County Adviser"]
["County Adviser - Activities, Mountain Activities","County Adviser"]
["County Adviser - Additional Needs","County Adviser"]
["County Adviser - Adult Training","County Adviser"]
["County Adviser - Air Activities","County Adviser"]
["County Adviser - Archery","County Adviser"]
["County Adviser - Bands","County Adviser"]
["County Adviser - Bannerman","County Adviser"]
["County Adviser - Canoeing","County Adviser"]
["County Adviser - Canoeing, Water Activities","County Adviser"]
["County Adviser - Caving","County Adviser"]
["County Adviser - Climbing","County Adviser"]
["County Adviser - Climbing, Mountain Activities","County Adviser"]
["County Adviser - Creative Activities","County Adviser"]
["County Adviser - Development","County Adviser"]
["County Adviser - Duke of Edinburgh's Award","County Adviser"]
["County Adviser - Faiths & Beliefs","County Adviser"]
["County Adviser - Health and Safety","County Adviser"]
["County Adviser - Inclusion","County Adviser"]
["County Adviser - Inclusion, Special Needs","County Adviser"]
["County Adviser - International","County Adviser"]
["County Adviser - Land Activities","County Adviser"]
["County Adviser - Land Activities, Mountain Activities","County Adviser"]
["County Adviser - Media Team","County Adviser"]
["County Adviser - Minibus","County Adviser"]
["County Adviser - Mountain Activities","County Adviser"]
["County Adviser - Mountain Activities, Climbing","County Adviser"]
["County Adviser - Orienteering","County Adviser"]
["County Adviser - Shooting","County Adviser"]
["County Adviser - Snowsports","County Adviser"]
["County Adviser - Special Needs","County Adviser"]
["County Adviser - Staged Performances","County Adviser"]
["County Adviser - Technical","County Adviser"]
["County Adviser - Technology","County Adviser"]
["County Adviser - Water Activities","County Adviser"]
["County Adviser - Young Leaders","County Adviser"]
["County Appointments Advisery Committee Member","County Appointment Advisory Committee Member"]
["County Appointments Advisory Committee Member","County Appointment Advisory Committee Member"]
["County Appointments Chair","County Appointments Chair"]
["County Appointments Secretary","County Appointments Secretary"]
["County Assessor","County Assessor"]
["County Assessor - Archery - With Compound Bows","County Assessor"]
["County Assessor - Archery - Without Compound Bows","County Assessor"]
["County Assessor - Archery - Without Compound Bows, Archery - With Compound Bows","County Assessor"]
["County Assessor - Archery - Without Compound Bows, Canoeing - Open Inland B1 Waters, Kayaking - Open","County Assessor"]
["County Assessor - Archery - Without Compound Bows, Climbing and Abseiling - Natural Top Rope","County Assessor"]
["County Assessor - Archery - Without Compound Bows, Rafting (Traditional) - B1 Waters","County Assessor"]
["County Assessor - Bell Boating","County Assessor"]
["County Assessor - Bell Boating - B1 Waters","County Assessor"]
["County Assessor - Bell Boating - B1 Waters, Bell Boating - B2+ Waters","County Assessor"]
["County Assessor - Bell Boating - B1 Waters, Bell Boating - B2+ Waters, Canoeing - River B1 Waters","County Assessor"]
["County Assessor - Bell Boating - B2+ Waters","County Assessor"]
["County Assessor - Canoeing","County Assessor"]
["County Assessor - Canoeing - Open Inland A Waters","County Assessor"]
["County Assessor - Canoeing - Open Inland A Waters, Canoeing - Open Inland B2 Waters","County Assessor"]
["County Assessor - Canoeing - Open Inland B1 Waters","County Assessor"]
["County Assessor - Canoeing - Open Inland B1 Waters, Canoeing - River B1 Waters","County Assessor"]
["County Assessor - Canoeing - Open Inland B1 Waters, Kayaking - Open Inland B1 Waters","County Assessor"]
["County Assessor - Canoeing - Open Inland B2 Waters","County Assessor"]
["County Assessor - Canoeing - Open Inland B2 Waters, Hill Walking - Terrain 2 Summer","County Assessor"]
["County Assessor - Canoeing - Open Inland B2 Waters, Kayaking - Open Inland B2 Waters","County Assessor"]
["County Assessor - Canoeing - Open Inland B2 Waters, Kayaking - Open Inland B3 Waters","County Assessor"]
["County Assessor - Canoeing - Open Inland B3 Waters","County Assessor"]
["County Assessor - Canoeing - River A Waters","County Assessor"]
["County Assessor - Canoeing - River B1 Waters","County Assessor"]
["County Assessor - Canoeing - River B1 Waters, Canoeing - Open Inland B1 Waters","County Assessor"]
["County Assessor - Canoeing - River B1 Waters, Kayaking - River B1 Waters","County Assessor"]
["County Assessor - Canoeing - River B2 Waters","County Assessor"]
["County Assessor - Canoeing - River B2 Waters, Canoeing - Open Inland B1 Waters","County Assessor"]
["County Assessor - Canoeing - River B2 Waters, Canoeing - Open Inland B2 Waters","County Assessor"]
["County Assessor - Canoeing - River B2 Waters, Kayaking - River B2 Waters","County Assessor"]
["County Assessor - Canoeing - River B3 Waters","County Assessor"]
["County Assessor - Canoeing - River B3 Waters, Canoeing - Open Inland B3 Waters","County Assessor"]
["County Assessor - Canoeing - Sea A Waters","County Assessor"]
["County Assessor - Canoeing - Sea B1 Waters","County Assessor"]
["County Assessor - Canoeing - Sea B1 Waters, Canoeing - River A Waters","County Assessor"]
["County Assessor - Canoeing - Sea B1 Waters, Canoeing - River B1 Waters","County Assessor"]
["County Assessor - Canoeing - Sea B1 Waters, Kayaking - Sea B1 Waters","County Assessor"]
["County Assessor - Canoeing - Sea B2 Waters","County Assessor"]
["County Assessor - Canoeing - Sea B3 Waters","County Assessor"]
["County Assessor - Canoeing - Surf B2 Waters","County Assessor"]
["County Assessor - Canoeing - Surf B2 Waters, Kayaking - Surf B2 Waters","County Assessor"]
["County Assessor - Canoeing and Kayaking","County Assessor"]
["County Assessor - Caving - No Vertical Pitches","County Assessor"]
["County Assessor - Caving - With Ladders","County Assessor"]
["County Assessor - Caving - With SRT for the Group","County Assessor"]
["County Assessor - Caving - With SRT for the Leader","County Assessor"]
["County Assessor - Caving - With SRT for the Leader, Caving - With SRT for the Group","County Assessor"]
["County Assessor - Caving - With SRT for the Leader, Mine Exploration - With SRT for the Leader","County Assessor"]
["County Assessor - Climbing (Single Pitch) - Top Rope","County Assessor"]
["County Assessor - Climbing and Abseiling - Artifical Lead Climbing","County Assessor"]
["County Assessor - Climbing and Abseiling - Artifical Top Rope","County Assessor"]
["County Assessor - Climbing and Abseiling - Multipitch Climbing","County Assessor"]
["County Assessor - Climbing and Abseiling - Natural Lead Climbing","County Assessor"]
["County Assessor - Climbing and Abseiling - Natural Lead Climbing, Climbing and Abseiling - Artifical","County Assessor"]
["County Assessor - Climbing and Abseiling - Natural Lead Climbing, Hill Walking - Terrain 2 Summer","County Assessor"]
["County Assessor - Climbing and Abseiling - Natural Top Rope","County Assessor"]
["County Assessor - Climbing and Abseiling - Natural Top Rope, Hill Walking - Terrain 2 Summer","County Assessor"]
["County Assessor - Climbing and Abseiling (Single Pitch)","County Assessor"]
["County Assessor - Climbing and Abseiling (Single Pitch) - Top Rope","County Assessor"]
["County Assessor - D of E","County Assessor"]
["County Assessor - Dinghy Sailing","County Assessor"]
["County Assessor - Dinghy Sailing - A Waters","County Assessor"]
["County Assessor - Dinghy Sailing - A Waters, Keelboating - A Waters, Power Boating - A Waters","County Assessor"]
["County Assessor - Dinghy Sailing - A Waters, Power Boating - B2 Waters","County Assessor"]
["County Assessor - Dinghy Sailing - B1 Waters","County Assessor"]
["County Assessor - Dinghy Sailing - B1 Waters, Dinghy Sailing - B2 Waters","County Assessor"]
["County Assessor - Dinghy Sailing - B1 Waters, Power Boating - B2 Waters","County Assessor"]
["County Assessor - Dinghy Sailing - B2 Waters","County Assessor"]
["County Assessor - Dinghy Sailing - B2 Waters, Dinghy Sailing - A Waters","County Assessor"]
["County Assessor - Dinghy Sailing - B2 Waters, Dinghy Sailing - B1 Waters","County Assessor"]
["County Assessor - Dinghy Sailing - B3 Waters","County Assessor"]
["County Assessor - Dinghy Sailing - B3 Waters , Power Boating - B3 Waters","County Assessor"]
["County Assessor - Dinghy Sailing - B3 Waters, Dinghy Sailing - A Waters","County Assessor"]
["County Assessor - Dinghy Sailing - B3 Waters, Power Boating - B3 Waters","County Assessor"]
["County Assessor - Dragon Boating","County Assessor"]
["County Assessor - Dragon Boating - B2+ Waters","County Assessor"]
["County Assessor - Gang Shows","County Assessor"]
["County Assessor - Hill Walking - Terrain 1 Summer","County Assessor"]
["County Assessor - Hill Walking - Terrain 1 Summer , Hill Walking - Terrain 2 Summer","County Assessor"]
["County Assessor - Hill Walking - Terrain 1 Summer, Hill Walking - Terrain 2 Summer","County Assessor"]
["County Assessor - Hill Walking - Terrain 1 Winter","County Assessor"]
["County Assessor - Hill Walking - Terrain 2 Summer","County Assessor"]
["County Assessor - Hill Walking - Terrain 2 Summer, Archery - With Compound Bows","County Assessor"]
["County Assessor - Hill Walking - Terrain 2 Summer, Climbing and Abseiling - Artifical Top Rope","County Assessor"]
["County Assessor - Hill Walking - Terrain 2 Summer, Climbing and Abseiling - Natural Lead Climbing","County Assessor"]
["County Assessor - Hill Walking - Terrain 2 Summer, Hill Walking - Terrain 1 Summer","County Assessor"]
["County Assessor - Hill Walking - Terrain 2 Summer, Hill Walking - Terrain 2 Winter","County Assessor"]
["County Assessor - Hill Walking - Terrain 2 Winter","County Assessor"]
["County Assessor - Hill Walking - Terrain 2 Winter, Climbing and Abseiling - Natural Lead Climbing","County Assessor"]
["County Assessor - Hill Walking - Terrain 2 Winter, Hill Walking - Terrain 2 Summer","County Assessor"]
["County Assessor - Hillwalking","County Assessor"]
["County Assessor - Hillwalking - Terrain 2 Summer","County Assessor"]
["County Assessor - Hillwalking - Terrain 2 Winter","County Assessor"]
["County Assessor - Kayaking","County Assessor"]
["County Assessor - Kayaking - Open Inland A Waters","County Assessor"]
["County Assessor - Kayaking - Open Inland A Waters, Canoeing - Open Inland B1 Waters","County Assessor"]
["County Assessor - Kayaking - Open Inland A Waters, Kayaking - River B3 Waters","County Assessor"]
["County Assessor - Kayaking - Open Inland B1 Waters","County Assessor"]
["County Assessor - Kayaking - Open Inland B1 Waters, Canoeing - Open Inland B1 Waters","County Assessor"]
["County Assessor - Kayaking - Open Inland B1 Waters, Kayaking - River B1 Waters","County Assessor"]
["County Assessor - Kayaking - Open Inland B1 Waters, Rafting (Traditional) - B1 Waters","County Assessor"]
["County Assessor - Kayaking - Open Inland B2 Waters","County Assessor"]
["County Assessor - Kayaking - Open Inland B2 Waters, Canoeing - Open Inland B1 Waters","County Assessor"]
["County Assessor - Kayaking - Open Inland B2 Waters, Canoeing - Open Inland B2 Waters","County Assessor"]
["County Assessor - Kayaking - Open Inland B2 Waters, Kayaking - River B2 Waters","County Assessor"]
["County Assessor - Kayaking - Open Inland B2 Waters, Rafting (Traditional) - B2+ Waters","County Assessor"]
["County Assessor - Kayaking - Open Inland B3 Waters","County Assessor"]
["County Assessor - Kayaking - Open Inland B3 Waters, Canoeing - Open Inland B2 Waters, Bell Boating -","County Assessor"]
["County Assessor - Kayaking - Open Inland B3 Waters, Kayaking - River B3 Waters","County Assessor"]
["County Assessor - Kayaking - River A Waters","County Assessor"]
["County Assessor - Kayaking - River A Waters, Canoeing - River B1 Waters","County Assessor"]
["County Assessor - Kayaking - River B1 Waters","County Assessor"]
["County Assessor - Kayaking - River B1 Waters, Canoeing - River B1 Waters","County Assessor"]
["County Assessor - Kayaking - River B1 Waters, Kayaking - Open Inland B1 Waters","County Assessor"]
["County Assessor - Kayaking - River B1 Waters, Kayaking - River B2 Waters","County Assessor"]
["County Assessor - Kayaking - River B2 Waters","County Assessor"]
["County Assessor - Kayaking - River B2 Waters, Canoeing - River B1 Waters","County Assessor"]
["County Assessor - Kayaking - River B3 Waters","County Assessor"]
["County Assessor - Kayaking - Sea A Waters","County Assessor"]
["County Assessor - Kayaking - Sea B1 Waters","County Assessor"]
["County Assessor - Kayaking - Sea B1 Waters, Canoeing - Sea B1 Waters","County Assessor"]
["County Assessor - Kayaking - Sea B1 Waters, Kayaking - River B1 Waters","County Assessor"]
["County Assessor - Kayaking - Sea B2 Waters","County Assessor"]
["County Assessor - Kayaking - Sea B3 Waters","County Assessor"]
["County Assessor - Kayaking - Sea B3 Waters , Power Boating - B1 Waters","County Assessor"]
["County Assessor - Kayaking - Surf B2 Waters","County Assessor"]
["County Assessor - Keelboating - A Waters","County Assessor"]
["County Assessor - Keelboating - A Waters, Dinghy Sailing - A Waters, Power Boating - A Waters","County Assessor"]
["County Assessor - Keelboating - B1 Waters","County Assessor"]
["County Assessor - Keelboating - B1 Waters, Keelboating - B2 Waters, Keelboating - A Waters","County Assessor"]
["County Assessor - Keelboating - B1 Waters, Power Boating - A Waters, Yachting - A Waters","County Assessor"]
["County Assessor - Keelboating - B1 Waters, Power Boating - B2 Waters","County Assessor"]
["County Assessor - Keelboating - B3 Waters","County Assessor"]
["County Assessor - Mine Exploration - No Vertical Pitches","County Assessor"]
["County Assessor - Mine Exploration - With SRT for the Group","County Assessor"]
["County Assessor - Mine Exploration - With SRT for the Leader","County Assessor"]
["County Assessor - Motor Cruising","County Assessor"]
["County Assessor - Motor Cruising - A Waters","County Assessor"]
["County Assessor - Mountain Biking","County Assessor"]
["County Assessor - Mountain Biking - Terrain 1 Summer","County Assessor"]
["County Assessor - Mountain Biking - Terrain 1 Summer, Mountain Biking - Terrain 2 Summer","County Assessor"]
["County Assessor - Mountain Biking - Terrain 2 Summer","County Assessor"]
["County Assessor - Narrow Boating","County Assessor"]
["County Assessor - Narrow Boating - B1 Waters","County Assessor"]
["County Assessor - Narrow Boating - B1 Waters, Narrow Boating - C Waters","County Assessor"]
["County Assessor - Narrow Boating - B2+ Waters","County Assessor"]
["County Assessor - Personal Watercraft (Jet Ski)","County Assessor"]
["County Assessor - Power Boating","County Assessor"]
["County Assessor - Power Boating - A Waters","County Assessor"]
["County Assessor - Power Boating - A Waters, Keelboating - A Waters","County Assessor"]
["County Assessor - Power Boating - B1 Waters","County Assessor"]
["County Assessor - Power Boating - B1 Waters, Power Boating - B2 Waters","County Assessor"]
["County Assessor - Power Boating - B2 Waters","County Assessor"]
["County Assessor - Power Boating - B2 Waters, Dinghy Sailing - A Waters","County Assessor"]
["County Assessor - Power Boating - B2 Waters, Dinghy Sailing - B1 Waters, Dinghy Sailing - B2 Waters","County Assessor"]
["County Assessor - Power Boating - B2 Waters, Power Boating - B1 Waters, Power Boating - C Waters","County Assessor"]
["County Assessor - Power Boating - B2 Waters, Power Boating - C Waters","County Assessor"]
["County Assessor - Power Boating - B2 Waters, Power Boating - C Waters, Power Boating - B1 Waters","County Assessor"]
["County Assessor - Power Boating - B3 Waters","County Assessor"]
["County Assessor - Power Boating - B3 Waters, Motor Cruising - B3 Waters","County Assessor"]
["County Assessor - Power Boating - B3 Waters, Power Boating - A Waters","County Assessor"]
["County Assessor - Power Boating - C Waters","County Assessor"]
["County Assessor - Power Boating - C Waters, Power Boating - B1 Waters, Power Boating - B2 Waters","County Assessor"]
["County Assessor - Power Boating - C Waters, Power Boating - B2 Waters","County Assessor"]
["County Assessor - Pulling","County Assessor"]
["County Assessor - Pulling - B1 Waters","County Assessor"]
["County Assessor - Pulling - B2+ Waters","County Assessor"]
["County Assessor - Rafting (Traditional)","County Assessor"]
["County Assessor - Rafting (Traditional) - B1 Waters","County Assessor"]
["County Assessor - Rafting (Traditional) - B1 Waters, Canoeing - Open Inland B1 Waters","County Assessor"]
["County Assessor - Rafting (Traditional) - B1 Waters, Rafting (Traditional) - B2+ Waters","County Assessor"]
["County Assessor - Rafting (Traditional) - B2+ Waters","County Assessor"]
["County Assessor - Rowing and Sculling","County Assessor"]
["County Assessor - Rowing and Sculling - Rowing and Sculling, Pulling - B2+ Waters","County Assessor"]
["County Assessor - Scout Shows","County Assessor"]
["County Assessor - Scout Shows - Scout Shows","County Assessor"]
["County Assessor - Scuba Diving - Open Water","County Assessor"]
["County Assessor - Scuba Diving - Sheltered Water","County Assessor"]
["County Assessor - Snorkelling","County Assessor"]
["County Assessor - Snorkelling - Snorkelling","County Assessor"]
["County Assessor - Snorkelling - Snorkelling, Scuba Diving - Open Water","County Assessor"]
["County Assessor - Snowsports - Off Piste Terrain 2, Snowsports - Off Piste Terrain 1","County Assessor"]
["County Assessor - Snowsports - On Piste","County Assessor"]
["County Assessor - Stand Up Paddleboarding - Open Inland B1 waters","County Assessor"]
["County Assessor - Stand Up Paddleboarding - Open Inland B2 waters","County Assessor"]
["County Assessor - Stand Up Paddleboarding - River B1 waters","County Assessor"]
["County Assessor - Stand Up Paddleboarding - River B2 waters","County Assessor"]
["County Assessor - Stand Up Paddleboarding - Sea B1 waters","County Assessor"]
["County Assessor - Water Skiing - B2+ Waters","County Assessor"]
["County Assessor - Windsurfing","County Assessor"]
["County Assessor - Windsurfing - A Waters","County Assessor"]
["County Assessor - Windsurfing - B1 Waters","County Assessor"]
["County Assessor - Windsurfing - B2 Waters","County Assessor"]
["County Assessor - Windsurfing - B3 Waters","County Assessor"]
["County Assessor - Yachting","County Assessor"]
["County Assessor - Yachting - A Waters","County Assessor"]
["County Assessor (Gang Show)","County Assessor"]
["County Assessor Test Country - Archery - Without Compound Bows","County Assessor"]
["County Assistant Camp Warden","Assistant Area Camp Warden"]
["County Assistant Commissioner","Assistant County Commissioner - Cub Support"]
["County Assistant Commissioner - Activities","Assistant County Commissioner - Cub Support"]
["County Assistant Commissioner - Activity Support","Assistant County Commissioner - Cub Support"]
["County Assistant Commissioner - Adult Support","Assistant County Commissioner - Cub Support"]
["County Assistant Commissioner - Adult Support, Talent Management","Assistant County Commissioner - Cub Support"]
["County Assistant Commissioner - Beaver Scouts","Assistant County Commissioner - Cub Support"]
["County Assistant Commissioner - Branch","Assistant County Commissioner - Cub Support"]
["County Assistant Commissioner - Communications","Assistant County Commissioner - Cub Support"]
["County Assistant Commissioner - Communications, Community Impact","Assistant County Commissioner - Cub Support"]
["County Assistant Commissioner - Communications, Development","Assistant County Commissioner - Cub Support"]
["County Assistant Commissioner - Community Impact","Assistant County Commissioner - Cub Support"]
["County Assistant Commissioner - Community Impact, Global","Assistant County Commissioner - Cub Support"]
["County Assistant Commissioner - Cub Scouts","Assistant County Commissioner - Cub Support"]
["County Assistant Commissioner - Development","Assistant County Commissioner - Cub Support"]
["County Assistant Commissioner - Development, Growth","Assistant County Commissioner - Cub Support"]
["County Assistant Commissioner - Early Years Support","Assistant County Commissioner - Cub Support"]
["County Assistant Commissioner - Events","Assistant County Commissioner - Cub Support"]
["County Assistant Commissioner - Events, Activities","Assistant County Commissioner - Cub Support"]
["County Assistant Commissioner - Explorer Scouts","Assistant County Commissioner - Cub Support"]
["County Assistant Commissioner - Growth","Assistant County Commissioner - Cub Support"]
["County Assistant Commissioner - Growth, Development","Assistant County Commissioner - Cub Support"]
["County Assistant Commissioner - Inclusion","Assistant County Commissioner - Cub Support"]
["County Assistant Commissioner - Inclusion, Activities","Assistant County Commissioner - Cub Support"]
["County Assistant Commissioner - Inclusion, Special Needs","Assistant County Commissioner - Cub Support"]
["County Assistant Commissioner - International","Assistant County Commissioner - Cub Support"]
["County Assistant Commissioner - Programme","Assistant County Commissioner - Cub Support"]
["County Assistant Commissioner - Programme, Support","Assistant County Commissioner - Cub Support"]
["County Assistant Commissioner - Programme, Youth Involvement","Assistant County Commissioner - Cub Support"]
["County Assistant Commissioner - Public Relations","Assistant County Commissioner - Cub Support"]
["County Assistant Commissioner - Scout Active Support","Assistant County Commissioner - Cub Support"]
["County Assistant Commissioner - Special Needs","Assistant County Commissioner - Cub Support"]
["County Assistant Commissioner - Special Needs, Inclusion","Assistant County Commissioner - Cub Support"]
["County Assistant Commissioner - Support","Assistant County Commissioner - Cub Support"]
["County Assistant Commissioner - Support, Communications","Assistant County Commissioner - Cub Support"]
["County Assistant Commissioner - Talent Management","Assistant County Commissioner - Cub Support"]
["County Assistant Commissioner - Young Leaders","Assistant County Commissioner - Cub Support"]
["County Assistant Commissioner - Youth Involvement","Assistant County Commissioner - Cub Support"]
["County Assistant Commissioner - Youth Involvement, Communications","Assistant County Commissioner - Cub Support"]
["County Assistant Commissioner (Cubs)","Assistant County Commissioner - Cub Support"]
["County Assistant Commissioner (Section Support) - Beaver Scouts","Assistant County Commissioner - Cub Support"]
["County Assistant Commissioner (Section Support) - Cub Scouts","Assistant County Commissioner - Cub Support"]
["County Assistant Commissioner (Section Support) - Cub Scouts, Scouts","Assistant County Commissioner - Cub Support"]
["County Assistant Commissioner (Section Support) - Explorer Scouts","Assistant County Commissioner - Cub Support"]
["County Assistant Commissioner (Section Support) - Explorer Scouts (Yng Leader)","Assistant County Commissioner - Cub Support"]
["County Assistant Commissioner (Section Support) - Explorer Scouts, Explorer Scouts (Yng Leader)","Assistant County Commissioner - Cub Support"]
["County Assistant Commissioner (Section Support) - Scout Network","Assistant County Commissioner - Cub Support"]
["County Assistant Commissioner (Section Support) - Scout Network, Explorer Scouts","Assistant County Commissioner - Explorer Support"]
["County Assistant Commissioner (Section Support) - Scouts","Assistant County Commissioner - Cub Support"]
["County Assistant Commissioner (Section Support) - Squirrel Scouts","Assistant County Commissioner - Beaver Support"]
["County Assistant Commissioner (Section) - Beaver Scouts","Assistant County Commissioner - Cub Support"]
["County Assistant Commissioner (Section) - Beaver Scouts, Cub Scouts","Assistant County Commissioner - Cub Support"]
["County Assistant Commissioner (Section) - Beaver Scouts, Cub Scouts, Scouts","Assistant County Commissioner - Cub Support"]
["County Assistant Commissioner (Section) - Cub Scouts","Assistant County Commissioner - Cub Support"]
["County Assistant Commissioner (Section) - Explorer Scouts","Assistant County Commissioner - Cub Support"]
["County Assistant Commissioner (Section) - Explorer Scouts (Yng Leader)","Assistant County Commissioner - Cub Support"]
["County Assistant Commissioner (Section) - Explorer Scouts, Explorer Scouts (Yng Leader)","Assistant County Commissioner - Cub Support"]
["County Assistant Commissioner (Section) - Explorer Scouts, Scout Network","Assistant County Commissioner - Cub Support"]
["County Assistant Commissioner (Section) - Scout Network","Assistant County Commissioner - Cub Support"]
["County Assistant Commissioner (Section) - Scout Network, Explorer Scouts","Assistant County Commissioner - Cub Support"]
["County Assistant Commissioner (Section) - Scouts","Assistant County Commissioner - Cub Support"]
["County Assistant Commissioner Community","Assistant County Commissioner - Cub Support"]
["County Assistant Commissioner International","Assistant County Commissioner - International"]
["County Assistant Commissioner International.","Assistant County Commissioner - International"]
["County Assistant Commissioner IT","Assistant County Commissioner - Cub Support"]
["County Asst Commiss (Section) - Explorer Scouts","Assistant County Commissioner - Cub Support"]
["County Asst Commissioner (Section) - Beaver Scouts","Assistant County Commissioner - Cub Support"]
["County Asst Commissioner (Section) - Cub Scouts","Assistant County Commissioner - Cub Support"]
["County Asst Commissioner (Section) - Scouts","Assistant County Commissioner - Cub Support"]
["County Award Certificate Recipient","County Award Certificate Recipient"]
["County Badge Secretary","County Badge Secretary"]
["County Beaver Scout Leader","County Leader - Beaver Support"]
["County Boat Inspector"]
["County Camp Warden","County Camp Warden"]
["County Centre Manager","County Centre Manager"]
["County Centre Staff"]
["County Chair","County Chair"]
["County Chaplain","County Chaplain"]
["County Chaplain - Assistant","County Chaplain"]
["County Commissioner","County Commissioner"]
["County commissioner - Test County","County Commissioner"]
["County commissioner - Test County - Adult Support","County Commissioner"]
["County Commissioner (Acting)","Acting County Commissioner"]
["County Commissioner.","County Commissioner"]
["County Committee Member","Committee Member"]
["County Communications Manager","County Communications Manager"]
["County Communications Manager - Communications","County Communications Manager"]
["County Communications Manager - Communications, Media","County Communications Manager"]
["County Communications Manager - Media","County Communications Manager"]
["County Communications Manager - Media Development Manager","County Communications Manager"]
["County Communications Manager - Media, Communications","County Communications Manager"]
["County Communications Manager - Member Communications Manager","County Communications Manager"]
["County Co-ordinator","Scout Active Support Co-ordinator"]
["County Co-ordinator - Safety","Scout Active Support Co-ordinator"]
["County Deputy Chair","County Deputy Chair"]
["County Deputy Commissioner","Deputy County Commissioner"]
["County Deputy Commissioner - Adult Support","Deputy County Commissioner"]
["County Deputy Commissioner - Adult Support, International","Deputy County Commissioner"]
["County Deputy Commissioner - Adult Support, Support","Deputy County Commissioner"]
["County Deputy Commissioner - International","Deputy County Commissioner"]
["County Deputy Commissioner - People","Deputy County Commissioner"]
["County Deputy Commissioner - Programme","Deputy County Commissioner"]
["County Deputy Commissioner - Programme, Support","Deputy County Commissioner"]
["County Deputy Commissioner - Support","Deputy County Commissioner"]
["County Deputy Commissioner -Projects","Deputy County Commissioner"]
["County Deputy Commissioner Vision 2018","Deputy County Commissioner"]
["County Deputy Commissioner.","Deputy County Commissioner"]
["County Deputy Training Manager","Deputy County Training Manager"]
["County Executive Committee Member","County Executive Member"]
["County Executive Committee Member - Elected Member","County Executive Member"]
["County Executive Committee Member - Ex-Officio Member","County Executive Member"]
["County Executive Committee Member - Nominated Member","County Executive Member"]
["County IT Support Manager","County Supporter"]
["County Leader","County Leader"]
["County Leader - Beaver Scouts","County Leader"]
["County Leader - Cub Scouts","County Leader"]
["County Leader - Development","County Leader"]
["County Leader - Explorer Scouts","County Leader"]
["County Leader - Explorer Scouts (Yng Leader)","County Leader"]
["County Leader - Inclusion","County Leader"]
["County Leader - Scouts","County Leader"]
["County Leader - Squirrel Scouts","County Leader - Beaver Support"]
["County Local Development Officer"]
["County Local Training Manager","Local Training Manager"]
["County Local Training Manager - First Aid","Local Training Manager"]
["County Manager of the Activity Permit Scheme","County Manager of the Activity Permit Scheme"]
["County Marketing Manager (Activity Centres)","County Communications Manager"]
["County Nights Away Adviser","District Nights Away Adviser"]
["County Nights Away Adviser - Nights Away","District Nights Away Adviser"]
["County Nights Away Adviser - Nights Away - Campsite","District Nights Away Adviser"]
["County Nights Away Adviser - Nights Away - Campsite, Nights Away - Greenfield","District Nights Away Adviser"]
["County Nights Away Adviser - Nights Away - Campsite, Nights Away - Indoor","District Nights Away Adviser"]
["County Nights Away Adviser - Nights Away - Campsite, Nights Away - Indoor, Nights Away - Greenfield","District Nights Away Adviser"]
["County Nights Away Adviser - Nights Away - Campsite, Nights Away - Lightweight Expedition","District Nights Away Adviser"]
["County Nights Away Adviser - Nights Away - Greenfield","District Nights Away Adviser"]
["County Nights Away Adviser - Nights Away - Greenfield, Nights Away - Campsite, Nights Away - Indoor","District Nights Away Adviser"]
["County Nights Away Adviser - Nights Away - Greenfield, Nights Away - Lightweight Expedition","District Nights Away Adviser"]
["County Nights Away Adviser - Nights Away - Indoor","District Nights Away Adviser"]
["County Nights Away Adviser - Nights Away - Indoor, Nights Away - Campsite","District Nights Away Adviser"]
["County Nights Away Adviser - Nights Away - Indoor, Nights Away - Campsite, Nights Away - Greenfield","District Nights Away Adviser"]
["County Nights Away Adviser - Nights Away - Lightweight Expedition","District Nights Away Adviser"]
["County Nights Away Adviser - Nights Away - Lightweight Expedition, Nights Away - Greenfield","District Nights Away Adviser"]
["County Nights Away Adviser - Nights Away - Lightweight Expedition, Nights Away - Greenfield, Nights","District Nights Away Adviser"]
["County Occasional Helper"]
["County Patron"]
["County President","County President"]
["County Press Officer","County Communications Manager"]
["County Public Relations Officer","County Communications Manager"]
["County Queens Scout Award Co-ordinator","County Queens Scout Award Coordinator"]
["County Safeguarding Adviser","County Safeguarding Adviser"]
["County Safeguarding Awareness Co-ordinator","Safeguarding Awareness Co-ordinator"]
["County Safety Adviser","County Safety Adviser"]
["County Safety Adviser - Safety","County Safety Adviser"]
["County Safety Co-ordinator","Safety Co-ordinator"]
["County Safety Co-ordinator - Safety","Safety Co-ordinator"]
["County Scout Active Support Co-ordinator","Scout Active Support Co‑ordinator"]
["County Scout Active Support Manager","Scout Active Support Manager"]
["County Scout Active Support Manager.","Scout Active Support Manager"]
["County Scout Active Support Member","Scout Active Support member"]
["County Scout Active Support Member - Bradley Wood","Scout Active Support member"]
["County Scout Active Support Member - Green Withens","Scout Active Support member"]
["County Scout Active Support Member (Archery Assessor)","Scout Active Support member"]
["County Scout Active Support Member.","Scout Active Support member"]
["County Scout Council Member"]
["County Scout Council Member - Elected Member"]
["County Scout Council Member - Ex-Officio Member"]
["County Scout Council Member - Nominated Member"]
["County Scout Council Member - Nominated Member (18-24)"]
["County Scout Council Member - Nominated Representative"]
["County Scout Council Member - Nominated Youth Representative"]
["County Scout Network Administrator","County Administrator"]
["County Scout Network Commissioner","Assistant County Commissioner - Network Support"]
["County Scout Network Member"]
["County Scouter","County Leader - Cub Support"]
["County Scouter - Beaver Scouts","County Leader - Cub Support"]
["County Scouter - Cub Scouts","County Leader - Cub Support"]
["County Scouter - Explorer Scouts","County Leader - Cub Support"]
["County Scouter - Progress","County Leader - Cub Support"]
["County Scouter - Scouts","County Leader - Cub Support"]
["County Scouter -Scouts","County Leader - Cub Support"]
["County Secretary","County Secretary"]
["County Secretary - Camping","County Administrator"]
["County Skills Instructor","County Skills Instructor"]
["County Skills Instructor - Bradley Woods","County Skills Instructor"]
["County Skills Instructor - Climbing Team","County Skills Instructor"]
["County Skills Instructor - County Canoe Club","County Skills Instructor"]
["County Skills Instructor - Green Withens","County Skills Instructor"]
["County Skills Instructor - Hill Walking","County Skills Instructor"]
["County Skills Instructor Rifle Club","County Skills Instructor"]
["County Skills Instructor SSWAC","County Skills Instructor"]
["County Skills Instructor.","County Skills Instructor"]
["County Social Media Manager","County Communications Manager"]
["County Staff"]
["County Sub-Committee Member","County Sub-Committee member"]
["County Sub-Committee Member - Camping","County Sub-Committee member"]
["County Sub-Committee Member - Finance Committee","County Sub-Committee member"]
["County Sub-Committee Member - Operations Committee","County Sub-Committee member"]
["County Sub-Committee Member - Risk Committee","County Sub-Committee member"]
["County Sub-Committee Member - Scout Grants Committee","County Sub-Committee member"]
["County Sub-Committee Member - Staffing, Salary and Remuneration Committee","County Sub-Committee member"]
["County Supporter","County Supporter"]
["County Supporter - Quartermaster","County Supporter"]
["County Supporter of the Nights Away Permit Scheme","County Supporter of the Nights Away Permit Scheme"]
["County Trainer","Trainer"]
["County Trainer - Executive Committees","Trainer"]
["County Trainer - Executive Committees, Leadership and Management, Safeguarding Awareness","Trainer"]
["County Trainer - First Aid","Trainer"]
["County Trainer - Leadership and Management","Trainer"]
["County Trainer - Leadership and Management, Executive Committees","Trainer"]
["County Trainer - Leadership and Management, First Aid","Trainer"]
["County Trainer - Leadership and Management, Safeguarding Awareness","Trainer"]
["County Trainer - Leadership and Management, Safeguarding Awareness, Executive Committees","Trainer"]
["County Trainer - Safeguarding Awareness","Trainer"]
["County Trainer - Safeguarding Awareness, Leadership and Management","Trainer"]
["County Training Administrator","County Training Administrator"]
["County Training Adviser","Training Adviser"]
["County Training Adviser - Managers and Supporters","Training Adviser"]
["County Training Adviser.","Training Adviser"]
["County Training Manager","County Training Manager"]
["County Treasurer","County Treasurer"]
["County TSA Council - Nominated Representative"]
["County TSA Council - Nominated Youth Representative"]
["County Vice President","County Vice President"]
["County Young Spokesperson"]
["County Youth Commissioner","County Youth Commissioner"]
["County YSP Coordinator"]
["Cub Scout Helper"]
["Cub Scout Leader","Section Leader - Cubs"]
["Cub Scout Section Assistant","Section Assistant - Cubs"]
["DAS - Barnsley","District Appointments Secretary"]
["DAS - Hallam","District Appointments Secretary"]
["DAS - Norfolk","District Appointments Secretary"]
["DAS - Sheffield Don","District Appointments Secretary"]
["Depute Chief Commissioner - People","Deputy Chief Commissioner (Country)"]
["Depute Chief Commissioner (Programme)","Deputy Chief Commissioner (Country)"]
["Deputy Area Training Manager","Deputy Area Training Manager"]
["Deputy Area Youth Commissioner","Deputy Area Youth Commissioner"]
["Deputy Branch Commissioner","Deputy Chief Commissioner (Country)"]
["Deputy Chief Commissioner - People","Deputy Chief Commissioner (Country)"]
["Deputy Chief Commissioner – Wales (Operations)","Deputy Chief Commissioner (Country)"]
["Deputy Chief Commissioner – Wales (Strategy)","Deputy Chief Commissioner (Country)"]
["Deputy Chief Commissioner (Perception and Protect)","Deputy Chief Commissioner (Country)"]
["Deputy Chief Commissioner (Perception)","Deputy Chief Commissioner (Country)"]
["Deputy Chief Commissioner (Programme)","Deputy Chief Commissioner (Country)"]
["Deputy Contingent Leader - World Scout Jamboree 2023","Unit Leader"]
["Deputy Contingent Leader - World Scout Moot 2021","Unit Leader"]
["Deputy Country Commissioner","Deputy Chief Commissioner (Country)"]
["Deputy County Commissioner - Adult Support","Deputy Chief Commissioner (Country)"]
["Deputy County Commissioner - Training","Deputy Chief Commissioner (Country)"]
["Deputy County Training Manager","Deputy County Training Manager"]
["Deputy County Youth Commissioner","Deputy County Youth Commissioner"]
["Deputy District Commissioner","Deputy District Commissioner"]
["Deputy District Commissioner (Adult Support)","Deputy District Commissioner"]
["Deputy District Commissioner (Youth Programme)","Deputy District Commissioner"]
["Deputy District Youth Commissioner","Deputy District Youth Commissioner"]
["Deputy Group Scout Leader","Deputy Group Scout Leader"]
["Deputy Group Scout Leader - Adult Support","Deputy Group Scout Leader"]
["Deputy Group Scout Leader - Programme","Deputy Group Scout Leader"]
["Deputy Group Scout Leader - Programme, Adult Support","Deputy Group Scout Leader"]
["Deputy Group Scout Leader - Programme, Support","Deputy Group Scout Leader"]
["Deputy Group Scout Leader - Scouts","Deputy Group Scout Leader"]
["Deputy Group Scout Leader - Support","Deputy Group Scout Leader"]
["Deputy HQ Commissioner - International","Deputy UK Chief Commissioner"]
["Deputy UK Chief Commissioner","Deputy UK Youth Commissioner"]
["Deputy UK Chief Commissioner (Support)","Deputy UK Chief Commissioner"]
["Deputy UK Chief Commissioner (Transformation)","Deputy UK Chief Commissioner"]
["Deputy UK Commissioner for People (Programme - Transformation)","Deputy UK Chief Commissioner"]
["Deputy UK Commissioner for Programme (Programme - Operational)","Deputy UK Chief Commissioner"]
["Deputy UK Youth Commissioner","Deputy UK Youth Commissioner"]
["Deputy Unit Leader","Unit Leader"]
["Deputy Unit Leader - World Scout Jamboree 2023","Unit Leader"]
["Deputy Volunteer Head of Events","Volunteer Head"]
["Director of Event Services - Essex International Jamboree 2020"]
["Director of Facilities - Essex International Jamboree 2016"]
["Director of Finance - Essex International Jamboree 2020"]
["Director of Programme - Essex International Jamboree 2020"]
["District Administrator","District Administrator"]
["District Administrator - Assistant Secretary","District Administrator"]
["District Administrator.","District Administrator"]
["District Adviser","District Adviser"]
["District Adviser - Activities","District Adviser"]
["District Adviser - Adult Training","District Adviser"]
["District Adviser - Air Activities","District Adviser"]
["District Adviser - Archery","District Adviser"]
["District Adviser - Bands","District Adviser"]
["District Adviser - Bands, Activities, Duke of Edinburgh's Award","District Adviser"]
["District Adviser - Canoeing","District Adviser"]
["District Adviser - Caving","District Adviser"]
["District Adviser - Child Protection","District Adviser"]
["District Adviser - Climbing","District Adviser"]
["District Adviser - Climbing, Mountain Activities","District Adviser"]
["District Adviser - Community Development","District Adviser"]
["District Adviser - Creative Activities","District Adviser"]
["District Adviser - Creative Activities, Staged Performances","District Adviser"]
["District Adviser - Development","District Adviser"]
["District Adviser - Duke of Edinburgh's Award","District Adviser"]
["District Adviser - Faiths & Beliefs","District Adviser"]
["District Adviser - Fundraising","District Adviser"]
["District Adviser - Health and Safety","District Adviser"]
["District Adviser - Inclusion","District Adviser"]
["District Adviser - Inclusion, Faiths & Beliefs","District Adviser"]
["District Adviser - International","District Adviser"]
["District Adviser - Land Activities","District Adviser"]
["District Adviser - Mountain Activities","District Adviser"]
["District Adviser - Scout Active Support","District Adviser"]
["District Adviser - Shooting","District Adviser"]
["District Adviser - Snowsports","District Adviser"]
["District Adviser - Special Needs","District Adviser"]
["District Adviser - Special Needs, Inclusion","District Adviser"]
["District Adviser - Special Needs, International","District Adviser"]
["District Adviser - Staged Performances","District Adviser"]
["District Adviser - Technical","District Adviser"]
["District Adviser - Technical, Health and Safety","District Adviser"]
["District Adviser - Technology","District Adviser"]
["District Adviser - Technology, Technical","District Adviser"]
["District Adviser - Water Activities","District Adviser"]
["District Adviser - Water Activities (RYA)","District Adviser"]
["District Adviser - Website Admin","District Adviser"]
["District Adviser - Young Leaders","District Adviser"]
["District Appointments Advisery Committee Member","District Appointment Advisory Committee Member"]
["District Appointments Advisory Committee Chairman","District Appointments Chair"]
["District Appointments Advisory Committee Member","District Appointment Advisory Committee Member"]
["District Appointments Chair","District Appointments Chair"]
["District Appointments Chairman","District Appointments Chair"]
["District Appointments Secretary","District Appointments Secretary"]
["District Appointments Secretary TC","District Appointments Secretary"]
["District Appointments Secretary.","District Appointments Secretary"]
["District Assistant Beaver Leader","District Leader - Beaver Support"]
["District Assistant Camp Warden","Assistant District Camp Warden"]
["District Assistant Commissioner","Assistant District Commissioner - Cub Section Support"]
["District Assistant Commissioner - Activities","Assistant District Commissioner - Cub Section Support"]
["District Assistant Commissioner - Activities, Events","Assistant District Commissioner - Cub Section Support"]
["District Assistant Commissioner - Activities, Programme","Assistant District Commissioner - Cub Section Support"]
["District Assistant Commissioner - Activities, Support","Assistant District Commissioner - Cub Section Support"]
["District Assistant Commissioner - Adult Support","Assistant District Commissioner - Cub Section Support"]
["District Assistant Commissioner - Adult Support, Development, Talent Management","Assistant District Commissioner - Cub Section Support"]
["District Assistant Commissioner - Adult Support, Growth","Assistant District Commissioner - Cub Section Support"]
["District Assistant Commissioner - Adult Support, Support","Assistant District Commissioner - Cub Section Support"]
["District Assistant Commissioner - Adult Training","Assistant District Commissioner - Cub Section Support"]
["District Assistant Commissioner - Beaver Scouts","Assistant District Commissioner - Cub Section Support"]
["District Assistant Commissioner - Branch","Assistant District Commissioner - Cub Section Support"]
["District Assistant Commissioner - Communications","Assistant District Commissioner - Cub Section Support"]
["District Assistant Commissioner - Communications, Events","Assistant District Commissioner - Cub Section Support"]
["District Assistant Commissioner - Community Impact","Assistant District Commissioner - Cub Section Support"]
["District Assistant Commissioner - Cub Scouts","Assistant District Commissioner - Cub Section Support"]
["District Assistant Commissioner - Development","Assistant District Commissioner - Cub Section Support"]
["District Assistant Commissioner - Development, Adult Support","Assistant District Commissioner - Cub Section Support"]
["District Assistant Commissioner - Development, Communications","Assistant District Commissioner - Cub Section Support"]
["District Assistant Commissioner - Development, Growth","Assistant District Commissioner - Cub Section Support"]
["District Assistant Commissioner - Development, Support","Assistant District Commissioner - Cub Section Support"]
["District Assistant Commissioner - Early Years Support","Assistant District Commissioner - Cub Section Support"]
["District Assistant Commissioner - Events","Assistant District Commissioner - Cub Section Support"]
["District Assistant Commissioner - Events, Activities","Assistant District Commissioner - Cub Section Support"]
["District Assistant Commissioner - Events, Global","Assistant District Commissioner - Cub Section Support"]
["District Assistant Commissioner - Events, Support","Assistant District Commissioner - Cub Section Support"]
["District Assistant Commissioner - Executive Support","Assistant District Commissioner - Cub Section Support"]
["District Assistant Commissioner - Faith & Beliefs","Assistant District Commissioner - Cub Section Support"]
["District Assistant Commissioner - General Duties","Assistant District Commissioner - Cub Section Support"]
["District Assistant Commissioner - Global","Assistant District Commissioner - Cub Section Support"]
["District Assistant Commissioner - Group Scout leaders & Special Activities","Assistant District Commissioner - Cub Section Support"]
["District Assistant Commissioner - Growth","Assistant District Commissioner - Cub Section Support"]
["District Assistant Commissioner - Growth & Development","Assistant District Commissioner - Cub Section Support"]
["District Assistant Commissioner - Growth, Development","Assistant District Commissioner - Cub Section Support"]
["District Assistant Commissioner - Inclusion","Assistant District Commissioner - Cub Section Support"]
["District Assistant Commissioner - International","Assistant District Commissioner - Cub Section Support"]
["District Assistant Commissioner - Programme","Assistant District Commissioner - Cub Section Support"]
["District Assistant Commissioner - Programme, Support","Assistant District Commissioner - Cub Section Support"]
["District Assistant Commissioner - Public Relations","Assistant District Commissioner - Cub Section Support"]
["District Assistant Commissioner - Public Relations, Support","Assistant District Commissioner - Cub Section Support"]
["District Assistant Commissioner - Relationships","Assistant District Commissioner - Cub Section Support"]
["District Assistant Commissioner - Scout Active Support","Assistant District Commissioner - Cub Section Support"]
["District Assistant Commissioner - Scouts","Assistant District Commissioner - Cub Section Support"]
["District Assistant Commissioner - Special Duties","Assistant District Commissioner - Cub Section Support"]
["District Assistant Commissioner - Special Needs","Assistant District Commissioner - Cub Section Support"]
["District Assistant Commissioner - Special Needs, Inclusion","Assistant District Commissioner - Cub Section Support"]
["District Assistant Commissioner - Support","Assistant District Commissioner - Cub Section Support"]
["District Assistant Commissioner - Support, Adult Support","Assistant District Commissioner - Cub Section Support"]
["District Assistant Commissioner - Support, Adult Support, Communications","Assistant District Commissioner - Cub Section Support"]
["District Assistant Commissioner - Support, Communications","Assistant District Commissioner - Cub Section Support"]
["District Assistant Commissioner - Talent Management","Assistant District Commissioner - Cub Section Support"]
["District Assistant Commissioner - Youth Involvement","Assistant District Commissioner - Cub Section Support"]
["District Assistant Commissioner - Youth Involvement, Programme","Assistant District Commissioner - Cub Section Support"]
["District Assistant Commissioner (Beavers Scouts)","Assistant District Commissioner - Cub Section Support"]
["District Assistant Commissioner (Cubs)","Assistant District Commissioner - Cub Section Support"]
["District Assistant Commissioner (Scouts)","Assistant District Commissioner - Cub Section Support"]
["District Assistant Commissioner (Section)","Assistant District Commissioner - Cub Section Support"]
["District Assistant Commissioner (Section) - Beaver Scouts","Assistant District Commissioner - Cub Section Support"]
["District Assistant Commissioner (Section) - Cub Scouts","Assistant District Commissioner - Cub Section Support"]
["District Assistant Commissioner (Section) - Explorer Scouts","Assistant District Commissioner - Cub Section Support"]
["District Assistant Commissioner (Section) - Explorer Scouts (Yng Leader)","Assistant District Commissioner - Cub Section Support"]
["District Assistant Commissioner (Section) - Scouts","Assistant District Commissioner - Cub Section Support"]
["District Assistant Commissioner Cubs","Assistant District Commissioner - Cub Section Support"]
["District Assistant Commissioner Development","Assistant District Commissioner - Cub Section Support"]
["District Assistant Commissioner General Duties","Assistant District Commissioner - Cub Section Support"]
["District Asst Commiss - Beaver Scouts","Assistant District Commissioner - Cub Section Support"]
["District Asst Commiss (Section) - Beaver Scouts","Assistant District Commissioner - Cub Section Support"]
["District Asst Commissioner - Beaver Scouts","Assistant District Commissioner - Cub Section Support"]
["District Asst Commissioner (Section) - Cub Scouts","Assistant District Commissioner - Cub Section Support"]
["District Award Certificate Recipient","District Award Certificate Recipient"]
["District Badge Secretary","District Badge Secretary"]
["District Camp Warden","District Camp Warden"]
["District Campsite Bookings Secretary","District Administrator"]
["District Centre Manager","District Centre Manager"]
["District Chair","District Chair"]
["District Chairman","District Chair"]
["District Chaplain","District Chaplain"]
["District Commissioner","District Commissioner"]
["District Commissioner - Adult Support","District Commissioner"]
["District Commissioner - Branch","District Commissioner"]
["District Commissioner - Programme","District Commissioner"]
["District Commissioner (Acting)","Acting District Commissioner"]
["District Commissioner (Perth City)","District Commissioner"]
["District Commissioner.","District Commissioner"]
["District Committee Member","Committee Member"]
["District Committee Member - Camping","Committee Member"]
["District Communications Manager","District Communications Manager"]
["District Communications Manager - Communications","District Communications Manager"]
["District Communications Manager - Communications, Media","District Communications Manager"]
["District Communications Manager - Media","District Communications Manager"]
["District Communications Manager - Media Development Manager","District Communications Manager"]
["District Communications Manager - Media, Communications","District Communications Manager"]
["District Communications Manager - Member Communications Manager","District Communications Manager"]
["District Cub Scout Leader","District Leader - Cub Support"]
["District Deputy Chair","District Deputy Chair"]
["District Deputy Chairman","District Deputy Chair"]
["District Deputy Commissioner","Deputy District Commissioner"]
["District Deputy Commissioner - Adult Support","Deputy District Commissioner"]
["District Deputy Commissioner - Adult Support, International, Programme, Support","Deputy District Commissioner"]
["District Deputy Commissioner - Adult Support, Support","Deputy District Commissioner"]
["District Deputy Commissioner - North","Deputy District Commissioner"]
["District Deputy Commissioner - North.","Deputy District Commissioner"]
["District Deputy Commissioner - People","Deputy District Commissioner"]
["District Deputy Commissioner - Programme","Deputy District Commissioner"]
["District Deputy Commissioner - Programme, Support","Deputy District Commissioner"]
["District Deputy Commissioner - Scout Network","Deputy District Commissioner"]
["District Deputy Commissioner - Scouts","Deputy District Commissioner"]
["District Deputy Commissioner - Support","Deputy District Commissioner"]
["District Deputy Commissioner - Support, Adult Support","Deputy District Commissioner"]
["District Deputy Commissioner.","Deputy District Commissioner"]
["District Duke of Edinburgh's Award Adviser","District Adviser"]
["District Executive Committee Member","District Executive Member"]
["District Executive Committee Member - Elected Member","District Executive Member"]
["District Executive Committee Member - Ex-Officio Member","District Executive Member"]
["District Executive Committee Member - Ex-Officio Member, Nominated Member","District Nights Away Adviser"]
["District Executive Committee Member - Nominated Member","District Executive Member"]
["District Executive Committee Member.","District Executive Member"]
["District Explorer Scout Administrator","District Explorer Scout Administrator"]
["District Explorer Scout Administrator D of E","District Explorer Scout Administrator"]
["District Explorer Scout Commissioner","District Explorer Scout Commissioner"]
["District Explorer Scout Commissioner (Acting)","Acting District Explorer Scout Commissioner"]
["District Explorer Scout Commissioner.","District Explorer Scout Commissioner"]
["District Explorer Scout Duke of Edinburgh Advisor","District Adviser"]
["District Explorer Scout Leader","Section Leader - Explorers"]
["District Gang Show Chair","District Sub-Committee Member"]
["District Gang Show Producer","District Sub-Committee Member"]
["District Leader","District Leader"]
["District Leader - Beaver Scouts","District Leader"]
["District Leader - Cub Scouts","District Leader"]
["District Leader - Cub Scouts, Beaver Scouts","District Leader"]
["District Leader - Explorer Scouts","District Leader"]
["District Leader - Scouts","District Leader"]
["District Leader - Scouts, Cub Scouts","District Leader"]
["District Leader - Squirrel Scouts","District Leader - Beaver Support"]
["District Local Development Officer"]
["District Local Training administrator","Local Training Administrator"]
["District Local Training Manager","Local Training Manager"]
["District Media Manager","District Communications Manager"]
["District Nights Away Adviser","District Nights Away Adviser"]
["District Nights Away Adviser - Nights Away","District Nights Away Adviser"]
["District Nights Away Adviser - Nights Away - Campsite","District Nights Away Adviser"]
["District Nights Away Adviser - Nights Away - Campsite, Nights Away - Greenfield","District Nights Away Adviser"]
["District Nights Away Adviser - Nights Away - Campsite, Nights Away - Greenfield, Nights Away - Indoo","District Nights Away Adviser"]
["District Nights Away Adviser - Nights Away - Campsite, Nights Away - Indoor","District Nights Away Adviser"]
["District Nights Away Adviser - Nights Away - Campsite, Nights Away - Indoor, Nights Away - Greenfiel","District Nights Away Adviser"]
["District Nights Away Adviser - Nights Away - Campsite, Nights Away - Lightweight Expedition","District Nights Away Adviser"]
["District Nights Away Adviser - Nights Away - Campsite, Nights Away - Lightweight Expedition, Nights","District Nights Away Adviser"]
["District Nights Away Adviser - Nights Away - Greenfield","District Nights Away Adviser"]
["District Nights Away Adviser - Nights Away - Greenfield , Nights Away - Lightweight Expedition","District Nights Away Adviser"]
["District Nights Away Adviser - Nights Away - Greenfield, Nights Away - Campsite","District Nights Away Adviser"]
["District Nights Away Adviser - Nights Away - Greenfield, Nights Away - Campsite, Nights Away - Light","District Nights Away Adviser"]
["District Nights Away Adviser - Nights Away - Greenfield, Nights Away - Indoor","District Nights Away Adviser"]
["District Nights Away Adviser - Nights Away - Greenfield, Nights Away - Indoor, Nights Away - Campsit","District Nights Away Adviser"]
["District Nights Away Adviser - Nights Away - Greenfield, Nights Away - Lightweight Expedition","District Nights Away Adviser"]
["District Nights Away Adviser - Nights Away - Greenfield, Nights Away - Lightweight Expedition, Night","District Nights Away Adviser"]
["District Nights Away Adviser - Nights Away - Indoor","District Nights Away Adviser"]
["District Nights Away Adviser - Nights Away - Indoor , Nights Away - Campsite","District Nights Away Adviser"]
["District Nights Away Adviser - Nights Away - Indoor, Nights Away - Campsite","District Nights Away Adviser"]
["District Nights Away Adviser - Nights Away - Indoor, Nights Away - Campsite, Nights Away - Greenfiel","District Nights Away Adviser"]
["District Nights Away Adviser - Nights Away - Indoor, Nights Away - Greenfield","District Nights Away Adviser"]
["District Nights Away Adviser - Nights Away - Lightweight Expedition","District Nights Away Adviser"]
["District Nights Away Adviser - Nights Away - Lightweight Expedition , Nights Away - Greenfield","District Nights Away Adviser"]
["District Nights Away Adviser - Nights Away - Lightweight Expedition, Nights Away - Campsite","District Nights Away Adviser"]
["District Nights Away Adviser - Nights Away - Lightweight Expedition, Nights Away - Greenfield","District Nights Away Adviser"]
["District Non Member PVG Only"]
["District Occasional Helper"]
["District President","District President"]
["District Project Manager"]
["District Scout Active Support Co-ordinator","Scout Active Support Co‑ordinator"]
["District Scout Active Support Co-ordinator.","Scout Active Support Co‑ordinator"]
["District Scout Active Support Manager","Scout Active Support Manager"]
["District Scout Active Support Manager.","Scout Active Support Manager"]
["District Scout Active Support Member","Scout Active Support member"]
["District Scout Active Support Member - SWEAT","Scout Active Support member"]
["District Scout Active Support Member.","Scout Active Support member"]
["District Scout Leader","District Leader - Scout Support"]
["District Scout Network"]
["District Scout Network Administrator","District Administrator"]
["District Scout Network Commissioner","District Scout Network Commissioner"]
["District Scout Network Member"]
["District Scout Shop Manager","District Treasurer"]
["District Scout Shop Treasurer","District Treasurer"]
["District Scouter","District Leader"]
["District Scouter - Beaver Scouts","District Leader"]
["District Scouter - Cub Scouts","District Leader"]
["District Scouter - Cubs","District Leader"]
["District Scouter - Explorer Scouts","District Leader"]
["District Scouter - Explorer Scouts, Scouts","District Leader"]
["District Scouter - Scouts","District Leader"]
["District Scouter - Scouts, Cub Scouts","District Leader"]
["District Scouter - Scouts, Explorer Scouts","District Leader"]
["District Secretary","District Secretary"]
["District Section Assistant","Section Assistant - Explorers"]
["District Section Assistant - Beaver Scouts","Section Assistant - Explorers"]
["District Section Assistant - Cub Scouts","Section Assistant - Explorers"]
["District Section Assistant - Explorer Scouts","Section Assistant - Explorers"]
["District Section Assistant - Explorer Scouts, Cub Scouts","Section Assistant - Explorers"]
["District Section Assistant - Group","Section Assistant - Explorers"]
["District Section Assistant - Scouts","Section Assistant - Explorers"]
["District Section Assistant - Squirrel Scouts","District Leader - Beaver Support"]
["District Section Leader","Section Leader - Explorers"]
["District Section Leader - Beaver Scouts","Section Leader - Explorers"]
["District Section Leader - Beaver Scouts, Cub Scouts","Section Leader - Explorers"]
["District Section Leader - Beaver Scouts, Cub Scouts, Scouts","District Leader - Beaver Support"]
["District Section Leader - Cub Scouts","Section Leader - Explorers"]
["District Section Leader - Explorer Scouts","Section Leader - Explorers"]
["District Section Leader - Explorer Scouts (Yng Leader)","Section Leader - Explorers"]
["District Section Leader - Explorer Scouts (Yng Leader), Explorer Scouts","Section Leader - Explorers"]
["District Section Leader - Explorer Scouts , Explorer Scouts (Yng Leader)","Section Leader - Explorers"]
["District Section Leader - Explorer Scouts, Cub Scouts","Section Leader - Explorers"]
["District Section Leader - Explorer Scouts, Cub Scouts, Beaver Scouts","District Leader - Beaver Support"]
["District Section Leader - Explorer Scouts, Explorer Scouts (Yng Leader)","Section Leader - Explorers"]
["District Section Leader - Explorer Scouts, Scouts","Section Leader - Explorers"]
["District Section Leader - Scout Band","Section Leader - Explorers"]
["District Section Leader - Scout Network","Section Leader - Explorers"]
["District Section Leader - Scouts","Section Leader - Explorers"]
["District Section Leader - Squirrel Scouts","District Leader - Beaver Support"]
["District Skills Instructor","District Skills Instructor"]
["District Skills Instructor - Climbing","District Skills Instructor"]
["District Skills Instructor - First Aid","District Skills Instructor"]
["District Skills Instructor Hill Walking (Terrain 1 summer)","District Skills Instructor"]
["District Skills Instructor.","District Skills Instructor"]
["District Social Secretary","District Administrator"]
["District Staff"]
["District Sub-Committee Member","District Sub-Committee Member"]
["District Sub-Committee Member - Awards Advisory Group","District Sub-Committee Member"]
["District Sub-Committee Member - Camping","District Sub-Committee Member"]
["District Sub-Committee Member - Finance Committee","District Sub-Committee Member"]
["District Sub-Committee Member - Finance Committee, Operations Committee","District Sub-Committee Member"]
["District Sub-Committee Member - Nominations and Governance Committee","District Sub-Committee Member"]
["District Sub-Committee Member - Operations Committee","District Sub-Committee Member"]
["District Sub-Committee Member - Operations Committee, Risk Committee","District Sub-Committee Member"]
["District Sub-Committee Member - Risk Committee","District Sub-Committee Member"]
["District Sub-Committee Member - Risk Committee, Safeguarding","District Sub-Committee Member"]
["District Sub-Committee Member - Risk Committee, Safety","District Sub-Committee Member"]
["District Sub-Committee Member - Safety","District Sub-Committee Member"]
["District Sub-Committee Member - Scout Grants Committee","District Sub-Committee Member"]
["District Sub-Committee Member - Staffing, Salary and Remuneration Committee","District Sub-Committee Member"]
["District Supporter","District Supporter"]
["District Supporter - District Archivist","District Supporter"]
["District Supporter - Quartermaster","District Supporter"]
["District Trainer","Trainer"]
["District Trainer - First Aid","Trainer"]
["District Trainer - Leadership and Management","Trainer"]
["District Trainer - Safeguarding Awareness","Trainer"]
["District Trainer (First Aid)","Trainer"]
["District Training Administrator","District Training Administrator"]
["District Training Adviser","District Training Adviser"]
["District Training Adviser - Managers and Supporters","District Training Adviser"]
["District Training Adviser.","District Training Adviser"]
["District Training Adviserm","District Training Adviser"]
["District Treasurer","District Treasurer"]
["District Vice President","District Vice President"]
["District Vice President - Ambassador","District Vice President"]
["District Web Manager","District Communications Manager"]
["District Young Spokesperson"]
["District Youth Commissioner","District Youth Commissioner"]
["District Youth Commissioner.","District Youth Commissioner"]
["DistrictTraining Administrator","District Training Administrator"]
["Early Years Section Assistant","Section Assistant - Beavers"]
["Early Years Section Assistant - Family Scouting","Section Assistant - Beavers"]
["Early Years Section Leader","Section Leader - Beavers"]
["Early Years Section Leader - Family Scouting","Section Leader - Beavers"]
["England HQ Administrator","HQ Administrator"]
["European Jamboree Contingent Coordinator","Scout Active Support Co-ordinator"]
["Exec Committee","Group Executive Member"]
["Explorer Leader Training Adviser","Training Adviser"]
["Family Camp"]
["First aid trainer","Trainer"]
["Frylands Wood Scout Active Support Manager","Scout Active Support Manager"]
["Frylands Wood Scout Active Support Manager.","Scout Active Support Manager"]
["Frylands Wood Scout Active Support Unit Co-ordinator","Scout Active Support Co‑ordinator"]
["Gang Show Assessor .","County Assessor"]
["Gibraltar Chair","Area Chair"]
["Gibraltar Commissioner","Area Commissioner"]
["Group Administrator","Group Administrator"]
["Group Administrator - Resolven","Group Administrator"]
["Group Administrator - Skewen","Group Administrator"]
["Group Administrator - youth data input","Group Administrator"]
["Group Administrator 14th","Group Administrator"]
["Group Administrator 17th","Group Administrator"]
["Group Administrator 2nd","Group Administrator"]
["Group Administrator 33rd","Group Administrator"]
["Group Administrator 39th","Group Administrator"]
["Group Administrator 43rd","Group Administrator"]
["Group Administrator 45th","Group Administrator"]
["Group Administrator 4th","Group Administrator"]
["Group Administrator Heather Colony","Group Administrator"]
["Group Administrator.","Group Administrator"]
["Group Adviser","Group Adviser"]
["Group Adviser - Activities","Group Adviser"]
["Group Adviser - Activities, Scout Active Support, Young Leaders, International","Group Adviser"]
["Group Adviser - Activities, Young Leaders","Group Adviser"]
["Group Adviser - Activities, Young Leaders, International","Group Adviser"]
["Group Adviser - Adult Training","Group Adviser"]
["Group Adviser - Bands","Group Adviser"]
["Group Adviser - Child Protection","Group Adviser"]
["Group Adviser - Child Protection, Adult Training, Special Needs, Inclusion","Group Adviser"]
["Group Adviser - Child Protection, Special Needs, Inclusion, Adult Training","Group Adviser"]
["Group Adviser - Climbing","Group Adviser"]
["Group Adviser - Creative Activities","Group Adviser"]
["Group Adviser - Development","Group Adviser"]
["Group Adviser - Development, Scout Active Support","Group Adviser"]
["Group Adviser - Duke of Edinburgh's Award","Group Adviser"]
["Group Adviser - Faiths & Beliefs","Group Adviser"]
["Group Adviser - Health and Safety","Group Adviser"]
["Group Adviser - Inclusion","Group Adviser"]
["Group Adviser - Mountain Activities","Group Adviser"]
["Group Adviser - Scout Active Support","Group Adviser"]
["Group Adviser - Special Needs","Group Adviser"]
["Group Adviser - Special Needs, Inclusion","Group Adviser"]
["Group Adviser - Staged Performances","Group Adviser"]
["Group Adviser - Technical","Group Adviser"]
["Group Adviser - Technical, Activities","Group Adviser"]
["Group Adviser - Technical, Technology","Group Adviser"]
["Group Adviser - Technology","Group Adviser"]
["Group Adviser - Water Activities","Group Adviser"]
["Group Band instructor","District Skills Instructor"]
["Group Chair","Group Chair"]
["Group Chairman","Group Chair"]
["Group Chairperson","Group Chair"]
["Group Chaplain","Group Chaplain"]
["Group Communications Manager","Group Communications Manager"]
["Group Communications Manager - Communications","Group Communications Manager"]
["Group Communications Manager - Communications, Media","Group Communications Manager"]
["Group Communications Manager - Media","Group Communications Manager"]
["Group Communications Manager - Media Development Manager","Group Communications Manager"]
["Group Communications Manager - Media, Communications","Group Communications Manager"]
["Group Contact","Group Administrator"]
["Group Deputy Chair","Group Deputy Chair"]
["Group Deputy Chairman","Group Deputy Chair"]
["Group Executive Chairman","Group Chair"]
["Group Executive Committee Member","Group Executive Member"]
["Group Executive Committee Member - Elected Member","Group Executive Member"]
["Group Executive Committee Member - Elected Member, Ex-Officio Member","Group Executive Member"]
["Group Executive Committee Member - Elected Member, Nominated Member","Group Executive Member"]
["Group Executive Committee Member - Ex-Officio Member","Group Executive Member"]
["Group Executive Committee Member - Ex-Officio Member, Elected Member","Group Executive Member"]
["Group Executive Committee Member - Hall & Lettings Secretary","Group Executive Member"]
["Group Executive Committee Member - Nominated Member","Group Executive Member"]
["Group Executive Committee Member - Nominated Member, Elected Member","Group Executive Member"]
["Group Executive Member","Group Executive Member"]
["Group Leader","Section Leader - Scouts"]
["Group Leader - Beaver Scouts","Section Leader - Scouts"]
["Group Leader - Cub Scouts","Section Leader - Scouts"]
["Group Leader - Explorer Scouts","Section Leader - Scouts"]
["Group Leader - Scouts","Section Leader - Scouts"]
["Group Leader - Scouts, Cub Scouts","Section Leader - Scouts"]
["Group non member PVG only"]
["Group Non MemberDetails PVG Only"]
["Group Occasional Helper"]
["Group Occasional Helper - Cubs Fri"]
["Group Occasional Helper (air rifle instructor)"]
["Group Occassional Helper"]
["Group President","Group President"]
["Group Scout Active Support Co-ordinator","Scout Active Support Co‑ordinator"]
["Group Scout Active Support Manager","Scout Active Support Manager"]
["Group Scout Active Support Manager.","Scout Active Support Manager"]
["Group Scout Active Support Member","Scout Active Support member"]
["Group Scout Leader","Group Scout Leader"]
["Group Scout Leader - Acting","Acting Group Scout Leader"]
["Group Scout Leader - WIth extra text","Group Scout Leader"]
["Group Scout Leader (Acting)","Acting Group Scout Leader"]
["Group Scout Leader.","Group Scout Leader"]
["Group Scouter","Section Leader - Scouts"]
["Group Scouter - Beaver Scouts","Section Leader - Scouts"]
["Group Scouter - Beaver Scouts, Cub Scouts, Scouts","Section Leader - Scouts"]
["Group Scouter - Cub Scouts","Section Leader - Scouts"]
["Group Scouter - Cub Scouts, Scouts, Explorer Scouts","Section Leader - Scouts"]
["Group Scouter - Explorer Scouts","Section Leader - Scouts"]
["Group Scouter - Scouts","Section Leader - Scouts"]
["Group Scouter - Scouts, Beaver Scouts, Cub Scouts","Section Leader - Scouts"]
["Group Scouter - Scouts, Explorer Scouts","Section Leader - Scouts"]
["Group Secretary","Group Secretary"]
["Group Secretary - Resolven","Group Secretary"]
["Group Secretary - Skewen","Group Secretary"]
["Group Secretary - waiting list","Group Secretary"]
["Group Section Assistant","Section Assistant - Cubs"]
["Group Section Assistant - Beaver Scouts","Section Assistant - Cubs"]
["Group Section Assistant - Beaver Scouts, Cub Scouts","Section Assistant - Cubs"]
["Group Section Assistant - Beaver Scouts, Cub Scouts, Scouts","Section Assistant - Cubs"]
["Group Section Assistant - Beaver Scouts, Group","Section Assistant - Cubs"]
["Group Section Assistant - Beaver Scouts, Scouts","Section Assistant - Cubs"]
["Group Section Assistant - Cub Scouts","Section Assistant - Cubs"]
["Group Section Assistant - Cub Scouts , Beaver Scouts , Scouts , Explorer Scouts","Section Assistant - Cubs"]
["Group Section Assistant - Cub Scouts, Beaver Scouts","Section Assistant - Cubs"]
["Group Section Assistant - Cub Scouts, Beaver Scouts, Scouts","Section Assistant - Cubs"]
["Group Section Assistant - Cub Scouts, Group","Section Assistant - Cubs"]
["Group Section Assistant - Cub Scouts, Scouts","Section Assistant - Cubs"]
["Group Section Assistant - Cub Scouts, Scouts, Explorer Scouts","Section Assistant - Cubs"]
["Group Section Assistant - Explorer Scouts","Section Assistant - Cubs"]
["Group Section Assistant - Explorer Scouts , Group","Section Assistant - Cubs"]
["Group Section Assistant - Explorer Scouts, Scouts","Section Assistant - Cubs"]
["Group Section Assistant - Group","Section Assistant - Cubs"]
["Group Section Assistant - Group, Beaver Scouts","Section Assistant - Cubs"]
["Group Section Assistant - Group, Beaver Scouts, Cub Scouts, Scouts","Section Assistant - Cubs"]
["Group Section Assistant - Group, Cub Scouts","Section Assistant - Cubs"]
["Group Section Assistant - Group, Scouts","Section Assistant - Cubs"]
["Group Section Assistant - Scouts","Section Assistant - Cubs"]
["Group Section Assistant - Scouts, Beaver Scouts","Section Assistant - Cubs"]
["Group Section Assistant - Scouts, Cub Scouts","Section Assistant - Cubs"]
["Group Section Assistant - Scouts, Cub Scouts, Beaver Scouts","Section Assistant - Cubs"]
["Group Section Assistant - Scouts, Explorer Scouts","Section Assistant - Cubs"]
["Group Section Assistant - Scouts, Explorer Scouts, Cub Scouts","Section Assistant - Cubs"]
["Group Section Assistant - Scouts, Group","Section Assistant - Cubs"]
["Group Section Assistant - Squirrel Scouts","Section Assistant - Cubs"]
["Group Section Assistant.","Section Assistant - Cubs"]
["Group Sectional Assistant Beavers","Section Assistant - Cubs"]
["Group Skills Instructor","Group Skills Instructor"]
["Group Sub-Committee Member","Group Sub-Committee Member"]
["Group Sub-Committee Member - Awards Advisory Group","Group Sub-Committee Member"]
["Group Sub-Committee Member - Finance Committee","Group Sub-Committee Member"]
["Group Sub-Committee Member - Operations Committee","Group Sub-Committee Member"]
["Group Sub-Committee Member - Risk Committee","Group Sub-Committee Member"]
["Group Sub-Committee Member - Safety","Group Sub-Committee Member"]
["Group Sub-Committee Member - Scout Grants Committee","Group Sub-Committee Member"]
["Group Supporter","Group Supporter"]
["Group Supporter - Quartermaster","Group Supporter"]
["Group Treasurer","Group Treasurer"]
["Group Treasurer.","Group Treasurer"]
["Group Vice President","Group Vice President"]
["Hebden Hey Team (Booking Secretary)"]
["Honorary District President","District President"]
["HQ Administrator","HQ Administrator"]
["HQ Administrator (Compass Support)","HQ Administrator"]
["HQ Administrator (Education)","HQ Administrator"]
["HQ Administrator (HR)","HQ Administrator"]
["HQ Administrator (Membership)","HQ Administrator"]
["HQ Administrator (RST and DGB)","HQ Administrator"]
["HQ Administrator (RST and DGB).","HQ Administrator"]
["HQ Administrator (RST)","HQ Administrator"]
["HQ Administrator (RST) - MSF","HQ Administrator"]
["HQ Administrator (Safeguarding)","HQ Administrator"]
["HQ Administrator (Safeguarding).","HQ Administrator"]
["HQ Administrator (Vetting)","HQ Administrator"]
["HQ Administrator (Vetting.)","HQ Administrator"]
["HQ Administrator (Volunteering)","HQ Administrator"]
["HQ Adviser","Country Adviser"]
["HQ Adviser - Adult Training","Country Adviser"]
["HQ Adviser - Global Adviser - Asia Pacific","Country Adviser"]
["HQ Adviser - Global Adviser - Eurasia","Country Adviser"]
["HQ Adviser - International","Country Adviser"]
["HQ Adviser - Technical","Country Adviser"]
["HQ Appointments Advisory Committee Member","UK HQ Appointment Advisory Committee Member"]
["HQ Appointments Chair","UK HQ Appointments Chair"]
["HQ Appointments Secretary","Country Appointments Secretary"]
["HQ Assistant Appointments Secretary","UK HQ Appointments Secretary"]
["HQ Centre Manager","Country Centre Manager"]
["HQ Chair","Chair of the UK Board"]
["HQ Chairman","Country Chair"]
["HQ Chaplain","Country Chaplain"]
["HQ Commissioner","UK Commissioner"]
["HQ Commissioner for Programme (Assurance)","UK Commissioner"]
["HQ Committee Member","Committee Member"]
["HQ Committee Member - Awards Advisory Group","Committee Member"]
["HQ Committee Member - Chair of Scout Grants Committee","Committee Member"]
["HQ Committee Member - Developments Grant Board","Committee Member"]
["HQ Committee Member - Events Sub Group Member","Committee member"]
["HQ Committee Member - Events Sub Group Member (Local Events)","Committee Member"]
["HQ Committee Member - Finance Committee","Committee Member"]
["HQ Committee Member - Finance Committee , People & Culture Committee","Committee Member"]
["HQ Committee Member - International","Committee Member"]
["HQ Committee Member - National Honours Subgroup","Committee member"]
["HQ Committee Member - National Honours Subgroup Chair","Committee member"]
["HQ Committee Member - Nominations and Governance Committee","Committee member"]
["HQ Committee Member - Operations Committee","Committee Member"]
["HQ Committee Member - POR Sub Group","Committee member"]
["HQ Committee Member - Risk Committee","Committee Member"]
["HQ Committee Member - Safeguarding","Committee Member"]
["HQ Committee Member - Safety","Committee Member"]
["HQ Committee Member - Scout Grants Committee","Committee Member"]
["HQ Committee Member - Scout Grants Committee (18-25)","Committee Member"]
["HQ Committee Member - Staffing, Salary and Remuneration Committee","Committee member"]
["HQ Committee Member - Sub Committee","Committee Member"]
["HQ Committee Member (Chair) - POR Sub Group","Committee member"]
["HQ Committee Member (Chair) - Scout Grants Committee","Committee member"]
["HQ Executive Committee Member","Country Executive Committee Member"]
["HQ Executive Committee Member - Elected Member","Country Executive Committee Member"]
["HQ Executive Committee Member - Ex-Officio Member","Country Executive Committee Member"]
["HQ Media Team"]
["HQ National Scout Organisation Contact"]
["HQ President","Country President"]
["HQ President - joint","President"]
["HQ Project Manager - Activities"]
["HQ Scout Active Support Manager","Scout Active Support Manager"]
["HQ Scout Council Member"]
["HQ Scout Council Member - Elected Member"]
["HQ Scout Council Member - Ex-Officio Member"]
["HQ Staff"]
["HQ Staff - Director of Commercial Services"]
["HQ Staff - Director of Scouting Operations"]
["HQ Staff (Media and Communications)"]
["HQ Supporter","County Supporter"]
["HQ Supporter - Magazine","County Supporter"]
["HQ System Administrator","HQ Administrator"]
["HQ Training Administrator","County Training Administrator"]
["HQ Training Adviser","Training Adviser"]
["HQ Training Adviser - Managers and Supporters","Training Adviser"]
["HQ Training Adviser - WSJ 2023","Training Adviser"]
["HQ Treasurer","Country Treasurer"]
["HQ Vice President","Vice President"]
["HQ Volunteer","HQ Volunteer"]
["HQ Volunteer - Census","HQ Volunteer"]
["HQ Volunteer - Chair Events & Contingents Sub Group","HQ Volunteer"]
["HQ Volunteer - Communications","HQ Volunteer"]
["HQ Volunteer - Community Impact Group","HQ Volunteer"]
["HQ Volunteer - Deputy UK Rep Pool Lead","HQ Volunteer"]
["HQ Volunteer - Deputy Windsor Parade Leader","HQ Volunteer"]
["HQ Volunteer - Drupal Developers","HQ Volunteer"]
["HQ Volunteer - Events Sub Group","HQ Volunteer"]
["HQ Volunteer - First Aid Training Specialist","HQ Volunteer"]
["HQ Volunteer - Fundraising","HQ Volunteer"]
["HQ Volunteer - Grants & Funding Facilitator","HQ Volunteer"]
["HQ Volunteer - Inclusivity Advisory Group","HQ Volunteer"]
["HQ Volunteer - Interim UK Specialist Adviser (Air Scouts)","HQ Volunteer"]
["HQ Volunteer - International","HQ Volunteer"]
["HQ Volunteer - Jamboree on the Air Co-ordinator","HQ Volunteer"]
["HQ Volunteer - Jamboree on the Internet","HQ Volunteer"]
["HQ Volunteer - Learning Systems Senior User - Project Board Member (Digital)","HQ Volunteer"]
["HQ Volunteer - Membership Systems Senior User - Project Board Member (Digital)","HQ Volunteer"]
["HQ Volunteer - Pride 2020","HQ Volunteer"]
["HQ Volunteer - Pride in London","HQ Volunteer"]
["HQ Volunteer - Pride in London 2020","HQ Volunteer"]
["HQ Volunteer - Programme Assurance Team","HQ Volunteer"]
["HQ Volunteer - Programme Board Member","HQ Volunteer"]
["HQ Volunteer - Programme Board Member - People Programme","HQ Volunteer"]
["HQ Volunteer - Programme Board Member - Perception","HQ Volunteer"]
["HQ Volunteer - Programme Board Member (Digital) Inclusion COP Rep","HQ Volunteer"]
["HQ Volunteer - Programme Board Member (Early Years)","HQ Volunteer"]
["HQ Volunteer - Programme Board Member (People)","HQ Volunteer"]
["HQ Volunteer - Programme Board Member (People) Diversity COP Rep","HQ Volunteer"]
["HQ Volunteer - Programme Board Member (People) Youth Shaped COP Rep","HQ Volunteer"]
["HQ Volunteer - Programme Sponsor","HQ Volunteer"]
["HQ Volunteer - Programme Sponsor - Digital Transformation","HQ Volunteer"]
["HQ Volunteer - Programme Sponsor - People","HQ Volunteer"]
["HQ Volunteer - Programme Sponsor Squirrels","HQ Volunteer"]
["HQ Volunteer - Project Board Member","HQ Volunteer"]
["HQ Volunteer - Project Board Member - Early Years","HQ Volunteer"]
["HQ Volunteer - Project Board Member - Perception Uniform Project","HQ Volunteer"]
["HQ Volunteer - Project Board Member - Volunteer Learning","HQ Volunteer"]
["HQ Volunteer - Project Board Member NCS","HQ Volunteer"]
["HQ Volunteer - Project Lead (How we Volunteer) - People Programme","HQ Volunteer"]
["HQ Volunteer - Project Lead (Learning Content Development Strategy) - People Programme","HQ Volunteer"]
["HQ Volunteer - Project Lead (Learning Framework and Culture) - People Programme","HQ Volunteer"]
["HQ Volunteer - Project Lead (User Testing and Engagement) - People Programme","HQ Volunteer"]
["HQ Volunteer - Project Lead (Volunteering Culture) - People Programme","HQ Volunteer"]
["HQ Volunteer - Project Sponsor","HQ Volunteer"]
["HQ Volunteer - Project Sponsor - Membership System","HQ Volunteer"]
["HQ Volunteer - Project Sponsor - People Programme","HQ Volunteer"]
["HQ Volunteer - Project Sponsor - Positive Volunteer Experience Project","HQ Volunteer"]
["HQ Volunteer - Safe Scouting Learning Review Group","HQ Volunteer"]
["HQ Volunteer - Safeguarding","HQ Volunteer"]
["HQ Volunteer - Scout Programme","HQ Volunteer"]
["HQ Volunteer - Scouting Ambassador","HQ Volunteer"]
["HQ Volunteer - Sea Scout Adviser","HQ Volunteer"]
["HQ Volunteer - Senior Supplier (External Learning Expertise) - Project Board Member (Digital)","HQ Volunteer"]
["HQ Volunteer - Specialist Advisers for Inclusion and Diversity","HQ Volunteer"]
["HQ Volunteer - Theme Lead (Welcome) - People Programme","HQ Volunteer"]
["HQ Volunteer - UK Beaver Scout Adviser","HQ Volunteer"]
["HQ Volunteer - UK Contingent Coordinator","HQ Volunteer"]
["HQ Volunteer - UK Cub Adviser","HQ Volunteer"]
["HQ Volunteer - UK Explorer Scout Adviser","HQ Volunteer"]
["HQ Volunteer - UK Explorer Scout Advisor","HQ Volunteer"]
["HQ Volunteer - UK Rep Pool Lead","HQ Volunteer"]
["HQ Volunteer - UK Rep Pool Member","HQ Volunteer"]
["HQ Volunteer - UK Scout Adviser","HQ Volunteer"]
["HQ Volunteer - Volunteer Data Analyst","HQ Volunteer"]
["HQ Volunteer - Volunteer Head of Governance","HQ Volunteer"]
["HQ Volunteer - Volunteer Welcome Theme Lead (People Programme)","HQ Volunteer"]
["HQ Volunteer - Windsor Lead","HQ Volunteer"]
["HQ Volunteer - Windsor Parade Leader","HQ Volunteer"]
["HQ Volunteer - Windsor Service Planning & Delivery Team Leader","HQ Volunteer"]
["HQ Volunteer - World Scout Moot 2022","HQ Volunteer"]
["HQ Volunteer - WOSM","HQ Volunteer"]
["HQ Volunteer - WOSM European Jamboree 2020 Planning Team","HQ Volunteer"]
["HQ Volunteer - WOSM European Jamboree Planning Team","HQ Volunteer"]
["HQ Volunteer - WOSM World Scout Moot 2021 Planning Team","HQ Volunteer"]
["HQ Volunteer - You Shape","HQ Volunteer"]
["HQ Volunteer - Youth Shaped Community of Practice","HQ Volunteer"]
["HQ Volunteer - Youth Shaped National Role Pool","HQ Volunteer"]
["Interim Chief Commissioner of England","Chief Commissioner"]
["International Commissioner","International Commissioner"]
["International Service Team Member","International Service Team Member"]
["International Service Team Member - European Jamboree 2020","International Service Team Member"]
["International Service Team Member - European Jamboree 2020 - European Jamboree 2020","International Service Team Member"]
["International Service Team Member - World Scout Jamboree 2019","International Service Team Member"]
["International Service Team Member - World Scout Moot 2022","International Service Team Member"]
["Island Commissioner","Island Commissioner"]
["Joint Camp Chief - Essex International Jamboree 2020","Unit Leader"]
["Leader - Explorer Scouts","Section Leader - Explorers"]
["Local Development Officer"]
["Local Training Manager (Basildon)","Local Training Manager"]
["Local Training Manager (Chelmsford And District)","Local Training Manager"]
["Local Training Manager (Colchester North)","Local Training Manager"]
["Local Training Manager (Halstead And Colne Valley)","Local Training Manager"]
["Local Training Manager (Southend West)","Local Training Manager"]
["Local Training Manager (Tendring)","Local Training Manager"]
["Local Training Manager (Thurrock)","Local Training Manager"]
["Lonsdale Crew Co-ordinator","Scout Active Support Co-ordinator"]
["Lonsdale Crew Member","Scout Active Support member"]
["Lord chief of all camp sites"]
["Manager - UK Training Advisers","County Training Manager"]
["Member District Youth Advisory Group"]
["Member Regional Youth Advisory Group"]
["Membership Secretary","County Administrator"]
["National Assessor","Country Assessor"]
["National Assessor - Archery - Without Compound Bows","Country Assessor"]
["National Assessor - Canoeing - Open Inland B1 Waters","Country Assessor"]
["National Assessor - Canoeing - Sea B1 Waters","Country Assessor"]
["National Assessor - Caving - With SRT for the Leader","Country Assessor"]
["National Assessor - Climbing and Abseiling - Artifical Top Rope","Country Assessor"]
["National Assessor - Climbing and Abseiling - Natural Lead Climbing","Country Assessor"]
["National Assessor - Great Tower","Country Assessor"]
["National Assessor - Hill Walking - Terrain 2 Summer","Country Assessor"]
["National Assessor - Kayaking - Open Inland B1 Waters","Country Assessor"]
["National Assessor - Kayaking - Sea B1 Waters","Country Assessor"]
["National Assessor - Rafting (Traditional) - B1 Waters","Country Assessor"]
["National Catholic Scout Chaplain","Country Chaplain"]
["National Inclusion Team Member"]
["National Inclusion Team Member (Extending Reach)"]
["National Inclusion Team Member (Resources)"]
["National Inclusion Team Member (Training)"]
["National Inclusion Team Member (Widening Participation)"]
["National Large Events Administrator","Large Events Administrator"]
["National Manager of the Activity Permit Scheme","County Manager of the Activity Permit Scheme"]
["National Nights Away Adviser - Nights Away - Greenfield","District Nights Away Adviser"]
["National Scout Active Support – Responsible Commissioner","Assistant Country Commissioner - Scout Support"]
["National Scout Active Support Member","Scout Active Support member"]
["National Scout Organisation Contact"]
["National Volunteer Inclusion Manager - Community Engagement"]
["NI HQ Administrator","HQ Administrator"]
["Non Member PVG Only"]
["Northern Ireland HQ Staff"]
["Occasional Helper"]
["Overseas HQ Administrator","HQ Administrator"]
["parent helper"]
["Programme Sponsor - Digital Transformation"]
["Programme Sponsor - People"]
["Programme Sponsor - Squirrels"]
["Project Sponsor - Digital (Learning System)"]
["Project Sponsor - Membership System (Digital)"]
["Project Sponsor - People"]
["Project Sponsor - Positive Volunteer Experience (People)"]
["Quartermaster","Group Administrator"]
["Queen's Scout Award Mentor (Explorer)","Section Assistant - Explorers"]
["Race Equity Adviser","District Adviser"]
["Race Equity Project Board Member"]
["Regional Administrator","Regional Administrator"]
["Regional Adviser - Duke of Edinburgh's Award","Regional Adviser (Scotland)"]
["Regional Appointments Secretary","Regional Appointments Secretary (Scotland)"]
["Regional Assistant Commissioner (Section)","Assistant Regional Commissioner (Scotland) - Explorer Support"]
["Regional Camp Warden","Regional (Scotland) Camp Warden"]
["Regional Commissioner","Regional Commissioner"]
["Regional Commissioner (Acting)","Acting Regional Commissioner"]
["Regional Executive Committee Member","Elected Regional Executive Member (Scotland)"]
["Regional Scout Active Support Member - Fordell Firs","Scout Active Support member"]
["Regional Scouter","County Leader - Scout Support"]
["Regional Supporter","Regional Supporter"]
["Regional Trainer","Trainer"]
["Regional Trainer - Leadership and Management","Trainer"]
["Regional Training Administrator","County Training Administrator"]
["Regional Training Adviser","Training Adviser"]
["Regional Training Adviser - Managers and Supporters","Training Adviser"]
["Regional Training Manager (England)","County Training Manager"]
["Retired Member"]
["Rifle Club Active Support Member","Scout Active Support member"]
["Rifle Club ASU member","Scout Active Support member"]
["Rifle Club Scout Active Support Manager","Scout Active Support Manager"]
["Rifle Club Skills Instructor","District Skills Instructor"]
["Safeguarding Awareness Co-ordinator","Safeguarding Awareness Co-ordinator"]
["Scotland Commissioner - Scouts","Scotland Commissioner (Section)"]
["Scotland Commissioner (Adult Training)","Scotland Commissioner (Adult Training)"]
["Scotland Commissioner (Beaver Scouts)","Scotland Commissioner (Section)"]
["Scotland Commissioner (Community Impact)","Scotland Commissioner (Adult Training)"]
["Scotland Commissioner (Cub Scouts)","Scotland Commissioner (Section)"]
["Scotland Commissioner (Explorer Scouts)","Scotland Commissioner (Section)"]
["Scotland Commissioner (Growth)","Scotland Commissioner (Adult Training)"]
["Scotland Commissioner (Inclusion)","Scotland Commissioner (Adult Training)"]
["Scotland Commissioner (International)","Scotland Commissioner (Adult Training)"]
["Scotland Commissioner (Outdoor and Adventure)","Scotland Commissioner (Adult Training)"]
["Scotland Commissioner (Scout Network)","Scotland Commissioner (Section)"]
["Scotland Commissioner (Youth Involvement)","Scotland Commissioner (Adult Training)"]
["Scotland HQ Administrator","HQ Administrator"]
["Scotland HQ Staff"]
["Scotland Inclusion Adviser (LGBTQ)","Country Adviser"]
["Scotland Reg Adviser - Duke of Edinburgh's Award","Regional Adviser (Scotland)"]
["Scotland Reg Assistant Commissioner - Development","Assistant Regional Commissioner (Scotland) - Explorer Support"]
["Scotland Reg Asst Commiss(Section)-Explorer Scouts","Assistant Regional Commissioner (Scotland) - Explorer Support"]
["Scotland Reg Asst Commissioner - Adult Training","Assistant Regional Commissioner (Scotland) - Explorer Support"]
["Scotland Reg Asst Commissioner - Section Support","Assistant Regional Commissioner (Scotland) - Explorer Support"]
["Scotland Region Administrator","Regional Administrator (Scotland)"]
["Scotland Region Administrator - Assistant Secretary","Regional Administrator (Scotland)"]
["Scotland Region Adviser","Regional Adviser (Scotland)"]
["Scotland Region Adviser - Activities","Regional Adviser (Scotland)"]
["Scotland Region Adviser - Adult Training","Regional Adviser (Scotland)"]
["Scotland Region Adviser - Duke of Edinburgh's Award","Regional Adviser (Scotland)"]
["Scotland Region Adviser - Health and Safety","Regional Adviser (Scotland)"]
["Scotland Region Adviser - Inclusion","Regional Adviser (Scotland)"]
["Scotland Region Adviser - International","Regional Adviser (Scotland)"]
["Scotland Region Adviser - Mountain Activities","Regional Adviser (Scotland)"]
["Scotland Region Adviser - Scout Active Support","Regional Adviser (Scotland)"]
["Scotland Region Adviser - Special Needs","Regional Adviser (Scotland)"]
["Scotland Region Adviser - Technical","Regional Adviser (Scotland)"]
["Scotland Region Adviser - Water Activities","Regional Adviser (Scotland)"]
["Scotland Region Adviser - Young Leaders","Regional Adviser (Scotland)"]
["Scotland Region Adviser- hill walking","Regional Adviser (Scotland)"]
["Scotland Region Appointments Advisory Committee Member","Regional Appointments Advisory Committee Member (Scotland)"]
["Scotland Region Appointments Chair","Regional Appointments Chair (Scotland)"]
["Scotland Region Appointments Secretary","Regional Appointments Secretary (Scotland)"]
["Scotland Region Assessor","Regional Assessor (Scotland)"]
["Scotland Region Assessor - Archery - Without Compound Bows","Regional Assessor (Scotland)"]
["Scotland Region Assessor - Canoeing - Open Inland B1 Waters","Regional Assessor (Scotland)"]
["Scotland Region Assessor - Canoeing - River B1 Waters","Regional Assessor (Scotland)"]
["Scotland Region Assessor - Canoeing - Sea B1 Waters","Regional Assessor (Scotland)"]
["Scotland Region Assessor - Canoeing - Sea B2 Waters","Regional Assessor (Scotland)"]
["Scotland Region Assessor - Climbing and Abseiling - Multipitch Climbing","Regional Assessor (Scotland)"]
["Scotland Region Assessor - Climbing and Abseiling - Natural Lead Climbing","Regional Assessor (Scotland)"]
["Scotland Region Assessor - Dinghy Sailing - A Waters","Regional Assessor (Scotland)"]
["Scotland Region Assessor - Dinghy Sailing - B2 Waters","Regional Assessor (Scotland)"]
["Scotland Region Assessor - Hill Walking - Terrain 1 Summer","Regional Assessor (Scotland)"]
["Scotland Region Assessor - Hill Walking - Terrain 1 Summer, Hill Walking - Terrain 2 Summer","Regional Assessor (Scotland)"]
["Scotland Region Assessor - Hill Walking - Terrain 2 Summer","Regional Assessor (Scotland)"]
["Scotland Region Assessor - Hill Walking - Terrain 2 Winter","Regional Assessor (Scotland)"]
["Scotland Region Assessor - Ice Climbing - Multipitch Ice Climbing","Regional Assessor (Scotland)"]
["Scotland Region Assessor - Kayaking - Open Inland B1 Waters","Regional Assessor (Scotland)"]
["Scotland Region Assessor - Kayaking - Open Inland B1 Waters, Kayaking - Sea B1 Waters, Kayaking - Ri","Regional Assessor (Scotland)"]
["Scotland Region Assessor - Kayaking - Sea B3 Waters","Regional Assessor (Scotland)"]
["Scotland Region Assessor - Mountain Biking - Terrain 2 Summer","Regional Assessor (Scotland)"]
["Scotland Region Assessor - Power Boating - B2 Waters","Regional Assessor (Scotland)"]
["Scotland Region Assessor - Power Boating - B2 Waters, Motor Cruising - A Waters","Regional Assessor (Scotland)"]
["Scotland Region Assessor - Power Boating - B3 Waters","Regional Assessor (Scotland)"]
["Scotland Region Assessor - Rafting (Traditional) - B1 Waters","Regional Assessor (Scotland)"]
["Scotland Region Assessor - Rafting (Traditional) - B2+ Waters","Regional Assessor (Scotland)"]
["Scotland Region Assessor - Snowsports - On Piste","Regional Assessor (Scotland)"]
["Scotland Region Assessor - Windsurfing - B3 Waters","Regional Assessor (Scotland)"]
["Scotland Region Assistant Camp Warden","Assistant Regional (Scotland) Camp Warden"]
["Scotland Region Assistant Commissioner","Assistant Regional Commissioner (Scotland) - Explorer Support"]
["Scotland Region Assistant Commissioner - Communications","Assistant Regional Commissioner (Scotland) - Explorer Support"]
["Scotland Region Assistant Commissioner - Development","Assistant Regional Commissioner (Scotland) - Explorer Support"]
["Scotland Region Assistant Commissioner - Scout Active Support","Assistant Regional Commissioner (Scotland) - Explorer Support"]
["Scotland Region Assistant Commissioner - Special Needs","Assistant Regional Commissioner (Scotland) - Explorer Support"]
["Scotland Region Assistant Commissioner - Support","Assistant Regional Commissioner (Scotland) - Explorer Support"]
["Scotland Region Assistant Commissioner - Youth Involvement","Assistant Regional Commissioner (Scotland) - Explorer Support"]
["Scotland Region Assistant Commissioner (Adult Training)","Assistant Regional Commissioner (Scotland) - Explorer Support"]
["Scotland Region Assistant Commissioner (Section Support)","Assistant Regional Commissioner (Scotland) - Explorer Support"]
["Scotland Region Assistant Commissioner (Section Support) - Explorer Scouts","Assistant Regional Commissioner (Scotland) - Explorer Support"]
["Scotland Region Assistant Commissioner (Section Support) - Squirrel Scouts","Assistant Regional Commissioner"]
["Scotland Region Assistant Commissioner (Section)","Assistant Regional Commissioner (Scotland) - Explorer Support"]
["Scotland Region Assistant Commissioner (Section) - Beaver Scouts, Cub Scouts, Scouts","Assistant Regional Commissioner (Scotland) - Explorer Support"]
["Scotland Region Assistant Commissioner (Section) - Explorer Scouts","Assistant Regional Commissioner (Scotland) - Explorer Support"]
["Scotland Region Assistant Commissioner (Section) - Explorer Scouts, Scout Network","Assistant Regional Commissioner (Scotland) - Explorer Support"]
["Scotland Region Assistant Commissioner (Section) - Scout Network","Assistant Regional Commissioner (Scotland) - Explorer Support"]
["Scotland Region Badge Secretary","Region (Scotland) Badge Secretary"]
["Scotland Region Camp Warden","Regional (Scotland) Camp Warden"]
["Scotland Region Centre Manager","Regional (Scotland) Centre Manager"]
["Scotland Region Chair","Regional Chair (Scotland)"]
["Scotland Region Commissioner","Regional Commissioner (Scotland)"]
["Scotland Region Commissioner (Acting)","Regional Commissioner (Scotland)"]
["Scotland Region Committee Member","Region (Scotland) Sub-Committee Member"]
["Scotland Region Communications Manager","County Communications Manager"]
["Scotland Region Deputy Chair","Regional (Scotland) Deputy Chair"]
["Scotland Region Deputy Commissioner","Deputy Regional Commissioner (Scotland)"]
["Scotland Region Deputy Commissioner - Adult Support","Deputy Regional Commissioner (Scotland)"]
["Scotland Region Deputy Commissioner - Programme","Deputy Regional Commissioner (Scotland)"]
["Scotland Region Executive Committee Member","Elected Regional Executive Member (Scotland)"]
["Scotland Region Executive Committee Member - Elected Member","Elected Regional Executive Member (Scotland)"]
["Scotland Region Executive Committee Member - Ex-Officio Member","Elected Regional Executive Member (Scotland)"]
["Scotland Region Executive Committee Member - Nominated Member","Elected Regional Executive Member (Scotland)"]
["Scotland Region Manager of the Activity Permit Scheme","Region (Scotland) Manager of the Activity Permit Scheme"]
["Scotland Region Nights Away Adviser","District Nights Away Adviser"]
["Scotland Region Nights Away Adviser - Nights Away - Campsite","District Nights Away Adviser"]
["Scotland Region Nights Away Adviser - Nights Away - Greenfield","District Nights Away Adviser"]
["Scotland Region Nights Away Adviser - Nights Away - Greenfield, Nights Away - Campsite, Nights Away","District Nights Away Adviser"]
["Scotland Region Nights Away Adviser - Nights Away - Lightweight Expedition, Nights Away - Greenfield","District Nights Away Adviser"]
["Scotland Region Non-Member PVG"]
["Scotland Region President","Regional President (Scotland)"]
["Scotland Region Safeguarding Adviser","Region (Scotland) Safeguarding Adviser"]
["Scotland Region Safeguarding Awareness Co-ordinator","Safeguarding Awareness Co-ordinator"]
["Scotland Region Safety Adviser","Region (Scotland) Safety Adviser"]
["Scotland Region Safety Adviser - Safety","Region (Scotland) Safety Adviser"]
["Scotland Region Scout Active Support Co-ordinator","Scout Active Support Co‑ordinator"]
["Scotland Region Scout Active Support Manager","Scout Active Support Manager"]
["Scotland Region Scout Active Support Member","Scout Active Support Member"]
["Scotland Region Scout Council Member"]
["Scotland Region Scout Council Member - Nominated Representative"]
["Scotland Region Scout Council Member - Nominated Youth Representative"]
["Scotland Region Secretary","Regional (Scotland) Secretary"]
["Scotland Region Staff"]
["Scotland Region Sub-Committee Member - Awards Advisory Group","Region (Scotland) Sub-Committee Member"]
["Scotland Region Sub-Committee Member - Risk Committee","Region (Scotland) Sub-Committee Member"]
["Scotland Region Supporter","Regional Supporter"]
["Scotland Region Trainer","Trainer"]
["Scotland Region Trainer - First Aid","Trainer"]
["Scotland Region Trainer - Safeguarding Awareness","Trainer"]
["Scotland Region Training Administrator","Region (Scotland) Training Administrator"]
["Scotland Region Training Adviser","Training Adviser"]
["Scotland Region Training Adviser - Managers and Supporters","Training Adviser"]
["Scotland Region Treasurer","Regional (Scotland) Treasurer"]
["Scotland Region Vice President","Regional Vice President (Scotland)"]
["Scotland Regional Adviser","Regional Adviser (Scotland)"]
["Scotland Regional Adviser - Faiths & Beliefs","Regional Adviser (Scotland)"]
["Scotland Regional Adviser - Health and Safety","Regional Adviser (Scotland)"]
["Scotland Regional Adviser - International","Regional Adviser (Scotland)"]
["Scotland Regional Adviser - Special Needs","Regional Adviser (Scotland)"]
["Scotland Regional Adviser - Staged Performances","Regional Adviser (Scotland)"]
["Scotland Regional Assessor - Canoeing - Open Inland B1 Waters","Regional Adviser (Scotland)"]
["Scotland Regional Assessor - Canoeing - River B1 Waters","Regional Adviser (Scotland)"]
["Scotland Regional Assessor - Canoeing - Sea B1 Waters","Regional Adviser (Scotland)"]
["Scotland Regional Assessor - Dinghy Sailing - A Waters","Regional Adviser (Scotland)"]
["Scotland Regional Assessor - Hillwalking","Regional Adviser (Scotland)"]
["Scotland Regional Assessor - Hillwalking - Terrain 2 Summer","Regional Adviser (Scotland)"]
["Scotland Regional Assessor - Hillwalking - Terrain 2 Winter","Regional Adviser (Scotland)"]
["Scotland Regional Assessor - Hovercrafting - Land","Regional Adviser (Scotland)"]
["Scotland Regional Assessor - Kayaking - Open Inland B1 Waters","Regional Adviser (Scotland)"]
["Scotland Regional Assessor - Kayaking - Open Inland B2 Waters","Regional Adviser (Scotland)"]
["Scotland Regional Assessor - Kayaking - River A Waters","Regional Adviser (Scotland)"]
["Scotland Regional Assessor - Kayaking - River B1 Waters","Regional Adviser (Scotland)"]
["Scotland Regional Assessor - Kayaking - Sea B1 Waters","Regional Adviser (Scotland)"]
["Scotland Regional Assessor - Power Boating - A Waters","Regional Adviser (Scotland)"]
["Scotland Regional Assessor - Power Boating - B2 Waters","Regional Adviser (Scotland)"]
["Scotland Regional Assessor - Wind Surfing","Regional Adviser (Scotland)"]
["Scotland Regional Deputy Commissioner","Deputy Regional Commissioner (Scotland)"]
["Scotland Regional Manager of the Activity Permit Scheme","Region (Scotland) Manager of the Activity Permit Scheme"]
["Scotland Regional President","Regional President (Scotland)"]
["Scotland Regional Scout Active Support Manager","Scout Active Support Manager"]
["Scotland Regional Scout Active Support Member","Scout Active Support member"]
["Scotland Regional Secretary","Regional (Scotland) Secretary"]
["Scotland Regional Supporter","Regional Supporter"]
["Scotland Regional Supporter of the Nights Away Permit Scheme","Regional (Scotland) Supporter of the Nights Away Permit Scheme"]
["Scotland Regional Training Administrator","Region (Scotland) Training Administrator"]
["Scotland Regional Treasurer","Regional (Scotland) Treasurer"]
["Scotland Regional Vice President","Regional Vice President (Scotland)"]
["Scotland Trustee Board Member","County Executive Member"]
["Scottish Headquarters Commissioner (International)","Assistant Country Commissioner - International"]
["Scottish Regional Assistant Commissioner International","Assistant Regional Commissioner (Scotland) - Explorer Support"]
["Scout Active Support Co-ordinator","Scout Active Support Co‑ordinator"]
["Scout Active Support Manager","Scout Active Support Manager"]
["Scout Active Support Manager (S.T.A.G. ASU)","Scout Active Support Manager"]
["Scout Active Support Member","Scout Active Support Member"]
["Scout Active Support Member - Archivist","Scout Active Support Member"]
["Scout Leader","Section Leader - Scouts"]
["Scout Network Member"]
["Scouting Ambassador"]
["Scouting Support Officer"]
["Scouts Scotland Trustee","County Executive Member"]
["Secretary","District Secretary"]
["Section Assistant","Section Assistant - Cubs"]
["Section Assistant - Beaver Scouts","Section Assistant - Cubs"]
["Section Assistant - Beaver Scouts, Cub Scouts","Section Assistant - Cubs"]
["Section Assistant - Beaver Scouts, Cub Scouts, Group","Section Assistant - Cubs"]
["Section Assistant - Beaver Scouts, Cub Scouts, Scouts","Section Assistant - Cubs"]
["Section Assistant - Beaver Scouts, Cub Scouts, Scouts, Explorer Scouts","Section Assistant - Cubs"]
["Section Assistant - Beaver Scouts, Explorer Scouts","Section Assistant - Cubs"]
["Section Assistant - Beaver Scouts, Group","Section Assistant - Cubs"]
["Section Assistant - Beaver Scouts, Scouts","Section Assistant - Cubs"]
["Section Assistant - Beaver Scouts, Squirrel Scouts","Section Assistant - Cubs"]
["Section Assistant - Cub Scouts","Section Assistant - Cubs"]
["Section Assistant - Cub Scouts , Scouts","Section Assistant - Cubs"]
["Section Assistant - Cub Scouts, Beaver Scouts","Section Assistant - Cubs"]
["Section Assistant - Cub Scouts, Beaver Scouts, Scouts","Section Assistant - Cubs"]
["Section Assistant - Cub Scouts, Group","Section Assistant - Cubs"]
["Section Assistant - Cub Scouts, Scouts","Section Assistant - Cubs"]
["Section Assistant - Cub Scouts, Scouts, Beaver Scouts","Section Assistant - Cubs"]
["Section Assistant - Cub Scouts, Scouts, Group","Section Assistant - Cubs"]
["Section Assistant - Explorer Scouts","Section Assistant - Cubs"]
["Section Assistant - Explorer Scouts, Cub Scouts","Section Assistant - Cubs"]
["Section Assistant - Explorer Scouts, Scouts","Section Assistant - Cubs"]
["Section Assistant - Foxes Cubs","Section Assistant - Cubs"]
["Section Assistant - Group","Section Assistant - Cubs"]
["Section Assistant - Group, Beaver Scouts","Section Assistant - Cubs"]
["Section Assistant - Group, Beaver Scouts, Cub Scouts","Section Assistant - Cubs"]
["Section Assistant - Group, Beaver Scouts, Cub Scouts, Scouts","Section Assistant - Cubs"]
["Section Assistant - Group, Cub Scouts","Section Assistant - Cubs"]
["Section Assistant - Group, Cub Scouts, Beaver Scouts","Section Assistant - Cubs"]
["Section Assistant - Group, Cub Scouts, Scouts","Section Assistant - Cubs"]
["Section Assistant - Group, Explorer Scouts","Section Assistant - Cubs"]
["Section Assistant - Group, Scouts","Section Assistant - Cubs"]
["Section Assistant - Group, Scouts, Cub Scouts","Section Assistant - Cubs"]
["Section Assistant - Group, Scouts, Cub Scouts, Beaver Scouts, Explorer Scouts","Section Assistant - Cubs"]
["Section Assistant - Group, Scouts, Explorer Scouts","Section Assistant - Cubs"]
["Section Assistant - Ruxox Scouts","Section Assistant - Cubs"]
["Section Assistant - Scouts","Section Assistant - Cubs"]
["Section Assistant - Scouts , Explorer Scouts","Section Assistant - Cubs"]
["Section Assistant - Scouts, Beaver Scouts","Section Assistant - Cubs"]
["Section Assistant - Scouts, Cub Scouts","Section Assistant - Cubs"]
["Section Assistant - Scouts, Cub Scouts, Beaver Scouts","Section Assistant - Cubs"]
["Section Assistant - Scouts, Explorer Scouts","Section Assistant - Cubs"]
["Section Assistant - Scouts, Group","Section Assistant - Cubs"]
["Section Assistant - Squirrel Scouts","Section Assistant - Beavers"]
["Section Assistant - Squirrel Scouts, Beaver Scouts","Section Assistant - Beavers"]
["Section Assistant - Squirrels","Section Assistant - Cubs"]
["Section Assistant.","Section Assistant - Cubs"]
["Section Leader","Section Leader - Cubs"]
["Section Leader - Beaver Scouts","Section Leader - Cubs"]
["Section Leader - Beaver Scouts (Bisons)","Section Leader - Cubs"]
["Section Leader - Beaver Scouts (Lumberjacks)","Section Leader - Cubs"]
["Section Leader - Beaver Scouts (Mounties)","Section Leader - Cubs"]
["Section Leader - Beaver Scouts (Pioneers)","Section Leader - Cubs"]
["Section Leader - Beaver Scouts, Cub Scouts","Section Leader - Cubs"]
["Section Leader - Beaver Scouts, Cub Scouts, Scouts","Section Leader - Cubs"]
["Section Leader - Beaver Scouts, Cub Scouts, Scouts, Explorer Scouts","Section Leader - Beavers"]
["Section Leader - Beaver Scouts, Scouts","Section Leader - Cubs"]
["Section Leader - Beaver Scouts, Squirrel Scouts","Section Leader - Beavers"]
["Section Leader - Cub Scouts","Section Leader - Cubs"]
["Section Leader - Cub Scouts, Beaver Scouts","Section Leader - Cubs"]
["Section Leader - Cub Scouts, Beaver Scouts, Scouts","Section Leader - Cubs"]
["Section Leader - Cub Scouts, Scouts","Section Leader - Cubs"]
["Section Leader - Cub Scouts, Scouts, Beaver Scouts","Section Leader - Cubs"]
["Section Leader - Explorer Scouts","Section Leader - Cubs"]
["Section Leader - Explorer Scouts (Awards)","Section Leader - Cubs"]
["Section Leader - Explorer Scouts (Yng Leader)","Section Leader - Cubs"]
["Section Leader - Explorer Scouts (Yng Leader), Explorer Scouts","Section Leader - Cubs"]
["Section Leader - Explorer Scouts, Scouts","Section Leader - Cubs"]
["Section Leader - Scouts","Section Leader - Cubs"]
["Section Leader - Scouts (Belfast)","Section Leader - Cubs"]
["Section Leader - Scouts (Victory)","Section Leader - Cubs"]
["Section Leader - Scouts Sailing","Section Leader - Cubs"]
["Section Leader - Scouts, 529887","Section Leader - Cubs"]
["Section Leader - Scouts, Beaver Scouts","Section Leader - Cubs"]
["Section Leader - Scouts, Cub Scouts","Section Leader - Cubs"]
["Section Leader - Scouts, Cub Scouts, Beaver Scouts","Section Leader - Cubs"]
["Section Leader - Scouts, Explorer Scouts","Section Leader - Cubs"]
["Section Leader - Scouts, Squirrel Scouts","Section Leader - Cubs"]
["Section Leader - Sea Scouts","Section Leader - Cubs"]
["Section Leader - Squirrel Scouts","Section Leader - Cubs"]
["Section Leader -Cub Scouts","Section Leader - Cubs"]
["Section Leader- Cub Scouts","Section Leader - Cubs"]
["Section Leader.","Section Leader - Cubs"]
["Senior Supplier (external expertise) - Learning Systems Project Board (Digital)"]
["Senior Supplier (external expertise) - Membership Management Project Board (Digital)"]
["Senior User - Digital Programme Board (Digital)"]
["Senior User - Learning Systems Board (Digital)"]
["Senior User - Membership Systems Board (Digital)"]
["Service Team Member","Scout Active Support Member"]
["SHQ Administrator (Membership)","HQ Administrator"]
["Skills Instructor","District Skills Instructor"]
["Social Media Adminstrator","District Administrator"]
["Social Media Manager","District Communications Manager"]
["Squirrel Leader","Section Leader - Cubs"]
["Sub-Committee Member","District Sub-Committee Member"]
["Sub-Committee Member - Nominations and Governance Committee","District Sub-Committee Member"]
["Sub-Committee Member - Operations Committee","District Sub-Committee Member"]
["Sub-Committee Member - Safety","County Sub-Committee Member"]
["Sub-Committee Member - Sub Committee","District Sub-Committee Member"]
["TableDataAPI"]
["Theme Lead Volunteer Framework (People Programme)"]
["Training Administrator","Local Training Administrator"]
["Training Administrator (Chelmsford And District)","Local Training Administrator"]
["Training Administrator (Halstead and Colne Valley)","Local Training Administrator"]
["Training Administrator (Harlow and Royal Forest Districts)","Local Training Administrator"]
["Training Administrator (Thurrock)","Local Training Administrator"]
["Training Manager","Local Training Manager"]
["Training Support Manager","Training Support Manager - England"]
["Treasurer","Group Treasurer"]
["Troop Assistant","Section Assistant - Scouts"]
["TSA Council Member"]
["TSA Council Member - Elected Member"]
["TSA Council Member - Ex-Officio Member"]
["TSA Council Member - Ex-Officio Member, Nominated Member"]
["TSA Council Member - Ex-Officio Member, Nominated Member (18-24)"]
["TSA Council Member - Nominated Member"]
["TSA Council Member - Nominated Member (18-24)"]
["UK - Youth Commissioner","UK Youth Commissioner"]
["UK Adviser for Global Programme","Country Adviser"]
["UK Chief Commissioner","UK Chief Commissioner"]
["UK Commissioner for Inclusion","UK Commissioner"]
["UK Commissioner for Overseas Branches","UK Commissioner"]
["UK Commissioner for Overseas Branches.","UK Commissioner"]
["UK Commissioner for People","UK Commissioner"]
["UK Commissioner for Perception","UK Commissioner"]
["UK Commissioner for Programme","UK Commissioner"]
["UK Commissioner for Programme (Delivery)","UK Commissioner"]
["UK Scout Network (SOWA) Lead Volunteer","UK Commissioner"]
["UK Scout Network Commissioner","UK Commissioner"]
["UK Scout Network Commissioner.","UK Commissioner"]
["UKHQ Inclusion Consultant","Country Adviser"]
["Unit Assistant - Explorer Scouts","Section Assistant - Explorers"]
["Unit Leader","Unit Leader"]
["Unit Leader - European Jamboree 2020","Unit Leader"]
["Unit Leader - World Scout Jamboree 2023","Unit Leader"]
["Unit Leader-European Jamboree 2020","Unit Leader"]
["Volunteer Curriculum Adviser","Country Adviser"]
["Volunteer Head of Active Support","Volunteer Head"]
["Volunteer Head of Compliance","Volunteer Head"]
["Volunteer Head of Curriculum","Volunteer Head"]
["Volunteer Head of Events","Volunteer Head"]
["Volunteer Head of Inclusion (Extending Reach)","Volunteer Head"]
["Volunteer Head of Inclusion (Training & Resources)","Volunteer Head"]
["Volunteer Head of Inclusion (Widening Participation)","Volunteer Head"]
["Volunteer Head of Training & Development","Volunteer Head"]
["Volunteer Head of UK Scout Network","Volunteer Head"]
["Volunteer Head of Volunteer Journey","Volunteer Head"]
["Volunteer Manager of Inclusion (Resources)","Volunteer Head"]
["Volunteer Manager of Inclusion (Training)","Volunteer Head"]
["Wales HQ Administrator","HQ Administrator"]
["Wales HQ Staff"]
["Wales Team Member"]
["Website Manager"]

{"sheet":"NewR2R","index":3,"n_rows":344,"n_cols":24,"rows_kept":344,"cut":false,"hidden":true,"merged":[]}
["Role","DELMGRGOVSUP","Appt Process","AAC","Refs","Commissioner Approval","Committee / Council","Transition Process","Mod 1","Trustee Intro","Mod 2","Mod 3","Mod 4","Wood Badge","Sect WB","Mgr WB","Disclosure Req","First Aid","Safety","Safeguarding","GDPR","Review","Prereq 4 Full","Membership"]
["Section Leader - Beavers","DEL",1,{"$f":"IF(C2=1,1,0)","v":1},{"$f":"IF(C2=1,1,0)","v":1},{"$f":"IF(OR(C2=1,C2=4),1,0)","v":1},{"$f":"IF(OR(C2=2,C2=3),1,0)","v":0},1,1,0,1,1,0,1,{"$f":"IF(AND(N2>0,M2=0),1,0)","v":1},{"$f":"N2-O2","v":0},1,1,1,1,1,1,1,"Member"]
["Assistant Section Leader - Beavers","DEL",1,{"$f":"IF(C3=1,1,0)","v":1},{"$f":"IF(C3=1,1,0)","v":1},{"$f":"IF(OR(C3=1,C3=4),1,0)","v":1},{"$f":"IF(OR(C3=2,C3=3),1,0)","v":0},1,1,0,1,1,0,1,{"$f":"IF(AND(N3>0,M3=0),1,0)","v":1},{"$f":"N3-O3","v":0},1,1,1,1,1,1,1,"Member"]
["Section Assistant - Beavers","DEL",1,1,1,1,0,1,1,0,0,1,0,0,0,0,1,0,1,1,1,1,1,"Associate Member"]
["Section Leader - Cubs","DEL",1,1,1,1,0,1,1,0,1,1,0,1,1,0,1,1,1,1,1,1,1,"Member"]
["Assistant Section Leader - Cubs","DEL",1,1,1,1,0,1,1,0,1,1,0,1,1,0,1,1,1,1,1,1,1,"Member"]
["Section Assistant - Cubs","DEL",1,1,1,1,0,1,1,0,0,1,0,0,0,0,1,0,1,1,1,1,1,"Associate Member"]
["Section Leader - Scouts","DEL",1,1,1,1,0,1,1,0,1,1,0,1,1,0,1,1,1,1,1,1,1,"Member"]
["Assistant Section Leader - Scouts","DEL",1,1,1,1,0,1,1,0,1,1,0,1,1,0,1,1,1,1,1,1,1,"Member"]
["Section Assistant - Scouts","DEL",1,1,1,1,0,1,1,0,0,1,0,0,0,0,1,0,1,1,1,1,1,"Associate Member"]
["Section Leader - Explorers","DEL",1,1,1,1,0,1,1,0,1,1,0,1,1,0,1,1,1,1,1,1,1,"Member"]
["Assistant Section Leader - Explorers","DEL",1,1,1,1,0,1,1,0,1,1,0,1,1,0,1,1,1,1,1,1,1,"Member"]
["Section Assistant - Explorers","DEL",1,1,1,1,0,1,1,0,0,1,0,0,0,0,1,0,1,1,1,1,1,"Associate Member"]
["Section Leader - Explorer Scout Young Leaders","DEL",1,1,1,1,0,1,1,0,1,1,0,1,1,0,1,1,1,1,1,1,1,"Member"]
["Assistant Section Leader - Explorer Scout Young Leaders","DEL",1,1,1,1,0,1,1,0,1,1,0,1,1,0,1,1,1,1,1,1,1,"Member"]
["Unit Leader","DEL",1,1,1,1,0,1,1,0,1,1,0,1,1,0,1,1,1,1,1,0,1,"Member"]
["Assistant Unit Leader","DEL",1,1,1,1,0,1,1,0,1,1,0,1,1,0,1,1,1,1,1,0,1,"Member"]
["International Service Team Member","DEL",0,0,0,0,0,1,1,0,1,0,1,0,0,0,1,0,1,1,1,0,1,"Member"]
["Group Scout Leader","MGR",1,1,1,1,0,1,1,1,1,0,1,1,0,1,1,1,1,1,1,1,1,"Member"]
["Group Scout Leader (Scotland)","MGR",1,1,1,1,0,1,1,1,1,0,1,1,0,1,1,1,1,1,1,1,1,"Member"]
["Acting Group Scout Leader","MGR",0,0,0,0,0,1,1,1,0,0,1,0,0,0,1,0,1,1,1,0,0,"Member"]
["District Commissioner","MGR",1,1,1,1,0,1,1,1,1,0,1,1,0,1,1,1,1,1,1,1,1,"Member"]
["Acting District Commissioner","MGR",0,0,0,0,0,1,1,1,0,0,1,0,0,0,1,0,1,1,1,0,0,"Member"]
["District Commissioner (Scotland)","MGR",1,1,1,1,0,1,1,1,1,0,1,1,0,1,1,1,1,1,1,1,1,"Member"]
["District Explorer Scout Commissioner","MGR",1,1,1,1,0,1,1,1,1,0,1,1,0,1,1,1,1,1,1,1,1,"Member"]
["Acting District Explorer Scout Commissioner","MGR",0,0,0,0,0,1,1,1,0,0,1,0,0,0,1,0,1,1,1,0,0,"Member"]
["District Explorer Scout Commissioner (Scotland)","MGR",1,1,1,1,0,1,1,1,1,0,1,1,0,1,1,1,1,1,1,1,1,"Member"]
["District Scout Network Commissioner","MGR",1,1,1,1,0,1,1,1,1,0,1,1,0,1,1,1,1,1,1,1,1,"Member"]
["District Scout Network Commissioner (Scotland)","MGR",1,1,1,1,0,1,1,1,1,0,1,1,0,1,1,1,1,1,1,1,1,"Member"]
["County Commissioner","MGR",4,0,0,1,0,1,1,1,1,0,1,1,0,1,1,1,1,1,1,1,1,"Member"]
["Acting County Commissioner","MGR",0,0,0,0,0,1,1,1,0,0,1,0,0,0,1,0,1,1,1,0,0,"Member"]
["Bailiwick Commissioner","MGR",4,0,0,1,0,1,1,1,1,0,1,1,0,1,1,1,1,1,1,1,1,"Member"]
["Island Commissioner","MGR",4,0,0,1,0,1,1,1,1,0,1,1,0,1,1,1,1,1,1,1,1,"Member"]
["Area Commissioner","MGR",4,0,0,1,0,1,1,1,1,0,1,1,0,1,1,1,1,1,1,1,1,"Member"]
["Area Commissioner","MGR",4,0,0,1,0,1,1,1,1,0,1,1,0,1,1,1,1,1,1,1,1,"Member"]
["Acting Area Commissioner","MGR",0,0,0,0,0,1,1,1,0,0,1,0,0,0,1,0,1,1,1,0,0,"Member"]
["Regional Commissioner (Scotland)","MGR",1,1,1,1,0,1,1,1,1,0,1,1,0,1,1,1,1,1,1,1,1,"Member"]
["Acting Regional Commissioner (Scotland)","MGR",0,0,0,0,0,1,1,1,0,0,1,0,0,0,1,0,1,1,1,0,0,"Member"]
["Regional Commissioner","MGR",1,1,1,1,0,1,1,0,1,0,1,1,0,1,1,1,1,1,1,1,1,"Member"]
["Acting Regional Commissioner","MGR",0,0,0,0,0,1,1,0,1,0,1,0,0,0,1,0,1,1,1,0,1,"Member"]
["Chief Commissioner","MGR",4,0,0,1,0,1,1,0,1,0,1,1,0,1,1,1,1,1,1,1,1,"Member"]
["Chief Commissioner","MGR",4,0,0,1,0,1,1,1,1,0,1,1,0,1,1,1,1,1,1,1,1,"Member"]
["Chief Commissioner","MGR",4,0,0,1,0,1,1,1,1,0,1,1,0,1,1,1,1,1,1,1,1,"Member"]
["Chief Commissioner (Branch)","MGR",4,0,0,1,0,1,1,0,0,0,0,1,1,0,1,1,1,1,0,1,0,"Member"]
["Chief Scout","MGR",4,0,0,1,0,1,0,0,0,0,0,0,0,0,0,0,0,0,0,1,0,"Member"]
["UK Chief Commissioner","MGR",4,0,0,1,0,1,1,1,1,0,1,1,0,1,1,1,1,1,1,1,1,"Member"]
["Group Chair","GOV",2,0,0,0,1,1,1,1,0,0,0,0,0,0,0,0,1,1,1,1,0,"Associate Member"]
["Group Deputy Chair","GOV",3,0,0,0,1,1,1,1,0,0,0,0,0,0,0,0,1,1,1,0,0,"Associate Member"]
["Group Secretary","GOV",2,0,0,0,1,1,1,1,0,0,0,0,0,0,0,0,1,1,1,1,0,"Associate Member"]
["Group Treasurer","GOV",2,0,0,0,1,1,1,1,0,0,0,0,0,0,0,0,1,1,1,1,0,"Associate Member"]
["Group Executive Member","GOV",2,0,0,0,1,1,1,1,0,0,0,0,0,0,1,0,1,1,1,0,0,"Member"]
["Group Sub-Committee Member","GOV",3,0,0,0,1,3,1,0,0,0,0,0,0,0,0,0,1,1,1,0,0,"Associate Member"]
["District Chair","GOV",2,0,0,0,1,1,1,1,0,0,0,0,0,0,0,0,1,1,1,1,0,"Associate Member"]
["District Deputy Chair","GOV",3,0,0,0,1,1,1,1,0,0,0,0,0,0,0,0,1,1,1,0,0,"Associate Member"]
["District Secretary","GOV",2,0,0,0,1,1,1,1,0,0,0,0,0,0,0,0,1,1,1,1,0,"Associate Member"]
["District Treasurer","GOV",2,0,0,0,1,1,1,1,0,0,0,0,0,0,0,0,1,1,1,1,0,"Associate Member"]
["District Executive Member","GOV",2,0,0,0,1,1,1,1,0,0,0,0,0,0,0,0,1,1,1,0,0,"Associate Member"]
["District Appointments Chair","GOV",3,0,0,0,1,2,1,0,0,0,0,0,0,0,0,0,1,1,1,1,0,"Associate Member"]
["District Appointments Secretary","GOV",3,0,0,0,1,1,1,0,0,0,0,0,0,0,0,0,1,1,1,1,0,"Associate Member"]
["District Assistant Appointments Secretary","GOV",3,0,0,0,1,2,1,0,0,0,0,0,0,0,0,0,1,1,1,1,0,"Associate Member"]
["District Appointment Advisory Committee Member","GOV",3,0,0,0,1,2,1,0,0,0,0,0,0,0,0,0,1,1,1,0,0,"Associate Member"]
["District Sub-Committee Member","GOV",3,0,0,0,1,3,1,0,0,0,0,0,0,0,0,0,1,1,1,0,0,"Associate Member"]
["County Chair","GOV",2,0,0,0,1,1,1,1,0,0,0,0,0,0,1,0,1,1,1,1,0,"Associate Member"]
["Area Chair","GOV",2,0,0,0,1,1,1,1,0,0,0,0,0,0,1,0,1,1,1,1,0,"Associate Member"]
["Regional Chair (Scotland)","GOV",2,0,0,0,1,1,1,1,0,0,0,0,0,0,1,0,1,1,1,1,0,"Associate Member"]
["County Deputy Chair","GOV",3,0,0,0,1,1,1,1,0,0,0,0,0,0,1,0,1,1,1,0,0,"Associate Member"]
["Area Deputy Chair","GOV",3,{"$f":"IF(C67=1,1,0)","v":0},{"$f":"IF(C67=1,1,0)","v":0},{"$f":"IF(OR(C67=1,C67=4),1,0)","v":0},{"$f":"IF(OR(C67=2,C67=3),1,0)","v":1},1,1,1,0,0,0,0,{"$f":"IF(AND(N67>0,M67=0),1,0)","v":0},{"$f":"N67-O67","v":0},1,0,1,1,1,0,0,"Associate Member"]
["Regional (Scotland) Deputy Chair","GOV",3,0,0,0,1,1,1,1,0,0,0,0,0,0,1,0,1,1,1,0,0,"Associate Member"]
["County Secretary","GOV",2,0,0,0,1,1,1,1,0,0,0,0,0,0,1,0,1,1,1,1,0,"Associate Member"]
["Area Secretary","GOV",2,0,0,0,1,1,1,1,0,0,0,0,0,0,1,0,1,1,1,1,0,"Associate Member"]
["Regional (Scotland) Secretary","GOV",2,0,0,0,1,1,1,1,0,0,0,0,0,0,1,0,1,1,1,1,0,"Associate Member"]
["County Treasurer","GOV",2,0,0,0,1,1,1,1,0,0,0,0,0,0,1,0,1,1,1,1,0,"Associate Member"]
["Area Treasurer","GOV",2,0,0,0,1,1,1,1,0,0,0,0,0,0,1,0,1,1,1,1,0,"Associate Member"]
["Regional (Scotland) Treasurer","GOV",2,0,0,0,1,1,1,1,0,0,0,0,0,0,1,0,1,1,1,1,0,"Associate Member"]
["County Executive Member","GOV",2,0,0,0,1,1,1,1,0,0,0,0,0,0,1,0,1,1,1,0,0,"Associate Member"]
["Area Executive Member","GOV",2,0,0,0,1,1,1,1,0,0,0,0,0,0,1,0,1,1,1,0,0,"Associate Member"]
["County Sub-Committee Member","GOV",3,0,0,0,1,3,1,0,0,0,0,0,0,0,0,0,1,1,1,0,0,"Associate Member"]
["Area Sub-Committee Member","GOV",3,0,0,0,1,3,1,0,0,0,0,0,0,0,0,0,1,1,1,0,0,"Associate Member"]
["Region (Scotland) Sub-Committee Member","GOV",3,0,0,0,1,3,1,0,0,0,0,0,0,0,0,0,1,1,1,0,0,"Associate Member"]
["County Appointments Chair","GOV",3,0,0,0,1,2,1,0,0,0,0,0,0,0,0,0,1,1,1,0,0,"Associate Member"]
["County Appointments Secretary","GOV",3,0,0,0,1,2,1,0,0,0,0,0,0,0,0,0,1,1,1,0,0,"Associate Member"]
["County Assistant Appointments Secretary","GOV",3,0,0,0,1,2,1,0,0,0,0,0,0,0,0,0,1,1,1,0,0,"Associate Member"]
["County Appointment Advisory Committee member","GOV",3,0,0,0,1,3,1,0,0,0,0,0,0,0,0,0,1,1,1,0,0,"Associate Member"]
["Area Appointments Chair","GOV",3,0,0,0,1,2,1,0,0,0,0,0,0,0,0,0,1,1,1,0,0,"Associate Member"]
["Area Appointments Secretary","GOV",3,0,0,0,1,2,1,0,0,0,0,0,0,0,0,0,1,1,1,0,0,"Associate Member"]
["Area Assistant Appointments Secretary","GOV",3,0,0,0,1,2,1,0,0,0,0,0,0,0,0,0,1,1,1,0,0,"Associate Member"]
["Area Appointment Advisory Committee Member","GOV",3,0,0,0,1,2,1,0,0,0,0,0,0,0,0,0,1,1,1,0,0,"Associate Member"]
["Elected Regional Executive Member (Scotland)","GOV",2,0,0,0,1,1,1,1,0,0,0,0,0,0,1,0,1,1,1,0,0,"Associate Member"]
["Regional Appointments Chair (Scotland)","GOV",3,0,0,0,1,2,1,0,0,0,0,0,0,0,0,0,1,1,1,0,0,"Associate Member"]
["Regional Appointments Secretary (Scotland)","GOV",3,0,0,0,1,2,1,0,0,0,0,0,0,0,0,0,1,1,1,0,0,"Associate Member"]
["Regional Appointments Advisory Committee Member (Scotland)","GOV",3,0,0,0,1,2,1,0,0,0,0,0,0,0,0,0,1,1,1,0,0,"Associate Member"]
["Country Chair","GOV",2,0,0,0,1,1,1,1,0,0,0,0,0,0,1,0,1,1,1,1,0,"Member"]
["Deputy Country Chair","GOV",3,0,0,0,1,1,1,1,0,0,0,0,0,0,1,0,1,1,1,1,0,"Member"]
["Country Treasurer","GOV",2,0,0,0,1,1,1,1,0,0,0,0,0,0,1,0,1,1,1,1,0,"Member"]
["Country Executive Committee Member","GOV",2,0,0,0,1,1,1,1,0,0,0,0,0,0,1,0,1,1,1,1,0,"Member"]
["Country Sub-Committee Member","GOV",3,0,0,0,1,3,1,0,0,0,0,0,0,0,0,0,1,1,1,0,0,"Associate Member"]
["Country Appointments Chair","GOV",3,0,0,0,1,2,1,0,0,0,0,0,0,0,0,0,1,1,1,0,0,"Associate Member"]
["Country Appointments Secretary","GOV",0,0,0,0,0,2,0,0,0,0,0,0,0,0,0,0,0,0,0,0,0,0]
["Country Appointment Advisory Committee Member","GOV",3,0,0,0,1,3,1,0,0,0,0,0,0,0,0,0,1,1,1,0,0,"Associate Member"]
["Chair of the UK Board","GOV",4,0,0,1,0,1,1,1,0,0,0,0,0,0,1,0,1,1,1,1,0,"Member"]
["Vice Chair of the UK Board","GOV",3,0,0,0,1,1,1,1,0,0,0,0,0,0,1,0,1,1,1,1,0,"Member"]
["TSA Secretary","GOV",3,0,0,0,1,1,0,0,0,0,0,0,0,0,0,0,0,0,0,0,0,"None"]
["TSA Treasurer","GOV",4,0,0,1,0,1,1,1,0,0,0,0,0,0,1,0,1,1,1,1,0,"Member"]
["Elected Member of UK Board","GOV",4,0,0,1,0,1,1,1,0,0,0,0,0,0,1,0,1,1,1,1,0,"Member"]
["Appointed Member of the UK Board","GOV",4,0,0,1,0,1,1,1,0,0,0,0,0,0,1,0,1,1,1,1,0,"Member"]
["Co-opted Member of the UK Board","GOV",3,0,0,0,1,1,1,1,0,0,0,0,0,0,1,0,1,1,1,1,0,"Member"]
["UK HQ Appointments Chair","GOV",3,0,0,0,1,2,0,0,0,0,0,0,0,0,0,0,0,0,0,0,0,"Member"]
["UK HQ Appointments Secretary","GOV",0,0,0,0,0,2,0,0,0,0,0,0,0,0,0,0,0,0,0,0,0,0]
["UK HQ Appointment Advisory Committee Member","GOV",3,0,0,0,1,2,1,1,0,0,0,0,0,0,0,0,1,1,1,0,0,"Associate Member"]
["Committee Chair","GOV",3,0,0,0,1,1,0,0,0,0,0,0,0,0,0,0,0,0,0,0,0,"Member"]
["Committee member","GOV",3,0,0,0,1,2,1,1,0,0,0,0,0,0,0,0,1,1,1,0,0,"Associate Member"]
["Deputy Group Scout Leader","SUP",1,1,1,1,0,1,1,1,1,0,1,1,0,1,1,1,1,1,1,1,1,"Member"]
["Deputy District Commissioner","SUP",1,1,1,1,0,1,1,0,1,0,1,1,0,1,1,1,1,1,1,1,1,"Member"]
["Deputy District Commissioner (Scotland)","SUP",1,1,1,1,0,1,1,0,1,0,1,1,0,1,1,1,1,1,1,1,1,"Member"]
["Deputy County Commissioner","SUP",1,1,1,1,0,1,1,0,1,0,1,1,0,1,1,1,1,1,1,1,1,"Member"]
["Deputy Area Commissioner","SUP",1,1,1,1,0,1,1,0,1,0,1,1,0,1,1,1,1,1,1,1,1,"Member"]
["Deputy Regional Commissioner (Scotland)","SUP",1,1,1,1,0,1,1,0,1,0,1,1,0,1,1,1,1,1,1,1,1,"Member"]
["Deputy Chief Commissioner (Country)","SUP",4,0,0,1,0,1,1,0,1,0,1,1,0,1,1,1,1,1,1,1,1,"Member"]
["Deputy Chief Commissioner (Country)","SUP",4,0,0,1,0,1,1,1,1,0,1,1,0,1,1,1,1,1,1,1,1,"Member"]
["Deputy Chief Commissioner (Country)","SUP",1,1,1,1,0,1,1,0,1,0,1,1,0,1,1,1,1,1,1,1,1,"Member"]
["Commissioner Wales - Programme","SUP",1,1,1,1,0,1,1,0,1,0,1,1,0,1,1,1,1,1,1,1,1,"Member"]
["Deputy Commissioner Wales - Programme","SUP",1,1,1,1,0,1,1,0,1,0,1,1,0,1,1,1,1,1,1,1,1,"Member"]
["Commissioner Wales - Perception","SUP",1,1,1,1,0,1,1,0,1,0,1,1,0,1,1,1,1,1,1,1,1,"Member"]
["Commissioner Wales - Projects","SUP",1,1,1,1,0,1,1,0,1,0,1,1,0,1,1,1,1,1,1,1,1,"Member"]
["Commissioner Wales - Inclusion","SUP",1,1,1,1,0,1,1,0,1,0,1,1,0,1,1,1,1,1,1,1,1,"Member"]
["Commissioner Wales - People","SUP",1,1,1,1,0,1,1,0,1,0,1,1,0,1,1,1,1,1,1,1,1,"Member"]
["Deputy UK Chief Commissioner","SUP",4,0,0,1,0,1,1,0,1,0,1,1,0,1,1,1,1,1,1,1,1,"Member"]
["UK Commissioner","SUP",4,0,0,1,0,1,1,0,1,0,1,1,0,1,1,1,1,1,1,1,1,"Member"]
["International Commissioner","SUP",4,0,0,1,0,1,1,0,1,0,1,1,0,1,1,1,1,1,1,1,1,"Member"]
["Branches Commissioner","SUP",4,0,0,1,0,1,1,0,1,0,1,1,0,1,1,1,1,1,1,1,1,"Member"]
["Deputy Branches Commissioner","SUP",4,{"$f":"IF(C131=1,1,0)","v":0},{"$f":"IF(C131=1,1,0)","v":0},{"$f":"IF(OR(C131=1,C131=4),1,0)","v":1},{"$f":"IF(OR(C131=2,C131=3),1,0)","v":0},1,1,0,1,0,1,1,{"$f":"IF(AND(N131>0,M131=0),1,0)","v":0},{"$f":"N131-O131","v":1},1,1,1,1,1,1,1,"Member"]
["Volunteer Head","SUP",4,0,0,1,0,1,1,0,1,0,1,1,0,1,1,1,1,1,1,1,1,"Member"]
["Programme Sponsor","SUP",4,0,0,1,0,1,1,0,0,0,0,0,0,0,0,0,1,1,1,1,0,"Associate Member"]
["Project Lead","SUP",4,0,0,1,0,1,1,0,0,0,0,0,0,0,0,0,1,1,1,1,0,"Associate Member"]
["POW Member","SUP",4,0,0,1,0,1,1,0,0,0,0,0,0,0,0,0,1,1,1,1,0,"Associate Member"]
["Group Skills Instructor","SUP",1,1,1,1,0,1,1,0,0,0,0,0,0,0,1,0,1,1,1,1,0,"Associate Member"]
["District Skills Instructor","SUP",1,1,1,1,0,1,1,0,0,0,0,0,0,0,1,0,1,1,1,1,0,"Associate Member"]
["District Nights Away Adviser","SUP",1,1,1,1,0,1,1,0,0,0,0,0,0,0,0,0,1,1,1,0,0,"Associate Member"]
["District Nights Away Adviser","SUP",3,0,0,0,1,1,1,0,0,0,0,0,0,0,1,0,1,1,1,1,0,"Associate Member"]
["Assistant County Commissioner - Activities","SUP",1,1,1,1,0,1,1,0,1,0,1,1,0,1,1,1,1,1,1,1,1,"Member"]
["Assistant Area Commissioner - Activities","SUP",1,1,1,1,0,1,1,0,1,0,1,1,0,1,1,1,1,1,1,1,1,"Member"]
["Regional Adviser - Activities","SUP",3,0,0,0,1,1,1,0,0,0,0,0,0,0,1,0,1,1,1,1,0,"Associate Member"]
["County Manager of the Activity Permit Scheme","SUP",1,1,1,1,0,2,1,0,0,0,1,0,0,0,0,0,1,1,1,0,0,"Associate Member"]
["Area Manager of the Activity Permit Scheme","SUP",1,1,1,1,0,2,1,0,0,0,1,0,0,0,0,0,1,1,1,0,0,"Associate Member"]
["Region (Scotland) Manager of the Activity Permit Scheme","SUP",1,1,1,1,0,2,1,0,0,0,1,0,0,0,0,0,1,1,1,0,0,"Associate Member"]
["County Supporter of the Nights Away Permit Scheme","SUP",3,0,0,0,1,1,1,0,0,0,0,0,0,0,0,0,1,1,1,0,0,"Associate Member"]
["Area Supporter of the Nights Away Permit Scheme","SUP",3,0,0,0,1,1,1,0,0,0,0,0,0,0,0,0,1,1,1,0,0,"Associate Member"]
["Regional (Scotland) Supporter of the Nights Away Permit Scheme","SUP",1,1,1,1,0,1,1,0,0,0,0,0,0,0,0,0,1,1,1,0,0,"Associate Member"]
["County Assessor","SUP",1,1,1,1,0,1,1,0,0,0,0,0,0,0,1,0,1,1,1,1,0,"Associate Member"]
["Area Assessor","SUP",1,1,1,1,0,1,1,0,0,0,0,0,0,0,1,0,1,1,1,1,0,"Associate Member"]
["Regional Assessor (Scotland)","SUP",3,0,0,0,1,1,1,0,0,0,0,0,0,0,1,0,1,1,1,1,0,"Associate Member"]
["County Skills Instructor","SUP",1,1,1,1,0,1,1,0,0,0,0,0,0,0,1,0,1,1,1,1,0,"Associate Member"]
["Area Skills Instructor","SUP",1,1,1,1,0,1,1,0,0,0,0,0,0,0,1,0,1,1,1,1,0,"Associate Member"]
["Northern Ireland Commissioner - Activities","SUP",1,1,1,1,0,1,1,0,1,0,1,1,0,1,1,1,1,1,1,1,1,"Member"]
["Northern Ireland Manager of the Activity Permit Scheme","SUP",1,1,1,1,0,1,1,0,0,0,1,0,0,0,0,0,1,1,1,0,0,"Associate Member"]
["Country Assessor","SUP",1,1,1,1,0,1,1,0,0,0,0,0,0,0,1,0,0,0,1,1,0,"Associate Member"]
["Group Administrator","SUP",3,0,0,0,1,2,1,0,0,0,0,0,0,0,1,0,1,1,1,0,0,"Associate Member"]
["District Administrator","SUP",3,0,0,0,1,2,1,0,0,0,0,0,0,0,0,0,1,1,1,0,0,"Associate Member"]
["District Badge Secretary","SUP",3,0,0,0,1,2,1,0,0,0,0,0,0,0,0,0,1,1,1,0,0,"Associate Member"]
["District Explorer Scout Administrator","SUP",3,0,0,0,1,2,1,0,0,0,0,0,0,0,1,0,1,1,1,0,0,"Associate Member"]
["District Awards Advisory Group Member","SUP",3,0,0,0,1,2,1,0,0,0,0,0,0,0,0,0,1,1,1,0,0,"Associate Member"]
["District Award Certificate Recipient","SUP",3,0,0,0,1,2,0,0,0,0,0,0,0,0,0,0,0,0,0,0,0,"Associate Member"]
["County Administrator","SUP",3,0,0,0,1,2,1,0,0,0,0,0,0,0,0,0,1,1,1,0,0,"Associate Member"]
["Area Administrator","SUP",3,0,0,0,1,2,1,0,0,0,0,0,0,0,0,0,1,1,1,0,0,"Associate Member"]
["County Badge Secretary","SUP",3,0,0,0,1,2,1,0,0,0,0,0,0,0,0,0,1,1,1,0,0,"Associate Member"]
["Region (Scotland) Badge Secretary","SUP",3,0,0,0,1,2,1,0,0,0,0,0,0,0,0,0,1,1,1,0,0,"Associate Member"]
["County Queens Scout Award Coordinator","SUP",3,0,0,0,1,3,1,0,0,0,0,0,0,0,0,0,1,1,1,0,0,"Associate Member"]
["Area Queens Scout Award Coordinator","SUP",3,0,0,0,1,3,1,0,0,0,0,0,0,0,0,0,1,1,1,0,0,"Associate Member"]
["County Award Certificate Recipient","SUP",3,0,0,0,1,2,0,0,0,0,0,0,0,0,0,0,0,0,0,0,0,"Associate Member"]
["Area Award Certificate Recipient","SUP",3,0,0,0,1,2,0,0,0,0,0,0,0,0,0,0,0,0,0,0,0,"Associate Member"]
["Regional Administrator (Scotland)","SUP",3,0,0,0,1,2,1,0,0,0,0,0,0,0,0,0,1,1,1,0,0,"Associate Member"]
["County Awards Advisory Group Member","SUP",3,0,0,0,1,3,1,0,0,0,0,0,0,0,0,0,1,1,1,0,0,"Associate Member"]
["Area Awards Advisory Group Member","SUP",3,0,0,0,1,3,1,0,0,0,0,0,0,0,0,0,1,1,1,0,0,"Associate Member"]
["Region (Scotland) Awards Advisory Group Member","SUP",3,0,0,0,1,3,1,0,0,0,0,0,0,0,0,0,1,1,1,0,0,"Associate Member"]
["Regional Administrator","SUP",0,0,0,0,0,2,1,0,0,0,0,0,0,0,0,0,1,1,1,0,0,"Associate Member"]
["HQ Administrator","SUP",0,0,0,0,0,2,0,0,0,0,0,0,0,0,0,0,0,0,0,0,0,0]
["Social Media Administrator","SUP",4,0,0,1,0,3,1,0,0,0,0,0,0,0,0,0,1,1,1,0,0,"Associate Member"]
["Large Events Administrator","SUP",4,0,0,1,0,2,1,0,0,0,0,0,0,0,0,0,1,1,1,0,0,"Associate Member"]
["Group Supporter","SUP",3,0,0,0,1,3,1,0,0,0,0,0,0,0,0,0,1,1,1,0,0,"Associate Member"]
["District Supporter","SUP",3,0,0,0,1,3,1,0,0,0,0,0,0,0,0,0,1,1,1,0,0,"Associate Member"]
["County Supporter","SUP",3,0,0,0,1,3,1,0,0,0,0,0,0,0,0,0,1,1,1,0,0,"Associate Member"]
["Area Supporter","SUP",3,0,0,0,1,3,1,0,0,0,0,0,0,0,0,0,1,1,1,0,0,"Associate Member"]
["Regional Supporter","SUP",1,1,1,1,0,3,1,0,0,0,0,0,0,0,0,0,1,1,1,0,0,"Associate Member"]
["Country Volunteer","SUP",1,1,1,1,0,3,1,0,0,0,0,0,0,0,1,0,1,1,1,1,0,"Associate Member"]
["HQ Volunteer","SUP",4,0,0,1,0,3,1,0,0,0,0,0,0,0,1,0,1,1,1,1,0,"Associate Member"]
["District Training Adviser","SUP",1,1,1,1,0,1,1,0,0,0,0,0,0,0,0,0,1,1,1,1,0,"Associate Member"]
["District Training Adviser","SUP",1,1,1,1,0,1,1,0,0,0,0,0,0,0,0,0,1,1,1,1,0,"Associate Member"]
["Assistant District Commissioner (Adult Training)","SUP",1,1,1,1,0,1,1,0,1,0,1,1,0,1,1,1,1,1,1,1,1,"Member"]
["District Training Administrator","SUP",3,0,0,0,1,2,1,0,0,0,0,0,0,0,0,0,1,1,1,0,0,"Associate Member"]
["District Training Administrator (Scotland)","SUP",3,0,0,0,1,2,1,0,0,0,0,0,0,0,0,0,1,1,1,0,0,"Associate Member"]
["County Training Manager","SUP",1,1,1,1,0,1,1,0,1,0,1,1,0,1,0,1,1,1,1,1,1,"Member"]
["Area Training Manager","SUP",1,1,1,1,0,1,1,0,1,0,1,1,0,1,0,1,1,1,1,1,1,"Member"]
["Assistant Regional Commissioner (Adult Training)","SUP",1,1,1,1,0,1,1,0,1,0,1,1,0,1,1,1,1,1,1,1,1,"Member"]
["Deputy County Training Manager","SUP",1,1,1,1,0,1,1,0,1,0,1,1,0,1,0,1,1,1,1,1,1,"Member"]
["Deputy Area Training Manager","SUP",1,{"$f":"IF(C195=1,1,0)","v":1},{"$f":"IF(C195=1,1,0)","v":1},{"$f":"IF(OR(C195=1,C195=4),1,0)","v":1},{"$f":"IF(OR(C195=2,C195=3),1,0)","v":0},1,1,0,1,0,1,1,{"$f":"IF(AND(N195>0,M195=0),1,0)","v":0},{"$f":"N195-O195","v":1},0,1,1,1,1,1,1,"Member"]
["Local Training Manager","SUP",1,1,1,1,0,1,1,0,1,0,1,1,0,1,0,1,1,1,1,1,1,"Member"]
["Trainer","SUP",1,1,1,1,0,1,1,0,0,0,0,0,0,0,0,0,1,1,1,1,0,"Associate Member"]
["Training Adviser","SUP",1,1,1,1,0,1,1,0,0,0,0,0,0,0,0,0,1,1,1,1,0,"Associate Member"]
["Regional Training Adviser (Scotland)","SUP",1,1,1,1,0,1,1,0,0,0,0,0,0,0,0,0,1,1,1,1,0,"Associate Member"]
["Local Training Administrator","SUP",1,1,1,1,0,2,1,0,0,0,0,0,0,0,0,0,1,1,1,0,0,"Associate Member"]
["County Training Administrator","SUP",3,0,0,0,1,2,1,0,0,0,0,0,0,0,0,0,1,1,1,0,0,"Associate Member"]
["Area Training Administrator","SUP",3,0,0,0,1,2,1,0,0,0,0,0,0,0,0,0,1,1,1,0,0,"Associate Member"]
["Region (Scotland) Training Administrator","SUP",3,0,0,0,1,2,1,0,0,0,0,0,0,0,0,0,1,1,1,0,0,"Associate Member"]
["Assistant Regional Commissioner","SUP",0,0,0,0,0,1,1,0,1,0,1,1,0,1,1,1,1,1,1,1,1,"Member"]
["Training Support Manager - England","SUP",4,0,0,1,0,1,1,0,1,0,1,1,0,1,1,1,1,1,1,1,1,"Member"]
["Scotland Commissioner (Adult Training)","SUP",1,1,1,1,0,1,1,0,1,0,1,1,0,1,1,1,1,1,1,1,1,"Member"]
["Northern Ireland Commissioner (Adult Support)","SUP",4,0,0,1,0,1,1,0,1,0,1,1,0,1,1,1,1,1,1,1,1,"Member"]
["Commissioner Wales Adult Training","SUP",4,0,0,1,0,1,1,0,1,0,1,1,0,1,1,1,1,1,1,1,1,"Member"]
["Group Adviser","SUP",3,0,0,0,1,1,1,0,0,0,0,0,0,0,1,0,1,1,1,1,0,"Associate Member"]
["District Adviser","SUP",3,0,0,0,1,1,1,0,0,0,0,0,0,0,1,0,1,1,1,1,0,"Associate Member"]
["County Adviser","SUP",3,0,0,0,1,1,1,0,0,0,0,0,0,0,1,0,1,1,1,1,0,"Associate Member"]
["Area Adviser","SUP",3,0,0,0,1,1,1,0,0,0,0,0,0,0,1,0,1,1,1,1,0,"Associate Member"]
["Regional Adviser (Scotland)","SUP",3,0,0,0,1,1,1,0,0,0,0,0,0,0,1,0,1,1,1,1,0,"Associate Member"]
["Country Adviser","SUP",1,1,1,1,0,1,1,0,0,0,0,0,0,0,1,0,1,1,1,1,0,"Associate Member"]
["Assistant District Commissioner - Beaver Section Support","SUP",1,1,1,1,0,1,1,0,1,0,1,1,0,1,1,1,1,1,1,1,1,"Member"]
["Assistant District Commissioner - Cub Section Support","SUP",1,1,1,1,0,1,1,0,1,0,1,1,0,1,1,1,1,1,1,1,1,"Member"]
["Assistant District Commissioner - Scout Section Support","SUP",1,1,1,1,0,1,1,0,1,0,1,1,0,1,1,1,1,1,1,1,1,"Member"]
["Assistant District Commissioner","SUP",1,1,1,1,0,1,1,0,1,0,1,1,0,1,1,1,1,1,1,1,1,"Member"]
["Assistant County Commissioner - Beaver Support","SUP",1,1,1,1,0,1,1,0,1,0,1,1,0,1,1,1,1,1,1,1,1,"Member"]
["Assistant Area Commissioner - Beaver Support","SUP",1,1,1,1,0,1,1,0,1,0,1,1,0,1,1,1,1,1,1,1,1,"Member"]
["Assistant County Commissioner - Cub Support","SUP",1,1,1,1,0,1,1,0,1,0,1,1,0,1,1,1,1,1,1,1,1,"Member"]
["Assistant Area Commissioner - Cub Support","SUP",1,1,1,1,0,1,1,0,1,0,1,1,0,1,1,1,1,1,1,1,1,"Member"]
["Assistant County Commissioner - Scout Support","SUP",1,1,1,1,0,1,1,0,1,0,1,1,0,1,1,1,1,1,1,1,1,"Member"]
["Assistant Area Commissioner - Scout Support","SUP",1,1,1,1,0,1,1,0,1,0,1,1,0,1,1,1,1,1,1,1,1,"Member"]
["Assistant County Commissioner - Explorer Support","SUP",1,1,1,1,0,1,1,0,1,0,1,1,0,1,1,1,1,1,1,1,1,"Member"]
["Assistant Area Commissioner - Explorer Support","SUP",1,1,1,1,0,1,1,0,1,0,1,1,0,1,1,1,1,1,1,1,1,"Member"]
["Assistant Regional Commissioner (Scotland) - Explorer Support","SUP",1,1,1,1,0,1,1,0,1,0,1,1,0,1,1,1,1,1,1,1,1,"Member"]
["Assistant Regional Commissioner (Scotland) - Network Support","SUP",1,1,1,1,0,1,1,0,1,0,1,1,0,1,1,1,1,1,1,1,1,"Member"]
["Assistant County Commissioner - Network Support","SUP",1,1,1,1,0,1,1,0,1,0,1,1,0,1,1,1,1,1,1,1,1,"Member"]
["Assistant Area Commissioner - Scout Network Support","SUP",1,1,1,1,0,1,1,0,1,0,1,1,0,1,1,1,1,1,1,1,1,"Member"]
["Assistant County Commissioner","SUP",1,1,1,1,0,1,1,0,1,0,1,1,0,1,1,1,1,1,1,1,1,"Member"]
["Assistant County Commissioner - International","SUP",1,1,1,1,0,1,1,0,1,0,1,1,0,1,1,1,1,1,1,1,1,"Member"]
["Assistant Area Commissioner - International","SUP",1,1,1,1,0,1,1,0,1,0,1,1,0,1,1,1,1,1,1,1,1,"Member"]
["Assistant Regional Commissioner Growth (Scotland)","SUP",1,1,1,1,0,1,1,0,1,0,1,1,0,1,1,1,1,1,1,1,1,"Member"]
["Assistant Regional Commissioner","SUP",0,0,0,0,0,1,1,0,1,0,1,1,0,1,1,1,1,1,1,1,1,"Member"]
["Assistant Country Commissioner - Beaver Support","SUP",1,1,1,1,0,1,1,0,1,0,1,1,0,1,1,1,1,1,1,1,1,"Member"]
["Assistant Country Commissioner - Cub Support","SUP",1,1,1,1,0,1,1,0,1,0,1,1,0,1,1,1,1,1,1,1,1,"Member"]
["Assistant Country Commissioner - Scout Support","SUP",1,1,1,1,0,1,1,0,1,0,1,1,0,1,1,1,1,1,1,1,1,"Member"]
["Assistant Country Commissioner - Explorer Support","SUP",1,1,1,1,0,1,1,0,1,0,1,1,0,1,1,1,1,1,1,1,1,"Member"]
["Assistant Country Commissioner - Network Support","SUP",1,1,1,1,0,1,1,0,1,0,1,1,0,1,1,1,1,1,1,1,1,"Member"]
["Assistant Country Commissioner - Inclusion","SUP",1,1,1,1,0,1,1,0,1,0,1,1,0,1,1,1,1,1,1,1,1,"Member"]
["Assistant Country Commissioner - International","SUP",1,1,1,1,0,1,1,0,1,0,1,1,0,1,1,1,1,1,1,1,1,"Member"]
["Scotland Commissioner (Section)","SUP",1,1,1,1,0,1,1,0,1,0,1,1,0,1,1,1,1,1,1,1,1,"Member"]
["Scotland Commissioner","SUP",1,1,1,1,0,1,1,0,1,0,1,1,0,1,1,1,1,1,1,1,1,"Member"]
["District Camp Warden","SUP",3,0,0,0,1,2,1,0,0,0,0,0,0,0,1,0,1,1,1,0,0,"Associate Member"]
["Assistant District Camp Warden","SUP",3,0,0,0,1,2,1,0,0,0,0,0,0,0,0,0,1,1,1,0,0,"Associate Member"]
["District Centre Manager","SUP",3,0,0,0,1,2,1,0,0,0,0,0,0,0,1,0,1,1,1,0,0,"Associate Member"]
["County Camp Warden","SUP",3,0,0,0,1,2,1,0,0,0,0,0,0,0,1,0,1,1,1,0,0,"Associate Member"]
["Assistant County Camp Warden","SUP",3,0,0,0,1,2,1,0,0,0,0,0,0,0,1,0,1,1,1,0,0,"Associate Member"]
["County Centre Manager","SUP",3,0,0,0,1,2,1,0,0,0,0,0,0,0,1,0,1,1,1,0,0,"Associate Member"]
["Area Camp Warden","SUP",3,0,0,0,1,2,1,0,0,0,0,0,0,0,1,0,1,1,1,0,0,"Associate Member"]
["Assistant Area Camp Warden","SUP",3,0,0,0,1,2,1,0,0,0,0,0,0,0,1,0,1,1,1,0,0,"Associate Member"]
["Area Centre Manager","SUP",3,0,0,0,1,2,1,0,0,0,0,0,0,0,1,0,1,1,1,0,0,"Associate Member"]
["Regional (Scotland) Camp Warden","SUP",3,0,0,0,1,2,1,0,0,0,0,0,0,0,1,0,1,1,1,0,0,"Associate Member"]
["Assistant Regional (Scotland) Camp Warden","SUP",3,0,0,0,1,2,1,0,0,0,0,0,0,0,1,0,1,1,1,0,0,"Associate Member"]
["Regional (Scotland) Centre Manager","SUP",3,0,0,0,1,2,1,0,0,0,0,0,0,0,1,0,1,1,1,0,0,"Associate Member"]
["NI Commissioner - Crawfordsburn","SUP",3,0,0,0,1,1,1,0,0,0,0,0,0,0,1,0,1,1,1,0,0,"Associate Member"]
["Country Camp Warden","SUP",3,0,0,0,1,2,1,0,0,0,0,0,0,0,1,0,1,1,1,0,0,"Associate Member"]
["Country Centre Manager","SUP",3,{"$f":"IF(C259=1,1,0)","v":0},{"$f":"IF(C259=1,1,0)","v":0},{"$f":"IF(OR(C259=1,C259=4),1,0)","v":0},{"$f":"IF(OR(C259=2,C259=3),1,0)","v":1},2,1,0,0,0,0,0,{"$f":"IF(AND(N259>0,M259=0),1,0)","v":0},{"$f":"N259-O259","v":0},1,0,1,1,1,0,0,"Associate Member"]
["Group Chaplain","SUP",3,0,0,0,1,2,1,0,0,0,0,0,0,0,1,0,1,1,1,0,0,"Associate Member"]
["District Chaplain","SUP",3,0,0,0,1,2,1,0,0,0,0,0,0,0,1,0,1,1,1,0,0,"Associate Member"]
["County Chaplain","SUP",3,0,0,0,1,2,1,0,0,0,0,0,0,0,1,0,1,1,1,0,0,"Associate Member"]
["Area Chaplain","SUP",3,0,0,0,1,2,1,0,0,0,0,0,0,0,1,0,1,1,1,0,0,"Associate Member"]
["Regional (Scotland) Chaplain","SUP",3,0,0,0,1,2,1,0,0,0,0,0,0,0,1,0,1,1,1,0,0,"Associate Member"]
["Country Chaplain","SUP",3,0,0,0,1,2,1,0,0,0,0,0,0,0,1,0,1,1,1,0,0,"Associate Member"]
["Country Chaplain","SUP",3,0,0,0,1,2,1,0,0,0,0,0,0,0,1,0,1,1,1,0,0,"Associate Member"]
["Group Communications Manager","SUP",3,0,0,0,1,2,1,0,0,0,0,0,0,0,1,0,1,1,1,0,0,"Associate Member"]
["District Communications Manager","SUP",3,0,0,0,1,2,1,0,0,0,0,0,0,0,0,0,1,1,1,0,0,"Associate Member"]
["County Communications Manager","SUP",1,1,1,1,0,2,1,0,0,0,0,0,0,0,0,0,1,1,1,1,0,"Member"]
["Area Communications Manager","SUP",1,1,1,1,0,2,1,0,0,0,0,0,0,0,0,0,1,1,1,1,0,"Member"]
["Assistant Regional Commissioner Communications (Scotland)","SUP",1,1,1,1,0,1,1,0,1,0,1,1,0,1,1,1,1,1,1,1,1,"Member"]
["Contingent Leader","SUP",4,0,0,1,0,1,1,0,1,0,1,1,0,1,1,1,1,1,1,1,1,"Member"]
["Deputy Contingent Leader","SUP",4,0,0,1,0,1,1,0,1,0,1,1,0,1,1,1,1,1,1,1,1,"Member"]
["Contingent Management Team Member","SUP",4,0,0,1,0,1,1,0,1,0,1,1,0,1,1,1,1,1,1,1,1,"Member"]
["Contingent Support Team Member","SUP",4,0,0,1,0,1,1,0,1,0,1,0,0,0,1,0,1,1,1,1,1,"Member"]
["District Leader - Beaver Support","SUP",1,1,1,1,0,1,1,0,1,0,1,1,0,1,1,1,1,1,1,1,1,"Member"]
["District Leader - Cub Support","SUP",1,1,1,1,0,1,1,0,1,0,1,1,0,1,1,1,1,1,1,1,1,"Member"]
["District Leader - Scout Support","SUP",1,1,1,1,0,1,1,0,1,0,1,1,0,1,1,1,1,1,1,1,1,"Member"]
["District Leader - Explorer Support","SUP",1,1,1,1,0,1,1,0,1,0,1,1,0,1,1,1,1,1,1,1,1,"Member"]
["District Leader","SUP",1,1,1,1,0,1,1,0,1,0,1,1,0,1,1,1,1,1,1,1,1,"Member"]
["County Leader - Beaver Support","SUP",1,1,1,1,0,1,1,0,1,0,1,1,0,1,1,1,1,1,1,1,1,"Member"]
["Area Leader - Beaver Support","SUP",1,1,1,1,0,1,1,0,1,0,1,1,0,1,1,1,1,1,1,1,1,"Member"]
["County Leader - Cub Support","SUP",1,1,1,1,0,1,1,0,1,0,1,1,0,1,1,1,1,1,1,1,1,"Member"]
["Area Leader - Cub Support","SUP",1,1,1,1,0,1,1,0,1,0,1,1,0,1,1,1,1,1,1,1,1,"Member"]
["County Leader - Scout Support","SUP",1,1,1,1,0,1,1,0,1,0,1,1,0,1,1,1,1,1,1,1,1,"Member"]
["Area Leader - Cub Support","SUP",1,1,1,1,0,1,1,0,1,0,1,1,0,1,1,1,1,1,1,1,1,"Member"]
["County Leader - Explorer Support","SUP",1,1,1,1,0,1,1,0,1,0,1,1,0,1,1,1,1,1,1,1,1,"Member"]
["Area Leader - Explorer Support","SUP",1,1,1,1,0,1,1,0,1,0,1,1,0,1,1,1,1,1,1,1,1,"Member"]
["County Leader - Network Support","SUP",1,1,1,1,0,1,1,0,1,0,1,1,0,1,1,1,1,1,1,1,1,"Member"]
["Area Leader - Network Support","SUP",1,1,1,1,0,1,1,0,1,0,1,1,0,1,1,1,1,1,1,1,1,"Member"]
["County Leader","SUP",1,1,1,1,0,1,1,0,1,0,1,1,0,1,1,1,1,1,1,1,1,"Member"]
["Group President","SUP",2,0,0,0,1,0,0,0,0,0,0,0,0,0,0,0,0,0,0,0,0,"Associate Member"]
["Group Vice President","SUP",2,0,0,0,1,0,0,0,0,0,0,0,0,0,0,0,0,0,0,0,0,"Associate Member"]
["District President","SUP",2,0,0,0,1,0,0,0,0,0,0,0,0,0,0,0,0,0,0,0,0,"Associate Member"]
["District Vice President","SUP",2,0,0,0,1,0,0,0,0,0,0,0,0,0,0,0,0,0,0,0,0,"Associate Member"]
["County President","SUP",2,0,0,0,1,0,0,0,0,0,0,0,0,0,0,0,0,0,0,0,0,"Associate Member"]
["County Vice President","SUP",2,0,0,0,1,0,0,0,0,0,0,0,0,0,0,0,0,0,0,0,0,"Associate Member"]
["Area President","SUP",2,0,0,0,1,0,0,0,0,0,0,0,0,0,0,0,0,0,0,0,0,"Associate Member"]
["Area Vice President","SUP",2,0,0,0,1,0,0,0,0,0,0,0,0,0,0,0,0,0,0,0,0,"Associate Member"]
["Regional President (Scotland)","SUP",2,0,0,0,1,0,0,0,0,0,0,0,0,0,0,0,0,0,0,0,0,"Associate Member"]
["Regional Vice President (Scotland)","SUP",2,0,0,0,1,0,0,0,0,0,0,0,0,0,0,0,0,0,0,0,0,"Associate Member"]
["Country President","SUP",2,0,0,0,1,0,0,0,0,0,0,0,0,0,0,0,0,0,0,0,0,"Member"]
["Country Vice President","SUP",2,0,0,0,1,0,0,0,0,0,0,0,0,0,0,0,0,0,0,0,0,"Associate Member"]
["President","SUP",0,0,0,0,0,0,0,0,0,0,0,0,0,0,0,0,0,0,0,0,0,"Member"]
["Vice President","SUP",4,0,0,1,0,0,0,0,0,0,0,0,0,0,0,0,0,0,0,0,0,"Member"]
["Safeguarding Awareness Co-ordinator","SUP",1,1,1,1,0,1,1,0,0,0,0,0,0,0,0,0,1,1,1,1,0,"Member"]
["Safety Co-ordinator","SUP",1,1,1,1,0,1,1,0,0,0,0,0,0,0,0,0,1,1,1,1,0,"Associate Member"]
["County Safeguarding Adviser","SUP",1,1,1,1,0,1,1,0,0,0,0,0,0,0,0,0,1,1,1,1,1,"Associate Member"]
["Area Safeguarding Adviser","SUP",1,1,1,1,0,1,1,0,0,0,0,0,0,0,0,0,1,1,1,1,1,"Associate Member"]
["Region (Scotland) Safeguarding Adviser","SUP",1,1,1,1,0,1,1,0,0,0,0,0,0,0,0,0,1,1,1,1,1,"Associate Member"]
["County Safety Adviser","SUP",1,1,1,1,0,1,1,0,0,0,0,0,0,0,0,0,1,1,1,1,1,"Associate Member"]
["Area Safety Adviser","SUP",1,1,1,1,0,1,1,0,0,0,0,0,0,0,0,0,1,1,1,1,1,"Associate Member"]
["Region (Scotland) Safety Adviser","SUP",1,1,1,1,0,1,1,0,0,0,0,0,0,0,0,0,1,1,1,1,1,"Associate Member"]
["Scout Active Support Manager","SUP",1,1,1,1,0,1,1,0,1,0,1,1,0,1,1,1,1,1,1,1,1,"Member"]
["Scout Active Support Co‑ordinator","SUP",1,1,1,1,0,1,1,0,0,0,0,0,0,0,1,0,1,1,1,1,0,"Associate Member"]
["Scout Active Support Member","SUP",0,0,0,0,0,2,1,0,0,0,0,0,0,0,1,0,1,1,1,0,0,"Associate Member"]
["Scout Active Support Manager","SUP",1,1,1,1,0,1,1,0,1,0,1,1,0,1,1,1,1,1,1,1,1,"Member"]
["Scout Active Support Co‑ordinator","SUP",1,1,1,1,0,1,1,0,0,0,0,0,0,0,1,0,1,1,1,1,0,"Associate Member"]
["Scout Active Support Member","SUP",0,0,0,0,0,2,1,0,0,0,0,0,0,0,1,0,1,1,1,0,0,"Associate Member"]
["Scout Active Support Manager","SUP",1,1,1,1,0,1,1,0,1,0,1,1,0,1,1,1,1,1,1,1,1,"Member"]
["Scout Active Support Co‑ordinator","SUP",1,1,1,1,0,1,1,0,0,0,0,0,0,0,1,0,1,1,1,1,0,"Associate Member"]
["Scout Active Support Member","SUP",0,0,0,0,0,2,1,0,0,0,0,0,0,0,1,0,1,1,1,0,0,"Associate Member"]
["Scout Active Support Manager","SUP",1,1,1,1,0,1,1,0,1,0,1,1,0,1,1,1,1,1,1,1,1,"Member"]
["Scout Active Support Manager","SUP",1,1,1,1,0,1,1,0,1,0,1,1,0,1,1,1,1,1,1,1,1,"Member"]
["Scout Active Support Co-ordinator","SUP",1,1,1,1,0,1,1,0,0,0,0,0,0,0,1,0,1,1,1,1,0,"Associate Member"]
["Scout Active Support Co-ordinator","SUP",1,1,1,1,0,1,1,0,0,0,0,0,0,0,1,0,1,1,1,1,0,"Associate Member"]
["Scout Active Support member","SUP",0,0,0,0,0,2,1,0,0,0,0,0,0,0,1,0,1,1,1,0,0,"Associate Member"]
["Scout Active Support Manager","SUP",4,0,0,1,0,1,1,0,1,0,1,1,0,1,1,1,1,1,1,1,1,"Member"]
["Scout Active Support Co-ordinator","SUP",4,{"$f":"IF(C329=1,1,0)","v":0},{"$f":"IF(C329=1,1,0)","v":0},{"$f":"IF(OR(C329=1,C329=4),1,0)","v":1},{"$f":"IF(OR(C329=2,C329=3),1,0)","v":0},1,1,0,0,0,0,0,{"$f":"IF(AND(N329>0,M329=0),1,0)","v":0},{"$f":"N329-O329","v":0},1,0,1,1,1,1,0,"Associate Member"]
["Scout Active Support member","SUP",0,0,0,0,0,2,1,0,0,0,0,0,0,0,1,0,1,1,1,0,0,"Associate Member"]
["District Youth Commissioner","SUP",1,1,1,1,0,1,1,1,1,0,1,1,0,1,1,1,1,1,1,1,1,"Member"]
["Deputy District Youth Commissioner","SUP",1,1,1,1,0,1,1,0,1,0,1,1,0,1,1,1,1,1,1,1,1,"Member"]
["Assistant District Commissioner (Youth Involvement)","SUP",1,1,1,1,0,1,1,1,1,0,1,1,0,1,1,1,1,1,1,1,1,"Member"]
["County Youth Commissioner","SUP",1,1,1,1,0,1,1,1,1,0,1,1,0,1,1,1,1,1,1,1,1,"Member"]
["Deputy County Youth Commissioner","SUP",1,1,1,1,0,1,1,0,1,0,1,1,0,1,1,1,1,1,1,1,1,"Member"]
["Area Youth Commissioner","SUP",1,1,1,1,0,1,1,1,1,0,1,1,0,1,1,1,1,1,1,1,1,"Member"]
["Deputy Area Youth Commissioner","SUP",1,1,1,1,0,1,1,0,1,0,1,1,0,1,1,1,1,1,1,1,1,"Member"]
["Assistant Regional Commissioner (Youth Involvement)","SUP",1,1,1,1,0,1,1,1,1,0,1,1,0,1,1,1,1,1,1,1,1,"Member"]
["Country Youth Commissioner","SUP",4,0,0,1,0,1,1,1,1,0,1,1,0,1,1,1,1,1,1,1,1,"Member"]
["Deputy Country Youth Commissioner","SUP",1,1,1,1,0,1,1,0,1,0,1,1,0,1,1,1,1,1,1,1,1,"Member"]
["Scotland Commissioner (Youth Involvement)","SUP",4,0,0,1,0,1,1,1,1,0,1,1,0,1,1,1,1,1,1,1,1,"Member"]
["UK Youth Commissioner","SUP",4,0,0,1,0,1,1,1,1,0,1,1,0,1,1,1,1,1,1,1,1,"Member"]
["Deputy UK Youth Commissioner","SUP",4,0,0,1,0,1,1,0,1,0,1,1,0,1,1,1,1,1,1,1,1,"Member"]
["zzzz DUMMY ROLE WITH NO REQUIREMENTS zzzz",null,0,0,0,0,0,0,0,0,0,0,0,0,0,0,0,0,0,0,0,0,0,"None"]

{"sheet":"What's New","index":4,"n_rows":38,"n_cols":3,"rows_kept":38,"cut":false,"hidden":true,"merged":[]}
[]
[null,"What's New in the Compliance Assistant version 6071 (from version 6070)"]
[null,"●","Support for the May 2021 updates to Table 2 of the Appointments Process of POR"]
[null,"●","Changes to the handling of the input CSV file to improve speed and accuracy"]
[null,"●","Addition of optional sectional information to the Appointments sheet"]
[null,"●","Due Soon highlighting by date as an alternative to a period in months."]
[]
[null,"What's New in the Compliance Assistant version 6070 (from version 6067)"]
[null,"●","Support for the September 2020 POR Update including the transition process to move from 5 years to 3 years as the renewal period for Safety and Safeguarding."]
[null,"●","Full support for the Trustee Introduction training introduced in September 2020"]
[null,"●","Added columns to the Appointments sheet to show the data recorded on Compass Mandatory Ongoing Learning as Renewal Due, which now is in the Compass Appointments Report."]
[null,"●","When a new version is run for the first time you will asked if you want to see What's New."]
[null,"●","When First Aid, Safety or Safeguarding has been completed, but this is not a requirement of the role then the dates will appear in a grey rather than black font."]
[null,"●","Highlighting is Dark Pink = Overdue, Orange with Black Border = Due Soon, Pale Pink with Red Border (Review Only) indicates Required but no date, and Beige indicates something on row to be investigated.  Comments added to Headings to remind you."]
[null,"●","Major internal enhancements and minor bug fixes."]
[]
[]
[null,"What's New in the Compliance Assistant version 6067 (from version 6066)"]
[null,"●","Support for the September 2020 version of the Appointments report including Essential Information for Exec Members (Module 1EX), Tools for Role (Managers and Supporter) (Module 4), GDPR and limited support for the new Trustee Introduction."]
[null,null,"Please note that this version does NOT support the changes made to POR in September 2020, in particular the alterations to Table 2 in the Appointments Process and 3 year renewals for Safety and Safeguarding."]
[]
[]
[null,"What's New in the Compliance Assistant version 6066 (from version 6065)"]
[null,"●","The option to produce multiple reports from District, County, Regional, Area files, etc."]
[null,"●","The ability to save the report(s) produced automatically"]
[null,"●","Revised logic for Subtotals to fix bug.  This also affected Summary sheet logic."]
[null,"●","Moved outline help information from Front sheet to a new Help sheet"]
[null,"●","Minor bug fixes"]
[]
[]
[null,"What's New in the Compliance Assistant version 6065 (from version 6061)"]
[]
[null,"●","Well, the first thing is the What's New feature. "]
[null,"●","The internal version of Table 2 from the Appointments Process in POR has been updated to get a closer match with the January 2020 POR Update"]
[null,"●","In the report there is a new sheet Subtotal.  Initially this is the same as the Summary sheet, however, if the Appointments sheet is filtered then the Subtotal sheet gives the figures for the visible rows"]
[null,"●","Internal changes to support enhancements"]
[null,"●","The end message now provides the option to delete the input file"]
[null,"●","Minor bug fixes"]

{"sheet":"Help","index":5,"n_rows":41,"n_cols":2,"rows_kept":41,"cut":false,"hidden":true,"merged":[]}
[]
[null,"Outline Help"]
[null,"As at April 2022 the Compass Appointments Report shows First Aid as having been completed if just Module 10A has been completed despite the requirement for both 10A and 10B."]
[]
[null,"First log on to Compass and produce an Appointments Report Exporting it as a CSV (comma delimited) file"]
[null,"Then move this exported file to the area where you keep confidential Compass reports."]
[null,"Start the program by clicking the button"]
[null,"This will allow you to select the CSV file and some initial options including whether results should be saved."]
[null,"The program will then start to run."]
[null,"It will detect that the input data does not including all information for Exec members and ask whether you wish to default to either assuming Safety and Safeguarding has not been completed or it has been completed."]
[null,"Before completion you may be asked whether sub-reports are required depending on the input used."]
[null,"When it has completed you will have output with Occasional Helper and Network Member roles removed."]
[null,"The output may either be left open or saved and closed depending upon the initial option chosen."]
[]
[null,"For more detailed help please review the \"How To\" files in the same online folder as the program."]
[null,"The link to the folder is below"]
[]
[null,"Compliance Assistant  -  https://www.scouts.org.uk/compliance-assistant"]
[]
[null,"How to change the default date format on your system"]
[]
[null,"You may need to restart your system for the changes to take effect."]
[]
[null,"Window 10"]
[]
[null,"Settings > Time & Language > Region"]
[]
[null,"Then select English (United Kingdom) as the Regional Format."]
[]
[null,"More information at ..."]
[null,"https://support.microsoft.com/en-us/office/change-the-windows-regional-settings-to-modify-the-appearance-of-some-data-types-edf41006-f6e2-4360-bc1b-30e9e8a54989"]
[]
[]
[null,"macOS"]
[]
[null,"Apple menu > System Peferences > Language & Region"]
[]
[null,"Then select United Kindon as the Region"]
[]
[null,"More information at ..."]
[null,"https://support.apple.com/en-gb/guide/mac-help/mh27073/mac"]

{"sheet":"Links","index":6,"n_rows":10,"n_cols":2,"rows_kept":10,"cut":false,"hidden":true,"merged":[]}
[]
[]
[]
[]
[null,"Click links or copy to web browser to download the different Assistants"]
[]
[]
[null,"www.scouts.org.uk/training-assistant"]
[null,"www.scouts.org.uk/compliance-assistant"]
[null,"www.scouts.org.uk/awards-assistant"]

{"sheet":"StartButton","index":7,"n_rows":0,"n_cols":0,"rows_kept":0,"cut":false,"hidden":true,"merged":[]}

{"sheet":"Report Notes","index":8,"n_rows":36,"n_cols":17,"rows_kept":36,"cut":false,"hidden":true,"merged":[[16,0,16,8],[11,0,11,5],[12,0,12,5],[13,0,13,7],[30,0,30,5],[18,0,18,5],[19,0,19,5],[20,0,20,5],[22,0,22,5],[23,0,23,5],[24,0,24,5],[27,0,27,5],[28,0,28,5],[29,0,29,5],[25,0,25,5],[26,0,26,5]]}
["Compliance Assistant Report - ##ReportFor##",null,null,null,null,null,null,null,null,null,null,null,null,null,6071.1530000000002,null,{"$f":"FALSE","v":false}]
[]
[null,"Run date and time","2020-04-07T15:14:00"]
[null,"Compliance Assistant version",{"$f":"TEXT(OurVersion,\"0.000\")","v":"6071.153"}]
[null,"Compass Appointments Report date","2018-10-14"]
[]
[null,"Training or process Overdue if due before","2020-04-07"]
[null,"Initial training or process Due Soon if due before","2021-04-07"]
[null,"Other training Due Soon if due before","2018-10-14"]
[]
["This report uses the May 2021 version of POR.  For more details see …"]
["https://www.scouts.org.uk/por/the-appointment-process/#Table%202"]
["https://www.scouts.org.uk/volunteers/learning-development-and-awards/training/updates-to-our-learning-and-training/"]
["https://www.scouts.org.uk/volunteers/learning-development-and-awards/training/updates-to-our-learning-and-training/training-requirements-by-role/"]
[]
["First Aid information is based only on the information in Compass.  No adjustment has been made for any possible COVID-19 extension."]
["https://www.scouts.org.uk/volunteers/learning-development-and-awards/training/trainers/delivering-the-modules/delivering-ongoing-training-for-learners/first-aid-training/first-aid-training-faqs/"]
[]
["To get the latest information please always use an up to date Appointments report."]
["The Compliance Assistant program will change.  Please always download and use the latest version, which can be found at …"]
["https://www.scouts.org.uk/Compliance-Assistant"]
["The report produced can only be as good as the data in the Compass Appointments Report.  For known issues please check the file at the above link."]
["Address information is always omitted from the output from the Compliance Assistant.  "]
["Network Member, Occasional Helper, PVG Only, Scout Council and Staff roles are removed as they have no appointment or training obligations defined in POR."]
["Where a potential compliance issue has been identified it will be highlighted dark pink.  Where training is due soon it will be highlighted in orange.  In either case the row will be highlighted in beige.  Where no issues have been identified the row will remain white."]
["Where a role requires a review and the Review Due date is missing it will be higlighted pale pink with a red border."]
["Where Safety, Safeguarding or First Aid training has been completed, but is not a requirement of the role then the date(s) will be grey rather than black."]
["Where a person has more than one role, there will be multiple entries for that person.  Training and appointments process requirements are different for each role, so an entry on one row may be highlighted but not on another role for the person."]
["If an appointment is showing as \"PROVISIONAL\" on the Compass Appointments Report then an assumption is made that all necessary appointment process steps have been completed, even if they are not recorded as such in the report.  If an appointment is showing as ‘FULL’ on Compass then an assumption is made that all necessary appointments/’Getting Started’ training processes are complete where these are required for a FULL role, even if they are not recorded as such in the report."]
["If an element shows as non-compliant then it may be that Compass is not up-to-date rather than the person/role being non-compliant.  The Appointments Report (and, therefore, the Compliance Assistant output) can only be as accurate as the data in Compass."]
["Please note this information is based on the data in the Compass Appointments Report.  If there are issues with this report please check the original Appointments Report to see whether they existed there before contacting the developer with a query."]
[]
[]
[null,"To contact the developer please use the email address below."]
[]
[null,"Peter.Moretti@scouts.org.uk"]

{"sheet":"Summary","index":9,"n_rows":53,"n_cols":14,"rows_kept":53,"cut":false,"hidden":true,"merged":[[34,0,34,3],[35,0,35,3],[35,13,36,13],[36,0,36,3],[48,0,48,3],[25,0,25,3],[25,13,27,13],[26,0,26,3],[27,0,27,3],[31,0,31,3],[31,13,32,13],[32,0,32,3],[21,0,21,3],[21,13,23,13],[22,0,22,3],[23,0,23,3],[0,0,0,13],[12,0,12,3],[12,6,12,13],[13,0,13,3],[15,0,15,3],[17,0,17,3],[17,13,19,13],[18,0,18,3],[19,0,19,3]]}
[{"$f":"\"Compliance Assistant Report - ##ReportFor## - \"&TEXT('Report Notes'!C5, \"dd mmmm yyyy\")","v":"Compliance Assistant Report - ##ReportFor## - 14 October 2018"}]
["Prepared for the Appointments Advisory Committee: June 2019"]
["The data for this report has been sourced from a Compass Appointments Report"]
["Disclosure information is not provided here.  Please see the Disclosure Management Report."]
["Data highlighted red indicate areas of potential risk areas that Trustees should investigate further and take mitigating action as required."]
["The goal is to drive the red boxes to be consistently zero"]
[]
["Status of roles"]
[null,null,null,"Those adults hold this number of roles",null,null,null,41876]
[]
[null,null,null,null,"Total","Full","% Full","Pre-prov / Provisional","Due Soon","Due Soon as % of Total Roles","Overdue","Overdue as % of Total Roles","Overdue as %  of Pre-Prov/Prov"," Overdue Criteria"]
[]
["Total Adults (excluding those who are recorded only as Occasional Helpers or Network Members)",null,null,null,{"$f":"SUM(--(FREQUENCY(Member_Nos,Member_Nos)>0))","v":1}]
["Number of Roles held by these adults",null,null,null,{"$f":"SUM(RoleCount)","v":1},{"$f":"COUNTIFS(Appointments!G:I,\"=Full\")","v":1},{"$f":"IF(E14>0,F14/E14,0)","v":1},{"$f":"E14-F14","v":0},{"$f":"SUM(SoonRole)","v":0},{"$f":"I14/E14","v":0},{"$f":"SUM(OverRole)","v":0},{"$f":"K14/E14","v":0},{"$f":"IF(H14>0,K14/H14,0)","v":0}," in role for more than 5 months"]
["Requirement: all Roles to achieve status FULL within 5 months of role start date"]
[null,null,null,null,"Total Required","Completed","% Completed","Not yet complete","Due Soon","Due Soon as % of Total Required","Overdue","Overdue as % of Total Required","Overdue as %  of Not Yet Complete"," Overdue Criteria"]
[]
["Roles requiring Appointment Panel approval ",null,null,null,{"$f":"SUM(ReqAAC)","v":1},{"$f":"SUM(ComAAC)","v":0},{"$f":"IF(E18>0,(E18-H18)/E18,0)","v":0},{"$f":"E18-F18","v":1},{"$f":"SUM(SoonAAC)","v":0},{"$f":"IF(E18>0,I18/E18,0)","v":0},{"$f":"SUM(OverAAC)","v":0},{"$f":"IF(E18>0,K18/E18,0)","v":0},{"$f":"IF(H18>0,K18/H18,0)","v":0}," have been in role for more than 5 months"]
["Roles requiring Completion of references ",null,null,null,{"$f":"SUM(ReqRefs)","v":1},{"$f":"SUM(ComRefs)","v":0},{"$f":"IF(E19>0,(E19-H19)/E19,0)","v":0},{"$f":"E19-F19","v":1},{"$f":"SUM(SoonRefs)","v":0},{"$f":"IF(E19>0,I19/E19,0)","v":0},{"$f":"SUM(OverREfs)","v":1},{"$f":"IF(E19>0,K19/E19,0)","v":1},{"$f":"IF(H19>0,K19/H19,0)","v":1}]
["Roles requiring Commissioner / Council / Committee approval ",null,null,null,{"$f":"SUM(ReqCommissioner)+SUM(ReqCommitteeCouncil)","v":1},{"$f":"SUM(ComCommissioner)+SUM(ComCommittee)","v":0},{"$f":"IF(E20>0,(E20-H20)/E20,0)","v":0},{"$f":"E20-F20","v":1},{"$f":"SUM(SoonCommissioner)+SUM(SoonCommittee)","v":0},{"$f":"IF(E20>0,I20/E20,0)","v":0},{"$f":"SUM(OverCommissioner)+SUM(OverCommittee)","v":0},{"$f":"IF(E20>0,K20/E20,0)","v":0},{"$f":"IF(H20>0,K20/H20,0)","v":0}]
[]
["Individuals requiring Module 1 (Essential Information)",null,null,null,{"$f":"SUM(--(FREQUENCY(ReqMod1,ReqMod1)>0))","v":1},{"$f":"SUM(--(FREQUENCY(ComMod1,ComMod1)>0))","v":1},{"$f":"IF(E22>0,(E22-H22)/E22,0)","v":1},{"$f":"E22-F22","v":0},{"$f":"SUM(--(FREQUENCY(SoonMod1,SoonMod1)>0))","v":1},{"$f":"IF(E22>0,I22/E22,0)","v":1},{"$f":"SUM(--(FREQUENCY(OverMod1,OverMod1)>0))","v":1},{"$f":"IF(E22>0,K22/E22,0)","v":1},{"$f":"IF(H22>0,K22/H22,0)","v":0}," have been in role for more than 5 months"]
["Individuals requiring Trustee Introduction",null,null,null,{"$f":"SUM(--(FREQUENCY(ReqTrustee,ReqTrustee)>0))","v":1},{"$f":"SUM(--(FREQUENCY(ComTrustee,ComTrustee)>0))","v":1},{"$f":"IF(E23>0,(E23-H23)/E23,0)","v":1},{"$f":"E23-F23","v":0},{"$f":"SUM(--(FREQUENCY(SoonTrustee,SoonTrustee)>0))","v":1},{"$f":"IF(E23>0,I23/E23,0)","v":1},{"$f":"SUM(--(FREQUENCY(OverTrustee,OverTrustee)>0))","v":1},{"$f":"IF(E23>0,K23/E23,0)","v":1},{"$f":"IF(H23>0,K23/H23,0)","v":0}]
["Individuals requring GDPR training",null,null,null,{"$f":"SUM(--(FREQUENCY(ReqGdpr,ReqGdpr)>0))","v":1},{"$f":"SUM(--(FREQUENCY(ComGdpr,ComGdpr)>0))","v":1},{"$f":"IF(E24>0,(E24-H24)/E24,0)","v":1},{"$f":"E24-F24","v":0},{"$f":"SUM(--(FREQUENCY(SoonGdpr,SoonGdpr)>0))","v":1},{"$f":"IF(E24>0,I24/E24,0)","v":1},{"$f":"SUM(--(FREQUENCY(OverGdpr,OverGdpr)>0))","v":1},{"$f":"IF(E24>0,K24/E24,0)","v":1},{"$f":"IF(H24>0,K24/H24,0)","v":0}]
[]
["Roles requiring Getting Started: Module 3 (Tools for the Role – Section Leaders) ",null,null,null,{"$f":"SUM(ReqMod3)","v":0},{"$f":"SUM(ComMod3)","v":0},0,{"$f":"E26-F26","v":0},{"$f":"SUM(SoonMod3)","v":0},0,{"$f":"SUM(OverMod3)","v":0},0,0," have been in role for more than 5 months"]
["Roles requiring Getting Started: Module 4 (Tools for the Role – Managers and Supporters) ",null,null,null,{"$f":"SUM(ReqMod4)","v":0},{"$f":"SUM(ComMod4)","v":0},0,{"$f":"E27-F27","v":0},{"$f":"SUM(SoonMod4)","v":0},0,{"$f":"SUM(OverMod4)","v":0},0,0]
["Roles requiring Getting Started: Module 2 (Personal Learning Plan)",null,null,null,{"$f":"SUM(ReqMod2)","v":0},{"$f":"SUM(ComMod2)","v":0},0,{"$f":"E28-F28","v":0},{"$f":"SUM(SoonMod2)","v":0},0,{"$f":"SUM(OverMod2)","v":0},0,0]
["Meeting training obligations"]
[null,null,null,null,"Total Required","Completed","% Completed","Not yet complete","Due Soon","Due Soon as % of Total Required","Overdue","Overdue as % of Total Roles","Overdue as %  of Not Yet Complete"," Overdue Criteria"]
[]
["Roles requiring a Section Wood Badge",null,null,null,{"$f":"SUM(ReqSectionWb)","v":0},{"$f":"SUM(ComSectionWb)","v":0},{"$f":"IF(E32>0,(E32-H32)/E32,0)","v":0},{"$f":"E32-F32","v":0},{"$f":"SUM(SoonSectionWb)","v":0},{"$f":"IF(E32>0,I32/E32,0)","v":0},{"$f":"SUM(OverSectionWb)","v":0},{"$f":"IF(E32>0,K32/E32,0)","v":0},{"$f":"IF(H32>0,K32/H32,0)","v":0}," have been in role for more than 3 years"]
["Roles requiring a Manager & Supporter Wood Badge",null,null,null,{"$f":"SUM(ReqMgrWb)","v":0},{"$f":"SUM(ComMgrWb)","v":0},{"$f":"IF(E33>0,(E33-H33)/E33,0)","v":0},{"$f":"E33-F33","v":0},{"$f":"SUM(SoonMgrWb)","v":0},{"$f":"IF(E33>0,I33/E33,0)","v":0},{"$f":"SUM(OverMgrWb)","v":0},{"$f":"IF(E33>0,K33/E33,0)","v":0},{"$f":"IF(H33>0,K33/H33,0)","v":0}]
[]
["Individuals requiring First Aid training",null,null,null,{"$f":"SUM(--(FREQUENCY(ReqFirstAid,ReqFirstAid)>0))","v":1},{"$f":"SUM(--(FREQUENCY(ComFirstAid,ComFirstAid)>0))","v":1},{"$f":"IF(E35>0,(E35-H35)/E35,0)","v":1},{"$f":"E35-F35","v":0},{"$f":"SUM(--(FREQUENCY(SoonFirstAid,SoonFirstAid)>0))","v":1},{"$f":"IF(E35>0,I35/E35,0)","v":1},{"$f":"SUM(--(FREQUENCY(OverFirstAid,OverFirstAid)>0))","v":1},{"$f":"IF(E35>0,K35/E35,0)","v":1},{"$f":"IF(H35>0,K35/H35,0)","v":0},"more than three years since appointment or last renewed"]
["Individuals requiring Safety training",null,null,null,{"$f":"SUM(--(FREQUENCY(ReqSafety,ReqSafety)>0))","v":1},{"$f":"SUM(--(FREQUENCY(ComSafety,ComSafety)>0))","v":1},{"$f":"IF(E36>0,(E36-H36)/E36,0)","v":1},{"$f":"E36-F36","v":0},{"$f":"SUM(--(FREQUENCY(SoonSafety,SoonSafety)>0))","v":1},{"$f":"IF(E36>0,I36/E36,0)","v":1},{"$f":"SUM(--(FREQUENCY(OverSafety,OverSafety)>0))","v":1},{"$f":"IF(E36>0,K36/E36,0)","v":1},{"$f":"IF(H36>0,K36/H36,0)","v":0}," have been in role for more than 3 years"]
["Individuals requiring Safeguarding training",null,null,null,{"$f":"SUM(--(FREQUENCY(ReqSafeguarding,ReqSafeguarding)>0))","v":1},{"$f":"SUM(--(FREQUENCY(ComSafeguarding,ComSafeguarding)>0))","v":1},{"$f":"IF(E37>0,(E37-H37)/E37,0)","v":1},{"$f":"E37-F37","v":0},{"$f":"SUM(--(FREQUENCY(SoonSafeguarding,SoonSafeguarding)>0))","v":1},{"$f":"IF(E37>0,I37/E37,0)","v":1},{"$f":"SUM(--(FREQUENCY(OverSafeguarding,OverSafeguarding)>0))","v":1},{"$f":"IF(E37>0,K37/E37,0)","v":1},{"$f":"IF(H37>0,K37/H37,0)","v":0}]
[]
[]
["5) Appointment Reviews"]
[null,null,"Please add local information on Appointments Reviewed"]
[null,null,null,"Appointment Reviews in the past 12 months ",null,null,null,null,null,null,null,null,null," Role renewed"]
[null,null,null,null,null,null,null,null,null,null,null,null,null," Reassigned"]
[null,null,null,null,null,null,null,null,null,null,null,null,null," Retired from Scouting"]
[]
["Meeting Appointment Review obligations"]
[null,null,null,null,"Total Required","Completed","% Completed","Not yet complete","Due Soon","Due Soon as % of Total Required","Overdue","Overdue as % of Total Roles","Overdue as %  of Not Yet Complete"," Overdue Criteria"]
[]
["Roles requiring a review",null,null,null,{"$f":"SUM(ReqReview)","v":0},{"$f":"SUM(ComReview)","v":0},{"$f":"IF(E49>0,(E49-H49)/E49,0)","v":0},{"$f":"E49-F49","v":0},{"$f":"SUM(SoonReview)","v":0},{"$f":"IF(E49>0,I49/E49,0)","v":0},{"$f":"SUM(OverReview)","v":0},{"$f":"IF(E49>0,K49/E49,0)","v":0},{"$f":"IF(H49>0,K49/H49,0)","v":0},"more than five years since appointment or last review"]
[]
["* First Aid Training is only counted as 'Complete' if it is required by the role and the report is within 3 years of the last First Aid validation"]
["** Safety and Safeguarding are only counted as 'Complete' if the training is required, has been completed and is still valid."]
["^ Reviews are only treated as completed if required by the role and the Next Review Date is in the future and this is more than five years since Role Start."]

{"sheet":"Subtotal","index":10,"n_rows":53,"n_cols":14,"rows_kept":53,"cut":false,"hidden":true,"merged":[[17,0,17,3],[17,13,19,13],[18,0,18,3],[19,0,19,3],[0,0,0,13],[12,0,12,3],[12,6,12,13],[13,0,13,3],[15,0,15,3],[21,0,21,3],[21,13,23,13],[22,0,22,3],[23,0,23,3],[25,0,25,3],[25,13,27,13],[26,0,26,3],[27,0,27,3],[48,0,48,3],[31,0,31,3],[31,13,32,13],[32,0,32,3],[34,0,34,3],[35,0,35,3],[35,13,36,13],[36,0,36,3]]}
[{"$f":"\"Compliance Assistant Report - ##ReportFor## - \"&TEXT('Report Notes'!C5, \"dd mmmm yyyy\") & \" - Subtotals\"","v":"Compliance Assistant Report - ##ReportFor## - 14 October 2018 - Subtotals"}]
["Prepared for the Appointments Advisory Committee: June 2019"]
["All comments on the Summary sheet apply here"]
["If the Appointments sheet is filtered, e.g. to select roles within a Scout Group or District, then the totals on this sheet will reflect that selection."]
["Data highlighted red indicate areas of potential risk areas that Trustees should investigate further and take mitigating action as required."]
["The goal is to drive the red boxes to be consistently zero"]
[]
["Status of roles"]
[null,null,null,"Those adults hold this number of roles",null,null,null,41876]
[]
[null,null,null,null,"Total","Full","% Full","Pre-prov / Provisional","Due Soon","Due Soon as % of Total Roles","Overdue","Overdue as % of Total Roles","Overdue as %  of Pre-Prov/Prov"," Overdue Criteria"]
[]
["Total Adults (excluding those who are recorded only as Occasional Helpers or Network Members)",null,null,null,{"$f":"SUM(--(FREQUENCY(VisibleAdults,VisibleAdults)>0))","v":1}]
["Number of Roles held by these adults",null,null,null,{"$f":"SUM(IsVisible)","v":1},{"$f":"SUBTOTAL(fnSUM,ComRoleFull)","v":1},{"$f":"IF(E14>0,F14/E14,0)","v":1},{"$f":"E14-F14","v":0},{"$f":"SUBTOTAL(fnSUM,SoonRole)","v":0},{"$f":"I14/E14","v":0},{"$f":"SUBTOTAL(fnSUM,OverRole)","v":0},{"$f":"K14/E14","v":0},{"$f":"IF(H14>0,K14/H14,0)","v":0}," in role for more than 5 months"]
["Requirement: all Roles to achieve status FULL within 5 months of role start date"]
[null,null,null,null,"Total Required","Completed","% Completed","Not yet complete","Due Soon","Due Soon as % of Total Required","Overdue","Overdue as % of Total Required","Overdue as %  of Not Yet Complete"," Overdue Criteria"]
[]
["Roles requiring Appointment Panel approval ",null,null,null,{"$f":"SUBTOTAL(fnSUM,ReqAAC)","v":1},{"$f":"SUBTOTAL(fnSUM,ComAAC)","v":0},{"$f":"IF(E18>0,(E18-H18)/E18,0)","v":0},{"$f":"E18-F18","v":1},{"$f":"SUBTOTAL(fnSUM,SoonAAC)","v":0},{"$f":"IF(E18>0,I18/E18,0)","v":0},{"$f":"SUBTOTAL(fnSUM,OverAAC)","v":0},{"$f":"IF(E18>0,K18/E18,0)","v":0},{"$f":"IF(H18>0,K18/H18,0)","v":0}," have been in role for more than 5 months"]
["Roles requiring Completion of references ",null,null,null,{"$f":"SUBTOTAL(fnSUM,ReqRefs)","v":1},{"$f":"SUBTOTAL(fnSUM,ComRefs)","v":0},{"$f":"IF(E19>0,(E19-H19)/E19,0)","v":0},{"$f":"E19-F19","v":1},{"$f":"SUBTOTAL(fnSUM,SoonRefs)","v":0},{"$f":"IF(E19>0,I19/E19,0)","v":0},{"$f":"SUBTOTAL(fnSUM,OverREfs)","v":1},{"$f":"IF(E19>0,K19/E19,0)","v":1},{"$f":"IF(H19>0,K19/H19,0)","v":1}]
["Roles requiring Commissioner / Council / Committee approval ",null,null,null,{"$f":"SUBTOTAL(fnSUM,ReqCommissioner)+SUBTOTAL(fnSUM,ReqCommitteeCouncil)","v":1},{"$f":"SUBTOTAL(fnSUM,ComCommissioner)+SUBTOTAL(fnSUM,ComCommittee)","v":0},{"$f":"IF(E20>0,(E20-H20)/E20,0)","v":0},{"$f":"E20-F20","v":1},{"$f":"SUBTOTAL(fnSUM,SoonCommissioner)+SUBTOTAL(fnSUM,SoonCommittee)","v":0},{"$f":"IF(E20>0,I20/E20,0)","v":0},{"$f":"SUBTOTAL(fnSUM,OverCommissioner)+SUBTOTAL(fnSUM,OverCommittee)","v":0},{"$f":"IF(E20>0,K20/E20,0)","v":0},{"$f":"IF(H20>0,K20/H20,0)","v":0}]
[]
["Individuals requiring Module 1 (Essential Information)",null,null,null,{"$f":"SUM(--(FREQUENCY(VReqMod1,VReqMod1)>0))","v":1},{"$f":"SUM(--(FREQUENCY(VComMod1,VComMod1)>0))","v":0},{"$f":"IF(E22>0,(E22-H22)/E22,0)","v":0},{"$f":"E22-F22","v":1},{"$f":"SUM(--(FREQUENCY(VSoonMod1, VSoonMod1)>0))","v":1},{"$f":"IF(E22>0,I22/E22,0)","v":1},{"$f":"SUM(--(FREQUENCY(VOverMod1,VOverMod1)>0))","v":0},{"$f":"IF(E22>0,K22/E22,0)","v":0},{"$f":"IF(H22>0,K22/H22,0)","v":0}," have been in role for more than 5 months"]
["Individuals requiring Trustee Introduction",null,null,null,{"$f":"SUM(--(FREQUENCY(VReqTrustee,VReqTrustee)>0))","v":0},{"$f":"SUM(--(FREQUENCY(VComTrustee,VComTrustee)>0))","v":0},0,{"$f":"E23-F23","v":0},{"$f":"SUM(--(FREQUENCY(VSoonTrustee, VSoonTrustee)>0))","v":0},0,{"$f":"SUM(--(FREQUENCY(VOverTrustee,VOverTrustee)>0))","v":0},0,0]
["Individuals requring GDPR training",null,null,null,{"$f":"SUM(--(FREQUENCY(VReqGdpr,VReqGdpr)>0))","v":0},{"$f":"SUM(--(FREQUENCY(VComGdpr,VComGdpr)>0))","v":0},0,{"$f":"E24-F24","v":0},{"$f":"SUM(--(FREQUENCY(VSoonGdpr, VSoonGdpr)>0))","v":0},0,{"$f":"SUM(--(FREQUENCY(VOverGdpr,VOverGdpr)>0))","v":0},0,0]
[]
["Roles requiring Getting Started: Module 3 (Tools for the Role – Section Leaders) ",null,null,null,{"$f":"SUBTOTAL(fnSUM,ReqMod3)","v":0},{"$f":"SUBTOTAL(fnSUM,ComMod3)","v":0},0,{"$f":"E26-F26","v":0},{"$f":"SUBTOTAL(fnSUM,SoonMod3)","v":0},{"$f":"IF(E26>0,I26/E26,0)","v":0},{"$f":"SUBTOTAL(fnSUM,OverMod3)","v":0},0,0," have been in role for more than 5 months"]
["Roles requiring Getting Started: Module 4 (Tools for the Role – Managers and Supporters) ",null,null,null,{"$f":"SUBTOTAL(fnSUM,ReqMod4)","v":0},{"$f":"SUBTOTAL(fnSUM,ComMod4)","v":0},0,{"$f":"E27-F27","v":0},{"$f":"SUBTOTAL(fnSUM,SoonMod4)","v":0},0,{"$f":"SUBTOTAL(fnSUM,OverMod4)","v":0},0,0]
["Roles requiring Getting Started: Module 2 (Personal Learning Plan)",null,null,null,{"$f":"SUBTOTAL(fnSUM,ReqMod2)","v":0},{"$f":"SUBTOTAL(fnSUM,ComMod2)","v":0},0,{"$f":"E28-F28","v":0},{"$f":"SUBTOTAL(fnSUM,SoonMod2)","v":0},0,{"$f":"SUBTOTAL(fnSUM,OverMod2)","v":0},0,0]
["Meeting training obligations"]
[null,null,null,null,"Total Required","Completed","% Completed","Not yet complete","Due Soon","Due Soon as % of Total Required","Overdue","Overdue as % of Total Roles","Overdue as %  of Not Yet Complete"," Overdue Criteria"]
[]
["Roles requiring a Section Wood Badge",null,null,null,{"$f":"SUBTOTAL(fnSUM,ReqSectionWb)","v":0},{"$f":"SUBTOTAL(fnSUM,ComSectionWb)","v":0},{"$f":"IF(E32>0,(E32-H32)/E32,0)","v":0},{"$f":"E32-F32","v":0},{"$f":"SUBTOTAL(fnSUM,SoonSectionWb)","v":0},{"$f":"IF(E32>0,I32/E32,0)","v":0},{"$f":"SUBTOTAL(fnSUM,OverSectionWb)","v":0},{"$f":"IF(E32>0,K32/E32,0)","v":0},{"$f":"IF(H32>0,K32/H32,0)","v":0}," have been in role for more than 3 years"]
["Roles requiring a Manager & Supporter Wood Badge",null,null,null,{"$f":"SUBTOTAL(fnSUM,ReqMgrWb)","v":0},{"$f":"SUBTOTAL(fnSUM,ComMgrWb)","v":0},{"$f":"IF(E33>0,(E33-H33)/E33,0)","v":0},{"$f":"E33-F33","v":0},{"$f":"SUBTOTAL(fnSUM,SoonMgrWb)","v":0},{"$f":"IF(E33>0,I33/E33,0)","v":0},{"$f":"SUBTOTAL(fnSUM,OverMgrWb)","v":0},{"$f":"IF(E33>0,K33/E33,0)","v":0},{"$f":"IF(H33>0,K33/H33,0)","v":0}]
[]
["Individuals requiring First Aid training",null,null,null,{"$f":"SUM(--(FREQUENCY(VReqFirstAid,VReqFirstAid)>0))","v":1},{"$f":"SUM(--(FREQUENCY(VComFirstAid,VComFirstAid)>0))","v":0},{"$f":"IF(E35>0,(E35-H35)/E35,0)","v":0},{"$f":"E35-F35","v":1},{"$f":"SUM(--(FREQUENCY(VSoonFirstAid,VSoonFirstAid)>0))","v":0},{"$f":"IF(E35>0,I35/E35,0)","v":0},{"$f":"SUM(--(FREQUENCY(VOverFirstAid,VOverFirstAid)>0))","v":1},{"$f":"IF(E35>0,K35/E35,0)","v":1},{"$f":"IF(H35>0,K35/H35,0)","v":1},"more than three years since appointment or last renewed"]
["Individuals requiring Safety training",null,null,null,{"$f":"SUM(--(FREQUENCY(VReqSafety,VReqSafety)>0))","v":0},{"$f":"SUM(--(FREQUENCY(VComSafety,VComSafety)>0))","v":0},{"$f":"IF(E36>0,(E36-H36)/E36,0)","v":0},{"$f":"E36-F36","v":0},{"$f":"SUM(--(FREQUENCY(VSoonSafety,VSoonSafety)>0))","v":0},{"$f":"IF(E36>0,I36/E36,0)","v":0},{"$f":"SUM(--(FREQUENCY(VOverSafety,VOverSafety)>0))","v":0},{"$f":"IF(E36>0,K36/E36,0)","v":0},{"$f":"IF(H36>0,K36/H36,0)","v":0}," have been in role for more than 3 years"]
["Individuals requiring Safeguarding training",null,null,null,{"$f":"SUM(--(FREQUENCY(VReqSafeguarding,VReqSafeguarding)>0))","v":0},{"$f":"SUM(--(FREQUENCY(VComSafeguarding,VComSafeguarding)>0))","v":0},{"$f":"IF(E37>0,(E37-H37)/E37,0)","v":0},{"$f":"E37-F37","v":0},{"$f":"SUM(--(FREQUENCY(VSoonSafeguarding,VSoonSafeguarding)>0))","v":0},{"$f":"IF(E37>0,I37/E37,0)","v":0},{"$f":"SUM(--(FREQUENCY(VOverSafeguarding,VOverSafeguarding)>0))","v":0},{"$f":"IF(E37>0,K37/E37,0)","v":0},{"$f":"IF(H37>0,K37/H37,0)","v":0}]
[]
[]
["5) Appointment Reviews"]
[null,null,"Please add local information on Appointments Reviewed"]
[null,null,null,"Appointment Reviews in the past 12 months ",null,null,null,null,null,null,null,null,null," Role renewed"]
[null,null,null,null,null,null,null,null,null,null,null,null,null," Reassigned"]
[null,null,null,null,null,null,null,null,null,null,null,null,null," Retired from Scouting"]
[]
["Meeting Appointment Review obligations"]
[null,null,null,null,"Total Required","Completed","% Completed","Not yet complete","Due Soon","Due Soon as % of Total Required","Overdue","Overdue as % of Total Roles","Overdue as %  of Not Yet Complete"," Overdue Criteria"]
[]
["Roles requiring a review",null,null,null,{"$f":"SUBTOTAL(fnSUM,ReqReview)","v":0},{"$f":"SUBTOTAL(fnSUM,ComReview)","v":0},{"$f":"IF(E49>0,(E49-H49)/E49,0)","v":0},{"$f":"E49-F49","v":0},{"$f":"SUBTOTAL(fnSUM,SoonReview)","v":0},{"$f":"IF(E49>0,I49/E49,0)","v":0},{"$f":"SUBTOTAL(fnSUM,OverReview)","v":0},{"$f":"IF(E49>0,K49/E49,0)","v":0},{"$f":"IF(H49>0,K49/H49,0)","v":0},"more than five years since appointment or last review"]
[]
["* First Aid Training is only counted as 'Complete' if it is required by the role and the report is within 3 years of the last First Aid validation"]
["** Safety and Safeguarding are only counted as 'Complete' if the training is required, has been completed and is still valid."]
["^ Reviews are only treated as completed if required by the role and the Next Review Date is in the future and this is more than five years since Role Start."]

{"sheet":"Appointments","index":11,"n_rows":3,"n_cols":164,"rows_kept":3,"cut":false,"hidden":true,"merged":[[0,6,0,8],[0,92,0,110],[0,111,0,129],[0,75,0,91],[0,56,0,73]]}
["Compliance Assistant - ##ReportFor##",null,null,null,null,null," For known issues please check by following the link on the Notes sheet.",null,null,{"$f":"\"v\"&TEXT(OurVersion,\"0.000\")","v":"v6071.153"},null,null,null,null,null,null,null,null,null,null,null,null,null,null,null,null,null,null,null,null,null,null,null,null,null,null,"Required",null,null,null,null,null,null,null,null,null,null,null,null,null,null,null,null,null,null,null,"Completed",null,null,null,null,null,null,null,null,null,null,null,null,null,null,null,null,null,null,"Required By Date",null,null,null,null,null,null,null,null,null,null,null,null,null,null,null,null,"Overdue",null,null,null,null,null,null,null,null,null,null,null,null,null,null,null,null,null,null,"Due Soon"]
["Membership Number","Forenames","Surname","Known As","Email","Role","Role Start Date","Role End Date","Role Status","Next Review date","Country","Region (England / Wales)","County, Region (Scotland), Area","District","Scout Group","Section","CE Check","Appointments Advisory Committee Approval","Commissioner Approval","Committee / Council Approval","References","Essential Info (Module 1)","Essential Info for Exec Members (Module 1EX)","Trustee Introduction","Personal Learning Plan (Module 2)","Tools for the Role (Section Leaders) (Module 3)","Tools for the Role (Managers & Supporters) (Module 4)","GDPR","Wood Badge","Safety Training Completed","Safety Training Renewal Due By","Safeguarding Training Completed","Safeguarding Training Renewal Due By","First Aid Training Completed","First Aid Training Renewal Due By","CleanRole","Proc","R AAC","R Refs","R Commissioner","R Committee/Council","R TransProc","R Mod1","R TrusteeIntro","R Mod2","R Mod3","R Mod4","R WoodBadge","R Section WB","R Mgr WB","R FirstAid","R Safety","R Safeguarding","R GDPR","R Review","Prereq","C Role Full","C AAC","C Refs","C Commissioner","C Committee / Council","C Mod1","C Trustee","C Mod2","C Mod3","C Mod4","C WoodBadge","C Section WB","C Mgr WB","C FirstAid","C Safety","C Safeguarding","C GDPR","C Review","By Role Full","By AAC","By Refs","By Commissioner","By Committee / Council","By Mod1","By Trustee","By Mod2","By Mod3","By Mod4","ByuWoodBadge","By Section WB","By Mgr WB","By FirstAid","By Safety","By Safeguarding","By GDPR","By Review","Q Pre-prov","Q Role","Q AAC","Q Refs","Q Commissioner","Q Committee / Council","Q Mod1","Q Trustee","Q Mod2","Q Mod3","Q Mod4","Q WoodBadge","Q Section WB","Q Mgr WB","Q FirstAid","Q Safety","Q Safeguarding","Q GDPR","Q Review","QQ Pre-prov","QQ Role","QQ AAC","QQ Refs","QQ Commissioner","QQ Committee Council","QQ Mod1","QQ Trustee","QQ Mod2","QQ Mod3","QQ Mod4","QQ WoodBadge","QQ Section WB","QQ Mgr WB","QQ FirstAid","QQ Safety","QQ Safeguarding","QQ GDPR","QQ Review","Any","Row Counter","Q Overdue","QQ Due Soon","Adult Count","Adult Start","Adult End","IsVisible","Visible Adult","VRA Mod1","VRA Trustee","VRA FirstAid","VRA Safety","VRA Safeguarding","VRA GDPR","VCA Mod1","VCA Trustee","VCA FirstAid","VCA Safety","VCA Safeguarding","VCA GDPR","VODA Mod1","VODA Trustee","VODA FirstAid","VODA Safety","VODA Safeguarding","VODA GDPR","VDSA Mod1","VDSA Trustee","VDSA FirstAid","VDSA Safety","VDSA Safeguarding","VDSA GDPR"," "]
[38086,"Julian Charles","Morgans","Julian"," ","Area Trainer","2013-07-05",null,"Full","2020-07-05","Wales","South Wales","Glamorgan West",null,null,null,"Satisfactory","Satisfactory","Satisfactory","N/A","Satisfactory","2008-10-01",null,null,null,null,null,null,null,"2019-05-27",null,"2019-05-27",null,"2016-06-08","2016-06-08","Trainer",1,{"$f":"IF(ApptProc=1,1,0)","v":1},{"$f":"IF(ApptProc=1,1,0)","v":1},{"$f":"IF(OR(ApptProc=1,ApptProc=4),1,0)","v":1},{"$f":"IF(OR(ApptProc=2,ApptProc=3),1,0)","v":0},1,1,0,0,0,0,0,0,0,1,0,0,0,0,0,1,0,0,0,0,0,0,0,0,0,0,0,0,0,0,0,0,0,0,0,0,0,0,0,0,0,0,0,0,0,0,0,0,0,0,0,0,0,0,1,0,0,0,0,0,0,0,0,0,0,1,0,0,0,0,0,0,0,0,0,0,1,0,0,0,0,0,0,0,0,0,0,0,0,1,1,null,null,null,null,null,{"$f":"SUBTOTAL(3,EB3)*1","v":1},{"$f":"IF(IsVisible>0,Member_Nos,\"\")","v":38086},{"$f":"IF(AND(IsVisible>0,ReqMod1>0),Member_Nos,\"\")","v":38086},{"$f":"IF(AND(IsVisible>0,ReqTrustee>0),Member_Nos,\"\")","v":""},{"$f":"IF(AND(IsVisible>0,ReqFirstAid>0),Member_Nos,\"\")","v":38086},{"$f":"IF(AND(IsVisible>0,ReqSafety>0),Member_Nos,\"\")","v":""},{"$f":"IF(AND(IsVisible>0,ReqSafeguarding>0),Member_Nos,\"\")","v":""},{"$f":"IF(AND(IsVisible>0,ReqGdpr>0),Member_Nos,\"\")","v":""},{"$f":"IF(AND(IsVisible>0,ComMod1>0),Member_Nos,\"\")","v":""},{"$f":"IF(AND(IsVisible>0,ComTrustee>0),Member_Nos,\"\")","v":""},{"$f":"IF(AND(IsVisible>0,ComFirstAid>0),Member_Nos,\"\")","v":""},{"$f":"IF(AND(IsVisible>0,ComSafety>0),Member_Nos,\"\")","v":""},{"$f":"IF(AND(IsVisible>0,ComSafeguarding>0),Member_Nos,\"\")","v":""},{"$f":"IF(AND(IsVisible>0,ComGdpr>0),Member_Nos,\"\")","v":""},{"$f":"IF(AND(IsVisible>0,OverMod1>0),Member_Nos,\"\")","v":""},{"$f":"IF(AND(IsVisible>0,OverTrustee>0),Member_Nos,\"\")","v":""},{"$f":"IF(AND(IsVisible>0,OverFirstAid>0),Member_Nos,\"\")","v":38086},{"$f":"IF(AND(IsVisible>0,OverSafety>0),Member_Nos,\"\")","v":""},{"$f":"IF(AND(IsVisible>0,OverSafeguarding>0),Member_Nos,\"\")","v":""},{"$f":"IF(AND(IsVisible>0,OverGdpr>0),Member_Nos,\"\")","v":""},{"$f":"IF(AND(IsVisible>0,SoonMod1>0),Member_Nos,\"\")","v":38086},{"$f":"IF(AND(IsVisible>0,SoonTrustee>0),Member_Nos,\"\")","v":""},{"$f":"IF(AND(IsVisible>0,SoonFirstAid>0),Member_Nos,\"\")","v":""},{"$f":"IF(AND(IsVisible>0,SoonSafety>0),Member_Nos,\"\")","v":""},{"$f":"IF(AND(IsVisible>0,SoonSafeguarding>0),Member_Nos,\"\")","v":""},{"$f":"IF(AND(IsVisible>0,SoonGdpr>0),Member_Nos,\"\")","v":""}," "]